Council Name,Date,TransNo,Amount � (Excl VAT),Supplier name,Supplier Category,Expense Area,Expense Type,Expense Code
Royal Borough of Kingston,05/04/2022,70021732,"-84,892.50",LONDON BOROUGH OF SUTTON ,CENTRAL & LOCAL GOVERNMENT,Corporate & Communities,IT Software Maintenance,A45045
Royal Borough of Kingston,05/04/2022,70021733,"-81,000.00",LONDON BOROUGH OF SUTTON ,CENTRAL & LOCAL GOVERNMENT,Corporate & Communities,IT Software Maintenance,A45045
Royal Borough of Kingston,01/04/2022,90112012,"-5,137.14",FOUR SEASONS HEALTHCARE,SOCIAL SERVICES RESIDENTIAL,Adult Social Care & Health,Other Private Contractors - Third Party,A56080
Royal Borough of Kingston,01/04/2022,90112016,"-5,137.14",FOUR SEASONS HEALTHCARE,SOCIAL SERVICES RESIDENTIAL,Adult Social Care & Health,Other Private Contractors - Third Party,A56080
Royal Borough of Kingston,01/04/2022,90112010,"-4,971.43",FOUR SEASONS HEALTHCARE,SOCIAL SERVICES RESIDENTIAL,Adult Social Care & Health,Other Private Contractors - Third Party,A56080
Royal Borough of Kingston,01/04/2022,90112014,"-4,640.00",FOUR SEASONS HEALTHCARE,SOCIAL SERVICES RESIDENTIAL,Adult Social Care & Health,Other Private Contractors - Third Party,A56080
Royal Borough of Kingston,01/04/2022,90111886,"-3,095.57",ROSCLARE RESIDENTIAL HOME,SOCIAL SERVICES RESIDENTIAL,Adult Social Care & Health,Independent Placements,A56006
Royal Borough of Kingston,21/03/2022,90092106,"-2,821.00",Global Homecare,SOCIAL SERVICES-HOME CARE,Adult Social Care & Health,Homecare - new framework,A56127
Royal Borough of Kingston,21/03/2022,90092108,"-2,821.00",Global Homecare,SOCIAL SERVICES-HOME CARE,Adult Social Care & Health,Homecare - new framework,A56127
Royal Borough of Kingston,28/03/2022,90094144,"-2,821.00",Global Homecare,SOCIAL SERVICES-HOME CARE,Adult Social Care & Health,Homecare - new framework,A56127
Royal Borough of Kingston,28/03/2022,90094145,"-2,821.00",Global Homecare,SOCIAL SERVICES-HOME CARE,Adult Social Care & Health,Homecare - new framework,A56127
Royal Borough of Kingston,28/03/2022,90094146,"-2,821.00",Global Homecare,SOCIAL SERVICES-HOME CARE,Adult Social Care & Health,Homecare - new framework,A56127
Royal Borough of Kingston,01/04/2022,90111628,"-2,571.43",CHD CARE LTD,SOCIAL SERVICES RESIDENTIAL,Adult Social Care & Health,Independent Placements,A56006
Royal Borough of Kingston,01/04/2022,90111998,"-2,520.00",ABBEYFIELD,SOCIAL SERVICES RESIDENTIAL,Adult Social Care & Health,Other Private Contractors - Third Party,A56080
Royal Borough of Kingston,01/04/2022,90111626,"-2,442.86",LANGLEY COURT REST HOME,SOCIAL SERVICES RESIDENTIAL,Adult Social Care & Health,Independent Placements,A56006
Royal Borough of Kingston,21/03/2022,90092616,"-2,401.00",WINSOR CARE SERVICES LTD,SOCIAL SERVICES RESIDENTIAL,Adult Social Care & Health,Personal Budget - Third Party,A61019
Royal Borough of Kingston,21/03/2022,90092617,"-2,401.00",WINSOR CARE SERVICES LTD,SOCIAL SERVICES RESIDENTIAL,Adult Social Care & Health,Personal Budget - Third Party,A61019
Royal Borough of Kingston,21/03/2022,90092618,"-2,401.00",WINSOR CARE SERVICES LTD,SOCIAL SERVICES RESIDENTIAL,Adult Social Care & Health,Personal Budget - Third Party,A61019
Royal Borough of Kingston,21/03/2022,90092619,"-2,401.00",WINSOR CARE SERVICES LTD,SOCIAL SERVICES RESIDENTIAL,Adult Social Care & Health,Personal Budget - Third Party,A61019
Royal Borough of Kingston,21/03/2022,90092620,"-2,401.00",WINSOR CARE SERVICES LTD,SOCIAL SERVICES RESIDENTIAL,Adult Social Care & Health,Personal Budget - Third Party,A61019
Royal Borough of Kingston,21/03/2022,90092621,"-2,401.00",WINSOR CARE SERVICES LTD,SOCIAL SERVICES RESIDENTIAL,Adult Social Care & Health,Personal Budget - Third Party,A61019
Royal Borough of Kingston,21/03/2022,90092622,"-2,401.00",WINSOR CARE SERVICES LTD,SOCIAL SERVICES RESIDENTIAL,Adult Social Care & Health,Personal Budget - Third Party,A61019
Royal Borough of Kingston,01/04/2022,90111884,"-2,396.57",ROSCLARE RESIDENTIAL HOME,SOCIAL SERVICES RESIDENTIAL,Adult Social Care & Health,Independent Placements,A56006
Royal Borough of Kingston,01/04/2022,90111622,"-2,244.00",WILLOW GRANGE CARE LTD,SOCIAL SERVICES RESIDENTIAL,Adult Social Care & Health,Independent Placements,A56006
Royal Borough of Kingston,01/04/2022,90111627,"-2,228.57",CHD CARE LTD,SOCIAL SERVICES RESIDENTIAL,Adult Social Care & Health,Independent Placements,A56006
Royal Borough of Kingston,18/04/2022,90095068,"-2,223.16",REDACTED - PERSONAL DATA,SOCIAL SERVICES - DIRECT PAYMENTS,Adult Social Care & Health,Personal Budget - Direct Payment,A61016
Royal Borough of Kingston,21/03/2022,90092615,"-2,058.00",WINSOR CARE SERVICES LTD,SOCIAL SERVICES RESIDENTIAL,Adult Social Care & Health,Personal Budget - Third Party,A61019
Royal Borough of Kingston,01/04/2022,90112758,"-1,799.74",BALANCE (SUPPORT) C.I.C,SOCIAL SERVICES - OTHER,Adult Social Care & Health,Personal Budget - Third Party,A61019
Royal Borough of Kingston,28/03/2022,90094143,"-1,612.00",Global Homecare,SOCIAL SERVICES-HOME CARE,Adult Social Care & Health,Homecare - new framework,A56127
Royal Borough of Kingston,18/04/2022,90095105,"-1,449.00",REDACTED - PERSONAL DATA,SOCIAL SERVICES - DIRECT PAYMENTS,Adult Social Care & Health,Personal Budget - Direct Payment,A61016
Royal Borough of Kingston,18/04/2022,90095232,"-1,200.00",REDACTED - PERSONAL DATA,SOCIAL SERVICES - DIRECT PAYMENTS,Adult Social Care & Health,Personal Budget - Direct Payment,A61016
Royal Borough of Kingston,18/04/2022,90095235,"-1,200.00",REDACTED - PERSONAL DATA,SOCIAL SERVICES - DIRECT PAYMENTS,Adult Social Care & Health,Personal Budget - Direct Payment,A61016
Royal Borough of Kingston,18/04/2022,90095065,"-1,111.58",REDACTED - PERSONAL DATA,SOCIAL SERVICES - DIRECT PAYMENTS,Adult Social Care & Health,Personal Budget - Direct Payment,A61016
Royal Borough of Kingston,01/04/2022,90112632,-930,THE GRANGE CENTRE,SOCIAL SERVICES RESIDENTIAL,Adult Social Care & Health,Personal Budget - Third Party,A61019
Royal Borough of Kingston,01/04/2022,90112634,-930,THE GRANGE CENTRE,SOCIAL SERVICES RESIDENTIAL,Adult Social Care & Health,Personal Budget - Third Party,A61019
Royal Borough of Kingston,01/04/2022,90112638,-930,THE GRANGE CENTRE,SOCIAL SERVICES RESIDENTIAL,Adult Social Care & Health,Personal Budget - Third Party,A61019
Royal Borough of Kingston,01/04/2022,90112642,-930,THE GRANGE CENTRE,SOCIAL SERVICES RESIDENTIAL,Adult Social Care & Health,Personal Budget - Third Party,A61019
Royal Borough of Kingston,01/04/2022,90112644,-930,THE GRANGE CENTRE,SOCIAL SERVICES RESIDENTIAL,Adult Social Care & Health,Personal Budget - Third Party,A61019
Royal Borough of Kingston,01/04/2022,90112648,-930,THE GRANGE CENTRE,SOCIAL SERVICES RESIDENTIAL,Adult Social Care & Health,Personal Budget - Third Party,A61019
Royal Borough of Kingston,01/04/2022,90112630,-900,THE GRANGE CENTRE,SOCIAL SERVICES RESIDENTIAL,Adult Social Care & Health,Personal Budget - Third Party,A61019
Royal Borough of Kingston,01/04/2022,90112636,-900,THE GRANGE CENTRE,SOCIAL SERVICES RESIDENTIAL,Adult Social Care & Health,Personal Budget - Third Party,A61019
Royal Borough of Kingston,01/04/2022,90112640,-900,THE GRANGE CENTRE,SOCIAL SERVICES RESIDENTIAL,Adult Social Care & Health,Personal Budget - Third Party,A61019
Royal Borough of Kingston,01/04/2022,90111729,-850,LYNTON HALL NURSING HOME,SOCIAL SERVICES RESIDENTIAL,Adult Social Care & Health,Independent Placements,A56006
Royal Borough of Kingston,01/04/2022,90112646,-840,THE GRANGE CENTRE,SOCIAL SERVICES RESIDENTIAL,Adult Social Care & Health,Personal Budget - Third Party,A61019
Royal Borough of Kingston,24/03/2022,70021481,-836.09,KENT COUNTY COUNCIL,UTILITIES,Corporate & Communities,Electricity,A21000
Royal Borough of Kingston,28/03/2022,90094679,-724.5,ALPENBEST LTD,SOCIAL SERVICES DAY CARE,Adult Social Care & Health,Homecare - new framework,A56127
Royal Borough of Kingston,28/03/2022,90094817,-724.5,CARLCARE LTD ,SOCIAL SERVICES-HOME CARE,Adult Social Care & Health,Homecare - new framework,A56127
Royal Borough of Kingston,01/04/2022,90111624,-714,WILLOW GRANGE CARE LTD,SOCIAL SERVICES RESIDENTIAL,Adult Social Care & Health,Independent Placements,A56006
Royal Borough of Kingston,01/04/2022,90112628,-660,THE GRANGE CENTRE,SOCIAL SERVICES RESIDENTIAL,Adult Social Care & Health,Personal Budget - Third Party,A61019
Royal Borough of Kingston,28/03/2022,90094675,-655.5,ALPENBEST LTD,SOCIAL SERVICES DAY CARE,Adult Social Care & Health,Homecare - new framework,A56127
Royal Borough of Kingston,28/03/2022,90094791,-646.88,CARLCARE LTD ,SOCIAL SERVICES-HOME CARE,Adult Social Care & Health,Homecare - new framework,A56127
Royal Borough of Kingston,28/03/2022,90094785,-595.13,CARLCARE LTD ,SOCIAL SERVICES-HOME CARE,Adult Social Care & Health,Homecare - new framework,A56127
Royal Borough of Kingston,28/03/2022,90094789,-595.13,CARLCARE LTD ,SOCIAL SERVICES-HOME CARE,Adult Social Care & Health,Homecare - new framework,A56127
Royal Borough of Kingston,28/03/2022,90094795,-595.13,CARLCARE LTD ,SOCIAL SERVICES-HOME CARE,Adult Social Care & Health,Homecare - new framework,A56127
Royal Borough of Kingston,28/03/2022,90094797,-595.13,CARLCARE LTD ,SOCIAL SERVICES-HOME CARE,Adult Social Care & Health,Homecare - new framework,A56127
Royal Borough of Kingston,28/03/2022,90094799,-595.13,CARLCARE LTD ,SOCIAL SERVICES-HOME CARE,Adult Social Care & Health,Homecare - new framework,A56127
Royal Borough of Kingston,28/03/2022,90094807,-595.13,CARLCARE LTD ,SOCIAL SERVICES-HOME CARE,Adult Social Care & Health,Homecare - new framework,A56127
Royal Borough of Kingston,28/03/2022,90094813,-595.13,CARLCARE LTD ,SOCIAL SERVICES-HOME CARE,Adult Social Care & Health,Homecare - new framework,A56127
Royal Borough of Kingston,28/03/2022,90094815,-595.13,CARLCARE LTD ,SOCIAL SERVICES-HOME CARE,Adult Social Care & Health,Homecare - new framework,A56127
Royal Borough of Kingston,28/03/2022,90094787,-586.5,CARLCARE LTD ,SOCIAL SERVICES-HOME CARE,Adult Social Care & Health,Homecare - new framework,A56127
Royal Borough of Kingston,28/03/2022,90094793,-586.5,CARLCARE LTD ,SOCIAL SERVICES-HOME CARE,Adult Social Care & Health,Homecare - new framework,A56127
Royal Borough of Kingston,28/03/2022,90094801,-586.5,CARLCARE LTD ,SOCIAL SERVICES-HOME CARE,Adult Social Care & Health,Homecare - new framework,A56127
Royal Borough of Kingston,28/03/2022,90094803,-586.5,CARLCARE LTD ,SOCIAL SERVICES-HOME CARE,Adult Social Care & Health,Homecare - new framework,A56127
Royal Borough of Kingston,28/03/2022,90094805,-586.5,CARLCARE LTD ,SOCIAL SERVICES-HOME CARE,Adult Social Care & Health,Homecare - new framework,A56127
Royal Borough of Kingston,28/03/2022,90094809,-586.5,CARLCARE LTD ,SOCIAL SERVICES-HOME CARE,Adult Social Care & Health,Homecare - new framework,A56127
Royal Borough of Kingston,28/03/2022,90094811,-586.5,CARLCARE LTD ,SOCIAL SERVICES-HOME CARE,Adult Social Care & Health,Homecare - new framework,A56127
Royal Borough of Kingston,28/03/2022,90094819,-586.5,CARLCARE LTD ,SOCIAL SERVICES-HOME CARE,Adult Social Care & Health,Homecare - new framework,A56127
Royal Borough of Kingston,14/03/2022,90092119,-543.38,Bright Star Care Service Ltd,SOCIAL SERVICES - OTHER,Adult Social Care & Health,Homecare - new framework,A56127
Royal Borough of Kingston,14/03/2022,90092204,-543.38,Bright Star Care Service Ltd,SOCIAL SERVICES - OTHER,Adult Social Care & Health,Homecare - new framework,A56127
Royal Borough of Kingston,21/03/2022,90092062,-543.38,INSPIRE MANAGEMENT GROUP LTD,SOCIAL SERVICES DAY CARE,Adult Social Care & Health,Homecare - new framework,A56127
Royal Borough of Kingston,21/03/2022,90092063,-543.38,INSPIRE MANAGEMENT GROUP LTD,SOCIAL SERVICES DAY CARE,Adult Social Care & Health,Homecare - new framework,A56127
Royal Borough of Kingston,21/03/2022,90092064,-543.38,INSPIRE MANAGEMENT GROUP LTD,SOCIAL SERVICES DAY CARE,Adult Social Care & Health,Homecare - new framework,A56127
Royal Borough of Kingston,21/03/2022,90092065,-543.38,INSPIRE MANAGEMENT GROUP LTD,SOCIAL SERVICES DAY CARE,Adult Social Care & Health,Homecare - new framework,A56127
Royal Borough of Kingston,21/03/2022,90092066,-543.38,INSPIRE MANAGEMENT GROUP LTD,SOCIAL SERVICES DAY CARE,Adult Social Care & Health,Homecare - new framework,A56127
Royal Borough of Kingston,28/03/2022,90094783,-510.11,CARLCARE LTD ,SOCIAL SERVICES-HOME CARE,Adult Social Care & Health,Homecare - new framework,A56127
Royal Borough of Kingston,30/03/2022,70021420,71.26,DURADIAMOND HEALTHCARE LIMITED,LEGAL & PROFESSIONAL SERVICES,Corporate & Communities,Other Private Contractors - Third Party,A56080
Royal Borough of Kingston,30/08/2021,70021727,85,KNOWLES ASSOCIATES TFM LTD,VEHICLE & PLANT HIRE / MNTCE,Adult Social Care & Health,Vehicle Hire & Operating Leases,A32004
Royal Borough of Kingston,14/04/2022,70022556,154.52,KENT COUNTY COUNCIL,UTILITIES,Corporate & Communities,Electricity,A21000
Royal Borough of Kingston,13/04/2022,70022239,201.14,KENT COUNTY COUNCIL,UTILITIES,Corporate & Communities,Gas,A21003
Royal Borough of Kingston,31/03/2022,70022956,240,London Hounslow LTD,ACCOMMODATION BED & BREAKFAST,Place,Bed & Breakfast,A56000
Royal Borough of Kingston,15/03/2022,70021208,279.95,KENT COUNTY COUNCIL,UTILITIES,Housing Revenue Account,Electricity,A21000
Royal Borough of Kingston,15/03/2022,70021208,279.96,KENT COUNTY COUNCIL,UTILITIES,Housing Revenue Account,Electricity,A21000
Royal Borough of Kingston,14/04/2022,70022556,293.71,KENT COUNTY COUNCIL,UTILITIES,Corporate & Communities,Electricity,A21000
Royal Borough of Kingston,04/04/2022,70021756,300,THE UK ASSOCIATION FOR  MUSIC  EDUCATION ,CHARITIES & VOLUNTARY ORGNS,Corporate & Communities,Registration & Licence Fees Payable,A44267
Royal Borough of Kingston,31/03/2022,70021561,312.5,PREMIER PEOPLE SOLUTIONS LTD,TRAINING,Corporate & Communities,Staff Development And Training,A15022
Royal Borough of Kingston,31/03/2022,70021561,312.5,PREMIER PEOPLE SOLUTIONS LTD,TRAINING,Corporate & Communities,Staff Development And Training,A15022
Royal Borough of Kingston,31/03/2022,70022956,320,London Hounslow LTD,ACCOMMODATION BED & BREAKFAST,Place,Bed & Breakfast,A56000
Royal Borough of Kingston,18/03/2022,70023048,320.91,ANGLIAN WATER BUSINESS NATIONAL LTD,UTILITIES,Housing Revenue Account,Water Services,A24005
Royal Borough of Kingston,13/04/2022,70022239,382.15,KENT COUNTY COUNCIL,UTILITIES,Corporate & Communities,Gas,A21003
Royal Borough of Kingston,01/04/2022,90119066,428.57,GENEVA ROAD LIMITED,SOCIAL SERVICES RESIDENTIAL,Adult Social Care & Health,Personal Budget - Third Party,A61019
Royal Borough of Kingston,01/04/2022,90119067,428.57,GENEVA ROAD LIMITED,SOCIAL SERVICES RESIDENTIAL,Adult Social Care & Health,Personal Budget - Third Party,A61019
Royal Borough of Kingston,01/04/2022,90119077,428.57,GENEVA ROAD LIMITED,SOCIAL SERVICES RESIDENTIAL,Adult Social Care & Health,Personal Budget - Third Party,A61019
Royal Borough of Kingston,10/03/2022,70019965,437.5,MERCATOR IT SOLUTIONS LTD,BUSINESS & COMPUTER SYSTEMS,Capital Programme,Intangible Assets - Project Management,C13001
Royal Borough of Kingston,01/04/2022,70022252,440,Stef and Philips,ACCOMMODATION BED & BREAKFAST,Place,Bed & Breakfast,A56000
Royal Borough of Kingston,13/04/2022,70022546,443.01,KENT COUNTY COUNCIL,UTILITIES,Place,Gas,A21003
Royal Borough of Kingston,30/09/2021,70021736,449.03,KINGSTON TOWN CENTRE MANAGEMENT LTD,GRANTS & EX GRATIA PAYMENTS,Place,Electricity,A21000
Royal Borough of Kingston,31/03/2022,70022771,455,Gilroy Court LTD,ACCOMMODATION BED & BREAKFAST,Place,Bed & Breakfast,A56000
Royal Borough of Kingston,01/04/2022,90119134,470.36,GENEVA ROAD LIMITED,SOCIAL SERVICES RESIDENTIAL,Adult Social Care & Health,Personal Budget - Third Party,A61019
Royal Borough of Kingston,31/03/2022,70022908,500,AON UK LTD,FINANCIAL / INSURANCE INSTNS,Corporate & Communities,General Insurance (Excl Premises & Transport),A44260
Royal Borough of Kingston,28/04/2022,70023280,500,Edwards Partnership,SUNDRY SUPPLIER - HOUSING,Place,Housing Incentives,A62025
Royal Borough of Kingston,22/04/2022,70023009,500,F H & G LIMITED,LEGAL & PROFESSIONAL SERVICES,Housing Revenue Account,Professional Fees,A44066
Royal Borough of Kingston,22/04/2022,70022770,500,REDACTED - PERSONAL DATA,PLS LANDLORDS,Place,Housing Incentives,A62025
Royal Borough of Kingston,30/06/2021,70021671,500,TPM LIMITED,BUSINESS & COMPUTER SYSTEMS,Capital Programme,Buildings - Design & Planning,C14001
Royal Borough of Kingston,21/03/2022,90092159,500.25,ALPENBEST LTD,SOCIAL SERVICES DAY CARE,Adult Social Care & Health,Homecare - new framework,A56127
Royal Borough of Kingston,31/03/2022,70022269,506.4,NL HEALTHCARE LIMITED,TCES RETAILERS (PHARMACYS),Adult Social Care & Health,Other Private Contractors - Third Party,A56080
Royal Borough of Kingston,04/04/2022,90110480,507.5,ALPENBEST LTD,SOCIAL SERVICES DAY CARE,Adult Social Care & Health,Homecare - new framework,A56127
Royal Borough of Kingston,01/04/2022,90112021,508.07,ENHANCEABLE,SOCIAL SERVICES - OTHER,Adult Social Care & Health,Other Private Contractors - Third Party,A56080
Royal Borough of Kingston,01/04/2022,90112030,509.5,BALANCE (SUPPORT) C.I.C,SOCIAL SERVICES - OTHER,Adult Social Care & Health,Supported Living - new framework,A56126
Royal Borough of Kingston,01/04/2022,70021532,510.39,RGH Social Work Ltd,TEMP STAFF & CONSULTANCY,Adult Social Care & Health,Other Private Contractors - Third Party,A56080
Royal Borough of Kingston,01/04/2022,90112677,510.47,BALANCE (SUPPORT) C.I.C,SOCIAL SERVICES - OTHER,Adult Social Care & Health,Personal Budget - Third Party,A61019
Royal Borough of Kingston,18/04/2022,90095253,512,REDACTED - PERSONAL DATA,SOCIAL SERVICES - DIRECT PAYMENTS,Adult Social Care & Health,Personal Budget - Direct Payment,A61016
Royal Borough of Kingston,01/04/2022,90112625,515.16,HERTFORDSHIRE COUNTY COUNCIL,SOCIAL SERVICES RESIDENTIAL,Adult Social Care & Health,Personal Budget - Third Party,A61019
Royal Borough of Kingston,18/04/2022,90095048,517.44,REDACTED - PERSONAL DATA,SOCIAL SERVICES - PERSONAL BUDGETS,Adult Social Care & Health,Personal Budget - Direct Payment,A61016
Royal Borough of Kingston,18/04/2022,90095182,517.44,REDACTED - PERSONAL DATA,SOCIAL SERVICES - DIRECT PAYMENTS,Adult Social Care & Health,Personal Budget - Direct Payment,A61016
Royal Borough of Kingston,18/04/2022,90095299,517.44,REDACTED - PERSONAL DATA,SOCIAL SERVICES - DIRECT PAYMENTS,Adult Social Care & Health,Personal Budget - Direct Payment,A61016
Royal Borough of Kingston,28/03/2022,90094434,517.5,CN Healthcare,SOCIAL SERVICES - OTHER,Adult Social Care & Health,Homecare - new framework,A56127
Royal Borough of Kingston,01/04/2022,90112761,519.84,BALANCE (SUPPORT) C.I.C,SOCIAL SERVICES - OTHER,Adult Social Care & Health,Personal Budget - Third Party,A61019
Royal Borough of Kingston,31/03/2022,70022297,520,INDEPENDENT LIVING LTD,SOCIAL SERVICES - OTHER,Capital Programme,Grants Given For Capital Purposes,C20004
Royal Borough of Kingston,01/04/2022,90112843,520.67,ZEDCARZ LTD,TAXI AND COACH HIRE,Adult Social Care & Health,Personal Budget - Third Party,A61019
Royal Borough of Kingston,30/03/2022,70021451,525,AIR SURVEYS LIMITED,LEGAL & PROFESSIONAL SERVICES,Place,Property Repairs & Maintenance & Alterations - Responsive,A20011
Royal Borough of Kingston,04/04/2022,90110437,525,CN Healthcare,SOCIAL SERVICES - OTHER,Adult Social Care & Health,Homecare - new framework,A56127
Royal Borough of Kingston,14/02/2022,70019980,527.79,BRITISH GAS,UTILITIES,Place,Gas,A21003
Royal Borough of Kingston,04/04/2022,90119039,528.08,GENEVA ROAD LIMITED,SOCIAL SERVICES RESIDENTIAL,Adult Social Care & Health,Supported Living - new framework,A56126
Royal Borough of Kingston,28/03/2022,90094332,528.75,CARLCARE LTD ,SOCIAL SERVICES-HOME CARE,Adult Social Care & Health,Homecare - new framework,A56127
Royal Borough of Kingston,01/04/2022,90112615,530.59,BALANCE (SUPPORT) C.I.C,SOCIAL SERVICES - OTHER,Adult Social Care & Health,Personal Budget - Third Party,A61019
Royal Borough of Kingston,01/04/2022,90112616,530.59,BALANCE (SUPPORT) C.I.C,SOCIAL SERVICES - OTHER,Adult Social Care & Health,Personal Budget - Third Party,A61019
Royal Borough of Kingston,04/04/2022,90110467,533.75,ALPENBEST LTD,SOCIAL SERVICES DAY CARE,Adult Social Care & Health,Homecare - new framework,A56127
Royal Borough of Kingston,21/03/2022,90092679,535.5,BLUE ARROW CARE LTD,SOCIAL SERVICES-HOME CARE,Adult Social Care & Health,Personal Budget - Third Party,A61019
Royal Borough of Kingston,21/03/2022,90092690,535.5,BLUE ARROW CARE LTD,SOCIAL SERVICES-HOME CARE,Adult Social Care & Health,Personal Budget - Third Party,A61019
Royal Borough of Kingston,21/03/2022,90092689,535.5,WINSOR CARE SERVICES LTD,SOCIAL SERVICES RESIDENTIAL,Adult Social Care & Health,Personal Budget - Third Party,A61019
Royal Borough of Kingston,21/03/2022,90092712,535.5,WINSOR CARE SERVICES LTD,SOCIAL SERVICES RESIDENTIAL,Adult Social Care & Health,Personal Budget - Third Party,A61019
Royal Borough of Kingston,01/04/2022,90119117,535.71,GENEVA ROAD LIMITED,SOCIAL SERVICES RESIDENTIAL,Adult Social Care & Health,Personal Budget - Third Party,A61019
Royal Borough of Kingston,30/03/2022,70021457,540,CONTINUOUS DATA PRINT (UK) LTD,BUSINESS & COMPUTER SYSTEMS,Corporate & Communities,Design,A43017
Royal Borough of Kingston,21/02/2022,70022109,542.76,LONDON BOROUH OF HARINGEY,CENTRAL & LOCAL GOVERNMENT,Capital Programme,Buildings - Design & Planning,C14001
Royal Borough of Kingston,21/03/2022,90092561,542.86,HELMAR CARE AND COMMUNITY SERVICES LTD,SOCIAL SERVICES DAY CARE,Adult Social Care & Health,Homecare - new framework,A56127
Royal Borough of Kingston,04/04/2022,90111034,543.26,BLUE ARROW CARE LTD,SOCIAL SERVICES-HOME CARE,Adult Social Care & Health,Personal Budget - Third Party,A61019
Royal Borough of Kingston,04/04/2022,90111042,543.26,BLUE ARROW CARE LTD,SOCIAL SERVICES-HOME CARE,Adult Social Care & Health,Personal Budget - Third Party,A61019
Royal Borough of Kingston,11/04/2022,90112914,543.26,BLUE ARROW CARE LTD,SOCIAL SERVICES-HOME CARE,Adult Social Care & Health,Personal Budget - Third Party,A61019
Royal Borough of Kingston,11/04/2022,90112923,543.26,BLUE ARROW CARE LTD,SOCIAL SERVICES-HOME CARE,Adult Social Care & Health,Personal Budget - Third Party,A61019
Royal Borough of Kingston,04/04/2022,90111041,543.26,WINSOR CARE SERVICES LTD,SOCIAL SERVICES RESIDENTIAL,Adult Social Care & Health,Personal Budget - Third Party,A61019
Royal Borough of Kingston,04/04/2022,90111075,543.26,WINSOR CARE SERVICES LTD,SOCIAL SERVICES RESIDENTIAL,Adult Social Care & Health,Personal Budget - Third Party,A61019
Royal Borough of Kingston,11/04/2022,90112922,543.26,WINSOR CARE SERVICES LTD,SOCIAL SERVICES RESIDENTIAL,Adult Social Care & Health,Personal Budget - Third Party,A61019
Royal Borough of Kingston,11/04/2022,90112945,543.26,WINSOR CARE SERVICES LTD,SOCIAL SERVICES RESIDENTIAL,Adult Social Care & Health,Personal Budget - Third Party,A61019
Royal Borough of Kingston,21/03/2022,90092045,543.38,ALPENBEST LTD,SOCIAL SERVICES DAY CARE,Adult Social Care & Health,Homecare - new framework,A56127
Royal Borough of Kingston,21/03/2022,90092046,543.38,ALPENBEST LTD,SOCIAL SERVICES DAY CARE,Adult Social Care & Health,Homecare - new framework,A56127
Royal Borough of Kingston,21/03/2022,90092047,543.38,ALPENBEST LTD,SOCIAL SERVICES DAY CARE,Adult Social Care & Health,Homecare - new framework,A56127
Royal Borough of Kingston,21/03/2022,90092048,543.38,ALPENBEST LTD,SOCIAL SERVICES DAY CARE,Adult Social Care & Health,Homecare - new framework,A56127
Royal Borough of Kingston,21/03/2022,90092049,543.38,ALPENBEST LTD,SOCIAL SERVICES DAY CARE,Adult Social Care & Health,Homecare - new framework,A56127
Royal Borough of Kingston,21/03/2022,90092050,543.38,ALPENBEST LTD,SOCIAL SERVICES DAY CARE,Adult Social Care & Health,Homecare - new framework,A56127
Royal Borough of Kingston,21/03/2022,90092051,543.38,ALPENBEST LTD,SOCIAL SERVICES DAY CARE,Adult Social Care & Health,Homecare - new framework,A56127
Royal Borough of Kingston,21/03/2022,90092052,543.38,ALPENBEST LTD,SOCIAL SERVICES DAY CARE,Adult Social Care & Health,Homecare - new framework,A56127
Royal Borough of Kingston,21/03/2022,90092053,543.38,ALPENBEST LTD,SOCIAL SERVICES DAY CARE,Adult Social Care & Health,Homecare - new framework,A56127
Royal Borough of Kingston,21/03/2022,90092058,543.38,ALPENBEST LTD,SOCIAL SERVICES DAY CARE,Adult Social Care & Health,Homecare - new framework,A56127
Royal Borough of Kingston,21/03/2022,90092146,543.38,ALPENBEST LTD,SOCIAL SERVICES DAY CARE,Adult Social Care & Health,Homecare - new framework,A56127
Royal Borough of Kingston,21/03/2022,90092191,543.38,ALPENBEST LTD,SOCIAL SERVICES DAY CARE,Adult Social Care & Health,Homecare - new framework,A56127
Royal Borough of Kingston,21/03/2022,90092253,543.38,ALPENBEST LTD,SOCIAL SERVICES DAY CARE,Adult Social Care & Health,Homecare - new framework,A56127
Royal Borough of Kingston,21/03/2022,90092339,543.38,ALPENBEST LTD,SOCIAL SERVICES DAY CARE,Adult Social Care & Health,Homecare - new framework,A56127
Royal Borough of Kingston,21/03/2022,90092364,543.38,ALPENBEST LTD,SOCIAL SERVICES DAY CARE,Adult Social Care & Health,Homecare - new framework,A56127
Royal Borough of Kingston,21/03/2022,90092369,543.38,ALPENBEST LTD,SOCIAL SERVICES DAY CARE,Adult Social Care & Health,Homecare - new framework,A56127
Royal Borough of Kingston,21/03/2022,90092454,543.38,ALPENBEST LTD,SOCIAL SERVICES DAY CARE,Adult Social Care & Health,Homecare - new framework,A56127
Royal Borough of Kingston,14/03/2022,90092098,543.38,Bright Star Care Service Ltd,SOCIAL SERVICES - OTHER,Adult Social Care & Health,Homecare - new framework,A56127
Royal Borough of Kingston,14/03/2022,90092356,543.38,Bright Star Care Service Ltd,SOCIAL SERVICES - OTHER,Adult Social Care & Health,Homecare - new framework,A56127
Royal Borough of Kingston,14/03/2022,90092487,543.38,Bright Star Care Service Ltd,SOCIAL SERVICES - OTHER,Adult Social Care & Health,Homecare - new framework,A56127
Royal Borough of Kingston,14/03/2022,90092488,543.38,Bright Star Care Service Ltd,SOCIAL SERVICES - OTHER,Adult Social Care & Health,Homecare - new framework,A56127
Royal Borough of Kingston,21/03/2022,90094142,543.38,Bright Star Care Service Ltd,SOCIAL SERVICES - OTHER,Adult Social Care & Health,Homecare - new framework,A56127
Royal Borough of Kingston,21/03/2022,90094537,543.38,Bright Star Care Service Ltd,SOCIAL SERVICES - OTHER,Adult Social Care & Health,Homecare - new framework,A56127
Royal Borough of Kingston,21/03/2022,90092702,543.38,HELMAR CARE AND COMMUNITY SERVICES LTD,SOCIAL SERVICES DAY CARE,Adult Social Care & Health,Personal Budget - Third Party,A61019
Royal Borough of Kingston,21/03/2022,90092220,543.38,INSPIRE MANAGEMENT GROUP LTD,SOCIAL SERVICES DAY CARE,Adult Social Care & Health,Homecare - new framework,A56127
Royal Borough of Kingston,21/03/2022,90092221,543.38,INSPIRE MANAGEMENT GROUP LTD,SOCIAL SERVICES DAY CARE,Adult Social Care & Health,Homecare - new framework,A56127
Royal Borough of Kingston,21/03/2022,90092222,543.38,INSPIRE MANAGEMENT GROUP LTD,SOCIAL SERVICES DAY CARE,Adult Social Care & Health,Homecare - new framework,A56127
Royal Borough of Kingston,21/03/2022,90092223,543.38,INSPIRE MANAGEMENT GROUP LTD,SOCIAL SERVICES DAY CARE,Adult Social Care & Health,Homecare - new framework,A56127
Royal Borough of Kingston,21/03/2022,90092354,543.38,INSPIRE MANAGEMENT GROUP LTD,SOCIAL SERVICES DAY CARE,Adult Social Care & Health,Homecare - new framework,A56127
Royal Borough of Kingston,21/03/2022,90092511,543.38,INSPIRE MANAGEMENT GROUP LTD,SOCIAL SERVICES DAY CARE,Adult Social Care & Health,Homecare - new framework,A56127
Royal Borough of Kingston,21/03/2022,90092559,543.38,INSPIRE MANAGEMENT GROUP LTD,SOCIAL SERVICES DAY CARE,Adult Social Care & Health,Homecare - new framework,A56127
Royal Borough of Kingston,14/03/2022,90092421,543.38,Rapid Improvement Ltd,SOCIAL SERVICES - OTHER,Adult Social Care & Health,Homecare - new framework,A56127
Royal Borough of Kingston,14/03/2022,90092460,543.38,Rapid Improvement Ltd,SOCIAL SERVICES - OTHER,Adult Social Care & Health,Homecare - new framework,A56127
Royal Borough of Kingston,21/03/2022,90094657,543.38,Rapid Improvement Ltd,SOCIAL SERVICES - OTHER,Adult Social Care & Health,Homecare - new framework,A56127
Royal Borough of Kingston,21/03/2022,90094743,543.38,Rapid Improvement Ltd,SOCIAL SERVICES - OTHER,Adult Social Care & Health,Homecare - new framework,A56127
Royal Borough of Kingston,21/03/2022,90092207,543.38,WANDLE HEALTHCARE SERVICES,SOCIAL SERVICES-HOME CARE,Adult Social Care & Health,Homecare - new framework,A56127
Royal Borough of Kingston,21/03/2022,90092695,544,WINSOR CARE SERVICES LTD,SOCIAL SERVICES RESIDENTIAL,Adult Social Care & Health,Personal Budget - Third Party,A61019
Royal Borough of Kingston,07/04/2022,70022007,545,LOCAL GOVERNMENT ASSOCIATION,CENTRAL & LOCAL GOVERNMENT,Chief Executives,Conference Expenses,A43075
Royal Borough of Kingston,07/04/2022,70022007,545,LOCAL GOVERNMENT ASSOCIATION,CENTRAL & LOCAL GOVERNMENT,Chief Executives,Conference Expenses,A43075
Royal Borough of Kingston,07/04/2022,70022103,545,LOCAL GOVERNMENT ASSOCIATION,CENTRAL & LOCAL GOVERNMENT,Chief Executives,Conference Expenses,A43075
Royal Borough of Kingston,18/04/2022,90095248,545.6,REDACTED - PERSONAL DATA,SOCIAL SERVICES - PERSONAL BUDGETS,Adult Social Care & Health,Personal Budget - Direct Payment,A61016
Royal Borough of Kingston,31/03/2022,70022839,546,APEX HOUSING SOLUTIONS LTD,ACCOMMODATION BED & BREAKFAST,Place,Bed & Breakfast,A56000
Royal Borough of Kingston,31/03/2022,70021618,550,MOBYSOFT LTD,IT EQUIPMENT MAINTENANCE,Corporate & Communities,IT Software Maintenance,A45045
Royal Borough of Kingston,04/04/2022,90110915,550.73,HELMAR CARE AND COMMUNITY SERVICES LTD,SOCIAL SERVICES DAY CARE,Adult Social Care & Health,Homecare - new framework,A56127
Royal Borough of Kingston,11/04/2022,90112532,550.73,HELMAR CARE AND COMMUNITY SERVICES LTD,SOCIAL SERVICES DAY CARE,Adult Social Care & Health,Homecare - new framework,A56127
Royal Borough of Kingston,04/04/2022,90110372,551.25,ALPENBEST LTD,SOCIAL SERVICES DAY CARE,Adult Social Care & Health,Homecare - new framework,A56127
Royal Borough of Kingston,04/04/2022,90110534,551.25,ALPENBEST LTD,SOCIAL SERVICES DAY CARE,Adult Social Care & Health,Homecare - new framework,A56127
Royal Borough of Kingston,04/04/2022,90110537,551.25,ALPENBEST LTD,SOCIAL SERVICES DAY CARE,Adult Social Care & Health,Homecare - new framework,A56127
Royal Borough of Kingston,04/04/2022,90110605,551.25,ALPENBEST LTD,SOCIAL SERVICES DAY CARE,Adult Social Care & Health,Homecare - new framework,A56127
Royal Borough of Kingston,04/04/2022,90110693,551.25,ALPENBEST LTD,SOCIAL SERVICES DAY CARE,Adult Social Care & Health,Homecare - new framework,A56127
Royal Borough of Kingston,04/04/2022,90110699,551.25,ALPENBEST LTD,SOCIAL SERVICES DAY CARE,Adult Social Care & Health,Homecare - new framework,A56127
Royal Borough of Kingston,04/04/2022,90110702,551.25,ALPENBEST LTD,SOCIAL SERVICES DAY CARE,Adult Social Care & Health,Homecare - new framework,A56127
Royal Borough of Kingston,04/04/2022,90110761,551.25,ALPENBEST LTD,SOCIAL SERVICES DAY CARE,Adult Social Care & Health,Homecare - new framework,A56127
Royal Borough of Kingston,04/04/2022,90110799,551.25,ALPENBEST LTD,SOCIAL SERVICES DAY CARE,Adult Social Care & Health,Homecare - new framework,A56127
Royal Borough of Kingston,11/04/2022,90112064,551.25,ALPENBEST LTD,SOCIAL SERVICES DAY CARE,Adult Social Care & Health,Homecare - new framework,A56127
Royal Borough of Kingston,11/04/2022,90112145,551.25,ALPENBEST LTD,SOCIAL SERVICES DAY CARE,Adult Social Care & Health,Homecare - new framework,A56127
Royal Borough of Kingston,11/04/2022,90112201,551.25,ALPENBEST LTD,SOCIAL SERVICES DAY CARE,Adult Social Care & Health,Homecare - new framework,A56127
Royal Borough of Kingston,11/04/2022,90112259,551.25,ALPENBEST LTD,SOCIAL SERVICES DAY CARE,Adult Social Care & Health,Homecare - new framework,A56127
Royal Borough of Kingston,11/04/2022,90112335,551.25,ALPENBEST LTD,SOCIAL SERVICES DAY CARE,Adult Social Care & Health,Homecare - new framework,A56127
Royal Borough of Kingston,11/04/2022,90112341,551.25,ALPENBEST LTD,SOCIAL SERVICES DAY CARE,Adult Social Care & Health,Homecare - new framework,A56127
Royal Borough of Kingston,11/04/2022,90112342,551.25,ALPENBEST LTD,SOCIAL SERVICES DAY CARE,Adult Social Care & Health,Homecare - new framework,A56127
Royal Borough of Kingston,11/04/2022,90112390,551.25,ALPENBEST LTD,SOCIAL SERVICES DAY CARE,Adult Social Care & Health,Homecare - new framework,A56127
Royal Borough of Kingston,11/04/2022,90112430,551.25,ALPENBEST LTD,SOCIAL SERVICES DAY CARE,Adult Social Care & Health,Homecare - new framework,A56127
Royal Borough of Kingston,04/04/2022,90112327,551.25,Bright Star Care Service Ltd,SOCIAL SERVICES - OTHER,Adult Social Care & Health,Homecare - new framework,A56127
Royal Borough of Kingston,04/04/2022,90110680,551.25,INSPIRE MANAGEMENT GROUP LTD,SOCIAL SERVICES DAY CARE,Adult Social Care & Health,Homecare - new framework,A56127
Royal Borough of Kingston,04/04/2022,90110857,551.25,INSPIRE MANAGEMENT GROUP LTD,SOCIAL SERVICES DAY CARE,Adult Social Care & Health,Homecare - new framework,A56127
Royal Borough of Kingston,04/04/2022,90110913,551.25,INSPIRE MANAGEMENT GROUP LTD,SOCIAL SERVICES DAY CARE,Adult Social Care & Health,Homecare - new framework,A56127
Royal Borough of Kingston,11/04/2022,90112325,551.25,INSPIRE MANAGEMENT GROUP LTD,SOCIAL SERVICES DAY CARE,Adult Social Care & Health,Homecare - new framework,A56127
Royal Borough of Kingston,11/04/2022,90112480,551.25,INSPIRE MANAGEMENT GROUP LTD,SOCIAL SERVICES DAY CARE,Adult Social Care & Health,Homecare - new framework,A56127
Royal Borough of Kingston,11/04/2022,90112530,551.25,INSPIRE MANAGEMENT GROUP LTD,SOCIAL SERVICES DAY CARE,Adult Social Care & Health,Homecare - new framework,A56127
Royal Borough of Kingston,04/04/2022,90112395,551.25,Rapid Improvement Ltd,SOCIAL SERVICES - OTHER,Adult Social Care & Health,Homecare - new framework,A56127
Royal Borough of Kingston,04/04/2022,90112435,551.25,Rapid Improvement Ltd,SOCIAL SERVICES - OTHER,Adult Social Care & Health,Homecare - new framework,A56127
Royal Borough of Kingston,04/04/2022,90110551,551.25,WANDLE HEALTHCARE SERVICES,SOCIAL SERVICES-HOME CARE,Adult Social Care & Health,Homecare - new framework,A56127
Royal Borough of Kingston,11/04/2022,90112216,551.25,WANDLE HEALTHCARE SERVICES,SOCIAL SERVICES-HOME CARE,Adult Social Care & Health,Homecare - new framework,A56127
Royal Borough of Kingston,04/04/2022,90111047,551.89,WINSOR CARE SERVICES LTD,SOCIAL SERVICES RESIDENTIAL,Adult Social Care & Health,Personal Budget - Third Party,A61019
Royal Borough of Kingston,11/04/2022,90112928,551.89,WINSOR CARE SERVICES LTD,SOCIAL SERVICES RESIDENTIAL,Adult Social Care & Health,Personal Budget - Third Party,A61019
Royal Borough of Kingston,21/03/2022,90092151,552,ALPENBEST LTD,SOCIAL SERVICES DAY CARE,Adult Social Care & Health,Homecare - new framework,A56127
Royal Borough of Kingston,18/04/2022,90095145,552,REDACTED - PERSONAL DATA,SOCIAL SERVICES - PERSONAL BUDGETS,Adult Social Care & Health,Personal Budget - Direct Payment,A61016
Royal Borough of Kingston,18/04/2022,90095309,556.56,REDACTED - PERSONAL DATA,SOCIAL SERVICES - DIRECT PAYMENTS,Adult Social Care & Health,Personal Budget - Direct Payment,A61016
Royal Borough of Kingston,01/04/2022,90112662,556.89,BALANCE (SUPPORT) C.I.C,SOCIAL SERVICES - OTHER,Adult Social Care & Health,Personal Budget - Third Party,A61019
Royal Borough of Kingston,01/04/2022,90112685,556.89,BALANCE (SUPPORT) C.I.C,SOCIAL SERVICES - OTHER,Adult Social Care & Health,Personal Budget - Third Party,A61019
Royal Borough of Kingston,01/04/2022,90112706,556.89,BALANCE (SUPPORT) C.I.C,SOCIAL SERVICES - OTHER,Adult Social Care & Health,Personal Budget - Third Party,A61019
Royal Borough of Kingston,01/04/2022,90112709,556.89,BALANCE (SUPPORT) C.I.C,SOCIAL SERVICES - OTHER,Adult Social Care & Health,Personal Budget - Third Party,A61019
Royal Borough of Kingston,01/04/2022,90112711,556.89,BALANCE (SUPPORT) C.I.C,SOCIAL SERVICES - OTHER,Adult Social Care & Health,Personal Budget - Third Party,A61019
Royal Borough of Kingston,01/04/2022,90112751,556.89,BALANCE (SUPPORT) C.I.C,SOCIAL SERVICES - OTHER,Adult Social Care & Health,Personal Budget - Third Party,A61019
Royal Borough of Kingston,01/04/2022,90112752,556.89,BALANCE (SUPPORT) C.I.C,SOCIAL SERVICES - OTHER,Adult Social Care & Health,Personal Budget - Third Party,A61019
Royal Borough of Kingston,01/04/2022,90112814,556.89,BALANCE (SUPPORT) C.I.C,SOCIAL SERVICES - OTHER,Adult Social Care & Health,Personal Budget - Third Party,A61019
Royal Borough of Kingston,01/04/2022,90112819,556.89,BALANCE (SUPPORT) C.I.C,SOCIAL SERVICES - OTHER,Adult Social Care & Health,Personal Budget - Third Party,A61019
Royal Borough of Kingston,01/04/2022,90112832,556.89,BALANCE (SUPPORT) C.I.C,SOCIAL SERVICES - OTHER,Adult Social Care & Health,Personal Budget - Third Party,A61019
Royal Borough of Kingston,01/04/2022,90113004,556.89,BALANCE (SUPPORT) C.I.C,SOCIAL SERVICES - OTHER,Adult Social Care & Health,Personal Budget - Third Party,A61019
Royal Borough of Kingston,31/03/2022,70021646,557.82,AXIS EUROPE PLC,CONSTRUCTION INDUSTRY,Capital Programme,Asbestos Removal,C10000
Royal Borough of Kingston,04/04/2022,90110472,560,ALPENBEST LTD,SOCIAL SERVICES DAY CARE,Adult Social Care & Health,Homecare - new framework,A56127
Royal Borough of Kingston,11/04/2022,90112150,560,ALPENBEST LTD,SOCIAL SERVICES DAY CARE,Adult Social Care & Health,Homecare - new framework,A56127
Royal Borough of Kingston,01/04/2022,90112669,560.49,BALANCE (SUPPORT) C.I.C,SOCIAL SERVICES - OTHER,Adult Social Care & Health,Personal Budget - Third Party,A61019
Royal Borough of Kingston,21/03/2022,90092416,560.63,ALPENBEST LTD,SOCIAL SERVICES DAY CARE,Adult Social Care & Health,Homecare - new framework,A56127
Royal Borough of Kingston,14/04/2022,70022556,567.02,KENT COUNTY COUNCIL,UTILITIES,Corporate & Communities,Electricity,A21000
Royal Borough of Kingston,18/04/2022,90095261,567.96,REDACTED - PERSONAL DATA,SOCIAL SERVICES - DIRECT PAYMENTS,Adult Social Care & Health,Personal Budget - Direct Payment,A61016
Royal Borough of Kingston,18/04/2022,90095263,567.96,REDACTED - PERSONAL DATA,SOCIAL SERVICES - DIRECT PAYMENTS,Adult Social Care & Health,Personal Budget - Direct Payment,A61016
Royal Borough of Kingston,18/04/2022,90095265,567.96,REDACTED - PERSONAL DATA,SOCIAL SERVICES - DIRECT PAYMENTS,Adult Social Care & Health,Personal Budget - Direct Payment,A61016
Royal Borough of Kingston,18/04/2022,90095271,567.96,REDACTED - PERSONAL DATA,SOCIAL SERVICES - DIRECT PAYMENTS,Adult Social Care & Health,Personal Budget - Direct Payment,A61016
Royal Borough of Kingston,13/04/2022,70023260,568.42,BRITISH TELECOMMUNICATIONS PLC,TELECOMS,Corporate & Communities,Telephones,A45020
Royal Borough of Kingston,01/04/2022,90111652,569.11,WILLOW GRANGE CARE LTD,SOCIAL SERVICES RESIDENTIAL,Adult Social Care & Health,Independent Placements,A56006
Royal Borough of Kingston,14/03/2022,90092201,569.25,Bright Star Care Service Ltd,SOCIAL SERVICES - OTHER,Adult Social Care & Health,Homecare - new framework,A56127
Royal Borough of Kingston,18/04/2022,90095228,576,REDACTED - PERSONAL DATA,SOCIAL SERVICES - PERSONAL BUDGETS,Adult Social Care & Health,Personal Budget - Direct Payment,A61016
Royal Borough of Kingston,11/04/2022,90112267,577.51,ALPENBEST LTD,SOCIAL SERVICES DAY CARE,Adult Social Care & Health,Homecare - new framework,A56127
Royal Borough of Kingston,21/03/2022,90092262,577.88,ALPENBEST LTD,SOCIAL SERVICES DAY CARE,Adult Social Care & Health,Homecare - new framework,A56127
Royal Borough of Kingston,18/04/2022,90095171,578.88,REDACTED - PERSONAL DATA,SOCIAL SERVICES - PERSONAL BUDGETS,Adult Social Care & Health,Personal Budget - Direct Payment,A61016
Royal Borough of Kingston,21/03/2022,90092494,586.5,CARLCARE LTD ,SOCIAL SERVICES-HOME CARE,Adult Social Care & Health,Homecare - new framework,A56127
Royal Borough of Kingston,28/03/2022,90094782,586.5,CARLCARE LTD ,SOCIAL SERVICES-HOME CARE,Adult Social Care & Health,Homecare - new framework,A56127
Royal Borough of Kingston,28/03/2022,90094784,586.5,CARLCARE LTD ,SOCIAL SERVICES-HOME CARE,Adult Social Care & Health,Homecare - new framework,A56127
Royal Borough of Kingston,28/03/2022,90094786,586.5,CARLCARE LTD ,SOCIAL SERVICES-HOME CARE,Adult Social Care & Health,Homecare - new framework,A56127
Royal Borough of Kingston,28/03/2022,90094788,586.5,CARLCARE LTD ,SOCIAL SERVICES-HOME CARE,Adult Social Care & Health,Homecare - new framework,A56127
Royal Borough of Kingston,28/03/2022,90094790,586.5,CARLCARE LTD ,SOCIAL SERVICES-HOME CARE,Adult Social Care & Health,Homecare - new framework,A56127
Royal Borough of Kingston,28/03/2022,90094792,586.5,CARLCARE LTD ,SOCIAL SERVICES-HOME CARE,Adult Social Care & Health,Homecare - new framework,A56127
Royal Borough of Kingston,28/03/2022,90094794,586.5,CARLCARE LTD ,SOCIAL SERVICES-HOME CARE,Adult Social Care & Health,Homecare - new framework,A56127
Royal Borough of Kingston,28/03/2022,90094796,586.5,CARLCARE LTD ,SOCIAL SERVICES-HOME CARE,Adult Social Care & Health,Homecare - new framework,A56127
Royal Borough of Kingston,28/03/2022,90094798,586.5,CARLCARE LTD ,SOCIAL SERVICES-HOME CARE,Adult Social Care & Health,Homecare - new framework,A56127
Royal Borough of Kingston,28/03/2022,90094800,586.5,CARLCARE LTD ,SOCIAL SERVICES-HOME CARE,Adult Social Care & Health,Homecare - new framework,A56127
Royal Borough of Kingston,28/03/2022,90094802,586.5,CARLCARE LTD ,SOCIAL SERVICES-HOME CARE,Adult Social Care & Health,Homecare - new framework,A56127
Royal Borough of Kingston,28/03/2022,90094804,586.5,CARLCARE LTD ,SOCIAL SERVICES-HOME CARE,Adult Social Care & Health,Homecare - new framework,A56127
Royal Borough of Kingston,28/03/2022,90094806,586.5,CARLCARE LTD ,SOCIAL SERVICES-HOME CARE,Adult Social Care & Health,Homecare - new framework,A56127
Royal Borough of Kingston,28/03/2022,90094808,586.5,CARLCARE LTD ,SOCIAL SERVICES-HOME CARE,Adult Social Care & Health,Homecare - new framework,A56127
Royal Borough of Kingston,28/03/2022,90094810,586.5,CARLCARE LTD ,SOCIAL SERVICES-HOME CARE,Adult Social Care & Health,Homecare - new framework,A56127
Royal Borough of Kingston,28/03/2022,90094812,586.5,CARLCARE LTD ,SOCIAL SERVICES-HOME CARE,Adult Social Care & Health,Homecare - new framework,A56127
Royal Borough of Kingston,28/03/2022,90094814,586.5,CARLCARE LTD ,SOCIAL SERVICES-HOME CARE,Adult Social Care & Health,Homecare - new framework,A56127
Royal Borough of Kingston,28/03/2022,90094816,586.5,CARLCARE LTD ,SOCIAL SERVICES-HOME CARE,Adult Social Care & Health,Homecare - new framework,A56127
Royal Borough of Kingston,28/03/2022,90094818,586.5,CARLCARE LTD ,SOCIAL SERVICES-HOME CARE,Adult Social Care & Health,Homecare - new framework,A56127
Royal Borough of Kingston,31/03/2022,70022915,588,Buildvantage Limited,ACCOMMODATION BED & BREAKFAST,Place,Bed & Breakfast,A56000
Royal Borough of Kingston,18/04/2022,90095234,589.29,REDACTED - PERSONAL DATA,SOCIAL SERVICES - DIRECT PAYMENTS,Adult Social Care & Health,Personal Budget - Direct Payment,A61016
Royal Borough of Kingston,01/04/2022,90112981,591.43,REMARK ! LIMITED,INTERPRETERS,Adult Social Care & Health,Personal Budget - Third Party,A61019
Royal Borough of Kingston,01/04/2022,70022241,592,QUARTZ PROPERTIES ( LONDON ) LTD,ACCOMMODATION BED & BREAKFAST,Place,Bed & Breakfast,A56000
Royal Borough of Kingston,05/04/2022,90092891,592.92,REDACTED - PERSONAL DATA,CHILDMINDERS START UP GRANT,Schools,PVI Providers,A60014
Royal Borough of Kingston,05/04/2022,90092852,592.92,REDACTED - PERSONAL DATA,CHILDMINDERS START UP GRANT,Schools,PVI Providers,A60014
Royal Borough of Kingston,05/04/2022,90092903,592.92,REDACTED - PERSONAL DATA,CHILDMINDERS START UP GRANT,Schools,PVI Providers,A60014
Royal Borough of Kingston,05/04/2022,90092909,592.92,REDACTED - PERSONAL DATA,CHILDMINDERS START UP GRANT,Schools,PVI Providers,A60014
Royal Borough of Kingston,05/04/2022,90092796,592.92,REDACTED - PERSONAL DATA,CHILDMINDERS START UP GRANT,Schools,PVI Providers,A60014
Royal Borough of Kingston,05/04/2022,90092941,592.92,REDACTED - PERSONAL DATA,OPERATIONAL EQUIPMENT/MATERIAL,Schools,PVI Providers,A60014
Royal Borough of Kingston,05/04/2022,90092907,592.92,REDACTED - PERSONAL DATA,CHILDMINDERS START UP GRANT,Schools,PVI Providers,A60014
Royal Borough of Kingston,05/04/2022,90092894,592.92,REDACTED - PERSONAL DATA,CHILDMINDERS START UP GRANT,Schools,PVI Providers,A60014
Royal Borough of Kingston,05/04/2022,90092862,592.92,REDACTED - PERSONAL DATA,CHILDMINDERS START UP GRANT,Schools,PVI Providers,A60014
Royal Borough of Kingston,05/04/2022,90092788,592.92,REDACTED - PERSONAL DATA,CHILDMINDERS START UP GRANT,Schools,PVI Providers,A60014
Royal Borough of Kingston,01/04/2022,90112036,594.42,BALANCE (SUPPORT) C.I.C,SOCIAL SERVICES - OTHER,Adult Social Care & Health,Supported Living - new framework,A56126
Royal Borough of Kingston,01/04/2022,90112797,594.43,BALANCE (SUPPORT) C.I.C,SOCIAL SERVICES - OTHER,Adult Social Care & Health,Personal Budget - Third Party,A61019
Royal Borough of Kingston,21/03/2022,70022145,595,ALAN GREENWOOD AND SONS,LEGAL & PROFESSIONAL SERVICES,Adult Social Care & Health,Professional Fees,A44066
Royal Borough of Kingston,21/03/2022,90092677,595,BLUE ARROW CARE LTD,SOCIAL SERVICES-HOME CARE,Adult Social Care & Health,Personal Budget - Third Party,A61019
Royal Borough of Kingston,21/03/2022,90092672,595,WINSOR CARE SERVICES LTD,SOCIAL SERVICES RESIDENTIAL,Adult Social Care & Health,Personal Budget - Third Party,A61019
Royal Borough of Kingston,21/03/2022,90092675,595,WINSOR CARE SERVICES LTD,SOCIAL SERVICES RESIDENTIAL,Adult Social Care & Health,Personal Budget - Third Party,A61019
Royal Borough of Kingston,21/03/2022,90092680,595,WINSOR CARE SERVICES LTD,SOCIAL SERVICES RESIDENTIAL,Adult Social Care & Health,Personal Budget - Third Party,A61019
Royal Borough of Kingston,21/03/2022,90092705,595,WINSOR CARE SERVICES LTD,SOCIAL SERVICES RESIDENTIAL,Adult Social Care & Health,Personal Budget - Third Party,A61019
Royal Borough of Kingston,04/04/2022,90110839,595.01,CARLCARE LTD ,SOCIAL SERVICES-HOME CARE,Adult Social Care & Health,Homecare - new framework,A56127
Royal Borough of Kingston,11/04/2022,90112463,595.01,CARLCARE LTD ,SOCIAL SERVICES-HOME CARE,Adult Social Care & Health,Homecare - new framework,A56127
Royal Borough of Kingston,21/03/2022,90092490,595.13,ALPENBEST LTD,SOCIAL SERVICES DAY CARE,Adult Social Care & Health,Homecare - new framework,A56127
Royal Borough of Kingston,18/04/2022,90095104,596.36,REDACTED - PERSONAL DATA,SOCIAL SERVICES - DIRECT PAYMENTS,Adult Social Care & Health,Personal Budget - Direct Payment,A61016
Royal Borough of Kingston,01/04/2022,90112032,598.34,BALANCE (SUPPORT) C.I.C,SOCIAL SERVICES - OTHER,Adult Social Care & Health,Supported Living - new framework,A56126
Royal Borough of Kingston,31/03/2022,70023123,598.8,APEX HOUSING SOLUTIONS LTD,ACCOMMODATION BED & BREAKFAST,Place,Bed & Breakfast,A56000
Royal Borough of Kingston,05/04/2022,90092915,599.51,TINEY NURSERY,CHILDMINDERS START UP GRANT,Schools,PVI Providers,A60014
Royal Borough of Kingston,25/04/2022,90111576,600,LYNSOUTH DEVELOPMENT LIMITED,PLS LANDLORDS,Place,PSL Payments To Landlords,A22031
Royal Borough of Kingston,01/04/2022,90111875,600,REDACTED - PERSONAL DATA,SOCIAL SERVICES RESIDENTIAL,Adult Social Care & Health,Independent Placements,A56006
Royal Borough of Kingston,18/04/2022,90095057,600,REDACTED - PERSONAL DATA,SOCIAL SERVICES - DIRECT PAYMENTS,Adult Social Care & Health,Personal Budget - Direct Payment,A61016
Royal Borough of Kingston,18/04/2022,90095225,600,REDACTED - PERSONAL DATA,SOCIAL SERVICES - PERSONAL BUDGETS,Adult Social Care & Health,Personal Budget - Direct Payment,A61016
Royal Borough of Kingston,18/04/2022,90095294,600,REDACTED - PERSONAL DATA,SOCIAL SERVICES - DIRECT PAYMENTS,Adult Social Care & Health,Personal Budget - Direct Payment,A61016
Royal Borough of Kingston,04/04/2022,70021756,600,THE UK ASSOCIATION FOR  MUSIC  EDUCATION ,CHARITIES & VOLUNTARY ORGNS,Corporate & Communities,Subscriptions,A47010
Royal Borough of Kingston,12/04/2022,70022196,600.88,LONDON BOROUGH OF SUTTON ,CENTRAL & LOCAL GOVERNMENT,Place,Bed & Breakfast,A56000
Royal Borough of Kingston,18/04/2022,90095076,601.08,REDACTED - PERSONAL DATA,SOCIAL SERVICES - DIRECT PAYMENTS,Adult Social Care & Health,Personal Budget - Direct Payment,A61016
Royal Borough of Kingston,07/03/2022,90112050,601.39,BALANCE (SUPPORT) C.I.C,SOCIAL SERVICES - OTHER,Adult Social Care & Health,Supported Living - new framework,A56126
Royal Borough of Kingston,04/04/2022,90111032,603.63,BLUE ARROW CARE LTD,SOCIAL SERVICES-HOME CARE,Adult Social Care & Health,Personal Budget - Third Party,A61019
Royal Borough of Kingston,11/04/2022,90112912,603.63,BLUE ARROW CARE LTD,SOCIAL SERVICES-HOME CARE,Adult Social Care & Health,Personal Budget - Third Party,A61019
Royal Borough of Kingston,04/04/2022,90111027,603.63,WINSOR CARE SERVICES LTD,SOCIAL SERVICES RESIDENTIAL,Adult Social Care & Health,Personal Budget - Third Party,A61019
Royal Borough of Kingston,04/04/2022,90111030,603.63,WINSOR CARE SERVICES LTD,SOCIAL SERVICES RESIDENTIAL,Adult Social Care & Health,Personal Budget - Third Party,A61019
Royal Borough of Kingston,04/04/2022,90111035,603.63,WINSOR CARE SERVICES LTD,SOCIAL SERVICES RESIDENTIAL,Adult Social Care & Health,Personal Budget - Third Party,A61019
Royal Borough of Kingston,04/04/2022,90111046,603.63,WINSOR CARE SERVICES LTD,SOCIAL SERVICES RESIDENTIAL,Adult Social Care & Health,Personal Budget - Third Party,A61019
Royal Borough of Kingston,04/04/2022,90111068,603.63,WINSOR CARE SERVICES LTD,SOCIAL SERVICES RESIDENTIAL,Adult Social Care & Health,Personal Budget - Third Party,A61019
Royal Borough of Kingston,11/04/2022,90112907,603.63,WINSOR CARE SERVICES LTD,SOCIAL SERVICES RESIDENTIAL,Adult Social Care & Health,Personal Budget - Third Party,A61019
Royal Borough of Kingston,11/04/2022,90112910,603.63,WINSOR CARE SERVICES LTD,SOCIAL SERVICES RESIDENTIAL,Adult Social Care & Health,Personal Budget - Third Party,A61019
Royal Borough of Kingston,11/04/2022,90112915,603.63,WINSOR CARE SERVICES LTD,SOCIAL SERVICES RESIDENTIAL,Adult Social Care & Health,Personal Budget - Third Party,A61019
Royal Borough of Kingston,11/04/2022,90112927,603.63,WINSOR CARE SERVICES LTD,SOCIAL SERVICES RESIDENTIAL,Adult Social Care & Health,Personal Budget - Third Party,A61019
Royal Borough of Kingston,11/04/2022,90112939,603.63,WINSOR CARE SERVICES LTD,SOCIAL SERVICES RESIDENTIAL,Adult Social Care & Health,Personal Budget - Third Party,A61019
Royal Borough of Kingston,21/03/2022,90092172,603.75,ALPENBEST LTD,SOCIAL SERVICES DAY CARE,Adult Social Care & Health,Homecare - new framework,A56127
Royal Borough of Kingston,21/03/2022,90092228,603.75,ALPENBEST LTD,SOCIAL SERVICES DAY CARE,Adult Social Care & Health,Homecare - new framework,A56127
Royal Borough of Kingston,21/03/2022,90092261,603.75,ALPENBEST LTD,SOCIAL SERVICES DAY CARE,Adult Social Care & Health,Homecare - new framework,A56127
Royal Borough of Kingston,21/03/2022,90092520,603.75,ALPENBEST LTD,SOCIAL SERVICES DAY CARE,Adult Social Care & Health,Homecare - new framework,A56127
Royal Borough of Kingston,21/03/2022,90092688,603.75,ALPENBEST LTD,SOCIAL SERVICES DAY CARE,Adult Social Care & Health,Personal Budget - Third Party,A61019
Royal Borough of Kingston,04/04/2022,90110834,603.75,ALPENBEST LTD,SOCIAL SERVICES DAY CARE,Adult Social Care & Health,Homecare - new framework,A56127
Royal Borough of Kingston,14/03/2022,90092707,603.75,Bright Star Care Service Ltd,SOCIAL SERVICES - OTHER,Adult Social Care & Health,Personal Budget - Third Party,A61019
Royal Borough of Kingston,21/03/2022,90095503,603.75,Bright Star Care Service Ltd,SOCIAL SERVICES - OTHER,Adult Social Care & Health,Personal Budget - Third Party,A61019
Royal Borough of Kingston,21/03/2022,90092111,603.75,Goldsmith Personnel Ltd,SOCIAL SERVICES - OTHER,Adult Social Care & Health,Homecare - new framework,A56127
Royal Borough of Kingston,21/03/2022,90092115,603.75,INSPIRE MANAGEMENT GROUP LTD,SOCIAL SERVICES DAY CARE,Adult Social Care & Health,Homecare - new framework,A56127
Royal Borough of Kingston,21/03/2022,90092517,603.75,INSPIRE MANAGEMENT GROUP LTD,SOCIAL SERVICES DAY CARE,Adult Social Care & Health,Homecare - new framework,A56127
Royal Borough of Kingston,18/04/2022,90095245,605.36,REDACTED - PERSONAL DATA,SOCIAL SERVICES - DIRECT PAYMENTS,Adult Social Care & Health,Personal Budget - Direct Payment,A61016
Royal Borough of Kingston,21/01/2021,70019388,606.67,Ideagen Gael Ltd,FINANCIAL / INSURANCE INSTNS,Place,IT Software Purchase,A45040
Royal Borough of Kingston,13/04/2022,70022236,608.52,KENT COUNTY COUNCIL,UTILITIES,Housing Revenue Account,Gas,A21003
Royal Borough of Kingston,06/04/2022,70022003,610.79,JM ADDINGTON & CO LIMITED,PREMISES - FURNISHINGS,Housing Revenue Account,Equipment And Materials Purchase,A40000
Royal Borough of Kingston,01/04/2022,90111623,612,WILLOW GRANGE CARE LTD,SOCIAL SERVICES RESIDENTIAL,Adult Social Care & Health,Independent Placements,A56006
Royal Borough of Kingston,04/04/2022,90110506,612.5,ALPENBEST LTD,SOCIAL SERVICES DAY CARE,Adult Social Care & Health,Homecare - new framework,A56127
Royal Borough of Kingston,04/04/2022,90110571,612.5,ALPENBEST LTD,SOCIAL SERVICES DAY CARE,Adult Social Care & Health,Homecare - new framework,A56127
Royal Borough of Kingston,04/04/2022,90110866,612.5,ALPENBEST LTD,SOCIAL SERVICES DAY CARE,Adult Social Care & Health,Homecare - new framework,A56127
Royal Borough of Kingston,04/04/2022,90111040,612.5,ALPENBEST LTD,SOCIAL SERVICES DAY CARE,Adult Social Care & Health,Personal Budget - Third Party,A61019
Royal Borough of Kingston,11/04/2022,90112179,612.5,ALPENBEST LTD,SOCIAL SERVICES DAY CARE,Adult Social Care & Health,Homecare - new framework,A56127
Royal Borough of Kingston,11/04/2022,90112488,612.5,ALPENBEST LTD,SOCIAL SERVICES DAY CARE,Adult Social Care & Health,Homecare - new framework,A56127
Royal Borough of Kingston,11/04/2022,90112921,612.5,ALPENBEST LTD,SOCIAL SERVICES DAY CARE,Adult Social Care & Health,Personal Budget - Third Party,A61019
Royal Borough of Kingston,04/04/2022,90112942,612.5,Bright Star Care Service Ltd,SOCIAL SERVICES - OTHER,Adult Social Care & Health,Personal Budget - Third Party,A61019
Royal Borough of Kingston,04/04/2022,90110615,612.51,ALPENBEST LTD,SOCIAL SERVICES DAY CARE,Adult Social Care & Health,Homecare - new framework,A56127
Royal Borough of Kingston,04/04/2022,90110428,612.51,INSPIRE MANAGEMENT GROUP LTD,SOCIAL SERVICES DAY CARE,Adult Social Care & Health,Homecare - new framework,A56127
Royal Borough of Kingston,04/04/2022,90110863,612.51,INSPIRE MANAGEMENT GROUP LTD,SOCIAL SERVICES DAY CARE,Adult Social Care & Health,Homecare - new framework,A56127
Royal Borough of Kingston,11/04/2022,90112116,612.51,INSPIRE MANAGEMENT GROUP LTD,SOCIAL SERVICES DAY CARE,Adult Social Care & Health,Homecare - new framework,A56127
Royal Borough of Kingston,11/04/2022,90112485,612.51,INSPIRE MANAGEMENT GROUP LTD,SOCIAL SERVICES DAY CARE,Adult Social Care & Health,Homecare - new framework,A56127
Royal Borough of Kingston,06/04/2022,70022003,616.88,JM ADDINGTON & CO LIMITED,PREMISES - FURNISHINGS,Housing Revenue Account,Equipment And Materials Purchase,A40000
Royal Borough of Kingston,01/04/2022,90112970,618.09,REDACTED - PERSONAL DATA,SOCIAL SERVICES - PERSONAL BUDGETS,Adult Social Care & Health,Personal Budget - Third Party,A61019
Royal Borough of Kingston,01/04/2022,90112978,618.09,REDACTED - PERSONAL DATA,SOCIAL SERVICES - PERSONAL BUDGETS,Adult Social Care & Health,Personal Budget - Third Party,A61019
Royal Borough of Kingston,01/04/2022,90112852,618.13,ZEDCARZ LTD,TAXI AND COACH HIRE,Adult Social Care & Health,Personal Budget - Third Party,A61019
Royal Borough of Kingston,21/03/2022,90092363,621,ALPENBEST LTD,SOCIAL SERVICES DAY CARE,Adult Social Care & Health,Homecare - new framework,A56127
Royal Borough of Kingston,21/03/2022,90092560,621,HELMAR CARE AND COMMUNITY SERVICES LTD,SOCIAL SERVICES DAY CARE,Adult Social Care & Health,Homecare - new framework,A56127
Royal Borough of Kingston,11/04/2022,90112334,621.25,ALPENBEST LTD,SOCIAL SERVICES DAY CARE,Adult Social Care & Health,Homecare - new framework,A56127
Royal Borough of Kingston,01/04/2022,90111969,621.56,LARCHE BOGNOR REGIS,SOCIAL SERVICES - OTHER,Adult Social Care & Health,Independent Placements,A56006
Royal Borough of Kingston,18/03/2022,70023048,621.57,ANGLIAN WATER BUSINESS NATIONAL LTD,UTILITIES,Housing Revenue Account,Water Services,A24005
Royal Borough of Kingston,01/04/2022,90111618,623.4,ALBERT RESIDENTIAL HOME,SOCIAL SERVICES RESIDENTIAL,Adult Social Care & Health,Independent Placements,A56006
Royal Borough of Kingston,01/04/2022,90119045,624.04,ENHANCEABLE,SOCIAL SERVICES - OTHER,Adult Social Care & Health,Personal Budget - Third Party,A61019
Royal Borough of Kingston,01/04/2022,90112966,626.31,REDACTED - PERSONAL DATA,SOCIAL SERVICES - PERSONAL BUDGETS,Adult Social Care & Health,Personal Budget - Third Party,A61019
Royal Borough of Kingston,01/04/2022,90112586,626.86,Gold Care Homes,SOCIAL SERVICES RESIDENTIAL,Adult Social Care & Health,Personal Budget - Third Party,A61019
Royal Borough of Kingston,01/04/2022,90112608,626.86,Gold Care Homes,SOCIAL SERVICES RESIDENTIAL,Adult Social Care & Health,Personal Budget - Third Party,A61019
Royal Borough of Kingston,01/04/2022,90112774,627.73,THE HOME FARM TRUST LTD,SOCIAL SERVICES RESIDENTIAL,Adult Social Care & Health,Personal Budget - Third Party,A61019
Royal Borough of Kingston,28/03/2022,90094250,630,ALPENBEST LTD,SOCIAL SERVICES DAY CARE,Adult Social Care & Health,Homecare - new framework,A56127
Royal Borough of Kingston,04/04/2022,90110692,630,ALPENBEST LTD,SOCIAL SERVICES DAY CARE,Adult Social Care & Health,Homecare - new framework,A56127
Royal Borough of Kingston,04/04/2022,90110914,630,HELMAR CARE AND COMMUNITY SERVICES LTD,SOCIAL SERVICES DAY CARE,Adult Social Care & Health,Homecare - new framework,A56127
Royal Borough of Kingston,11/04/2022,90112531,630,HELMAR CARE AND COMMUNITY SERVICES LTD,SOCIAL SERVICES DAY CARE,Adult Social Care & Health,Homecare - new framework,A56127
Royal Borough of Kingston,01/04/2022,90119080,642.37,GENEVA ROAD LIMITED,SOCIAL SERVICES RESIDENTIAL,Adult Social Care & Health,Personal Budget - Third Party,A61019
Royal Borough of Kingston,01/04/2022,90092033,642.86,ELMGLADE CARE HOME,SOCIAL SERVICES-HOME CARE,Adult Social Care & Health,Independent Placements,A56006
Royal Borough of Kingston,01/04/2022,90119069,642.86,GENEVA ROAD LIMITED,SOCIAL SERVICES RESIDENTIAL,Adult Social Care & Health,Personal Budget - Third Party,A61019
Royal Borough of Kingston,01/04/2022,90119070,642.86,GENEVA ROAD LIMITED,SOCIAL SERVICES RESIDENTIAL,Adult Social Care & Health,Personal Budget - Third Party,A61019
Royal Borough of Kingston,01/04/2022,90119119,642.86,GENEVA ROAD LIMITED,SOCIAL SERVICES RESIDENTIAL,Adult Social Care & Health,Personal Budget - Third Party,A61019
Royal Borough of Kingston,01/04/2022,90119046,642.86,HF TRUST LTD ,SOCIAL SERVICES DAY CARE,Adult Social Care & Health,Personal Budget - Third Party,A61019
Royal Borough of Kingston,01/04/2022,90119057,642.86,HF TRUST LTD ,SOCIAL SERVICES DAY CARE,Adult Social Care & Health,Personal Budget - Third Party,A61019
Royal Borough of Kingston,01/04/2022,90119065,642.86,HF TRUST LTD ,SOCIAL SERVICES DAY CARE,Adult Social Care & Health,Personal Budget - Third Party,A61019
Royal Borough of Kingston,01/04/2022,90119087,642.86,HF TRUST LTD ,SOCIAL SERVICES DAY CARE,Adult Social Care & Health,Personal Budget - Third Party,A61019
Royal Borough of Kingston,01/04/2022,90119091,642.86,HF TRUST LTD ,SOCIAL SERVICES DAY CARE,Adult Social Care & Health,Personal Budget - Third Party,A61019
Royal Borough of Kingston,01/04/2022,90119098,642.86,HF TRUST LTD ,SOCIAL SERVICES DAY CARE,Adult Social Care & Health,Personal Budget - Third Party,A61019
Royal Borough of Kingston,01/04/2022,90119099,642.86,HF TRUST LTD ,SOCIAL SERVICES DAY CARE,Adult Social Care & Health,Personal Budget - Third Party,A61019
Royal Borough of Kingston,01/04/2022,90119101,642.86,HF TRUST LTD ,SOCIAL SERVICES DAY CARE,Adult Social Care & Health,Personal Budget - Third Party,A61019
Royal Borough of Kingston,01/04/2022,90119110,642.86,HF TRUST LTD ,SOCIAL SERVICES DAY CARE,Adult Social Care & Health,Personal Budget - Third Party,A61019
Royal Borough of Kingston,01/04/2022,90119116,642.86,HF TRUST LTD ,SOCIAL SERVICES DAY CARE,Adult Social Care & Health,Personal Budget - Third Party,A61019
Royal Borough of Kingston,31/03/2022,70021752,644,CITYSPRINT (UK) LTD,OFFICE SERVICES,Corporate & Communities,Books,A43050
Royal Borough of Kingston,31/03/2022,70022831,648.7,APEX HOUSING SOLUTIONS LTD,ACCOMMODATION BED & BREAKFAST,Place,Bed & Breakfast,A56000
Royal Borough of Kingston,01/04/2022,90112722,649.71,BALANCE (SUPPORT) C.I.C,SOCIAL SERVICES - OTHER,Adult Social Care & Health,Personal Budget - Third Party,A61019
Royal Borough of Kingston,01/04/2022,90112829,649.71,BALANCE (SUPPORT) C.I.C,SOCIAL SERVICES - OTHER,Adult Social Care & Health,Personal Budget - Third Party,A61019
Royal Borough of Kingston,14/04/2022,70022345,650,F H & G LIMITED,LEGAL & PROFESSIONAL SERVICES,Housing Revenue Account,Professional Fees,A44066
Royal Borough of Kingston,22/04/2022,70023010,650,F H & G LIMITED,LEGAL & PROFESSIONAL SERVICES,Housing Revenue Account,Professional Fees,A44066
Royal Borough of Kingston,04/04/2022,70021770,650,WEB PRESENTER TRAINING LTD,OPERATIONAL EQUIPMENT/MATERIAL,Corporate & Communities,Professional Fees,A44066
Royal Borough of Kingston,31/03/2022,70021648,651.35,AXIS EUROPE PLC,CONSTRUCTION INDUSTRY,Capital Programme,Asbestos Removal,C10000
Royal Borough of Kingston,01/04/2022,90112806,652.84,THE HOME FARM TRUST LTD,SOCIAL SERVICES RESIDENTIAL,Adult Social Care & Health,Personal Budget - Third Party,A61019
Royal Borough of Kingston,18/04/2022,90095242,656.24,REDACTED - PERSONAL DATA,SOCIAL SERVICES - DIRECT PAYMENTS,Adult Social Care & Health,Personal Budget - Direct Payment,A61016
Royal Borough of Kingston,01/04/2022,90112985,657.22,JUST MY PA,SOCIAL SERVICES RESIDENTIAL,Adult Social Care & Health,Personal Budget - Third Party,A61019
Royal Borough of Kingston,14/03/2022,90092101,664.13,Bright Star Care Service Ltd,SOCIAL SERVICES - OTHER,Adult Social Care & Health,Homecare - new framework,A56127
Royal Borough of Kingston,14/03/2022,90092203,664.13,Bright Star Care Service Ltd,SOCIAL SERVICES - OTHER,Adult Social Care & Health,Homecare - new framework,A56127
Royal Borough of Kingston,14/03/2022,90092205,664.13,Bright Star Care Service Ltd,SOCIAL SERVICES - OTHER,Adult Social Care & Health,Homecare - new framework,A56127
Royal Borough of Kingston,21/03/2022,90094149,664.13,Bright Star Care Service Ltd,SOCIAL SERVICES - OTHER,Adult Social Care & Health,Homecare - new framework,A56127
Royal Borough of Kingston,21/03/2022,90094323,664.13,Bright Star Care Service Ltd,SOCIAL SERVICES - OTHER,Adult Social Care & Health,Homecare - new framework,A56127
Royal Borough of Kingston,21/03/2022,90092409,664.13,INSPIRE MANAGEMENT GROUP LTD,SOCIAL SERVICES DAY CARE,Adult Social Care & Health,Homecare - new framework,A56127
Royal Borough of Kingston,30/04/2022,90112854,664.29,KENT COUNTY COUNCIL,SOCIAL SERVICES - OTHER,Adult Social Care & Health,Personal Budget - Third Party,A61019
Royal Borough of Kingston,30/11/2021,70021738,664.59,KINGSTON TOWN CENTRE MANAGEMENT LTD,GRANTS & EX GRATIA PAYMENTS,Place,Electricity,A21000
Royal Borough of Kingston,18/04/2022,90095244,665,REDACTED - PERSONAL DATA,SOCIAL SERVICES - PERSONAL BUDGETS,Adult Social Care & Health,Personal Budget - Direct Payment,A61016
Royal Borough of Kingston,05/04/2022,70022361,665.4,INDEPENDENT LIVING LTD,SOCIAL SERVICES - OTHER,Capital Programme,Grants Given For Capital Purposes,C20004
Royal Borough of Kingston,24/03/2022,70021482,665.45,KENT COUNTY COUNCIL,UTILITIES,Corporate & Communities,Electricity,A21000
Royal Borough of Kingston,01/04/2022,70022241,666,QUARTZ PROPERTIES ( LONDON ) LTD,ACCOMMODATION BED & BREAKFAST,Place,Bed & Breakfast,A56000
Royal Borough of Kingston,15/03/2022,70021786,666.15,NPOWER LIMITED,UTILITIES,Housing Revenue Account,Electricity,A21000
Royal Borough of Kingston,07/03/2022,90112048,668.21,BALANCE (SUPPORT) C.I.C,SOCIAL SERVICES - OTHER,Adult Social Care & Health,Supported Living - new framework,A56126
Royal Borough of Kingston,01/04/2022,90119129,671.14,GENEVA ROAD LIMITED,SOCIAL SERVICES RESIDENTIAL,Adult Social Care & Health,Personal Budget - Third Party,A61019
Royal Borough of Kingston,04/04/2022,90119041,673.56,BALANCE (SUPPORT) C.I.C,SOCIAL SERVICES - OTHER,Adult Social Care & Health,Supported Living - new framework,A56126
Royal Borough of Kingston,04/04/2022,90112214,673.75,Bright Star Care Service Ltd,SOCIAL SERVICES - OTHER,Adult Social Care & Health,Homecare - new framework,A56127
Royal Borough of Kingston,04/04/2022,90112109,673.76,Bright Star Care Service Ltd,SOCIAL SERVICES - OTHER,Adult Social Care & Health,Homecare - new framework,A56127
Royal Borough of Kingston,04/04/2022,90110755,673.76,INSPIRE MANAGEMENT GROUP LTD,SOCIAL SERVICES DAY CARE,Adult Social Care & Health,Homecare - new framework,A56127
Royal Borough of Kingston,11/04/2022,90112383,673.76,INSPIRE MANAGEMENT GROUP LTD,SOCIAL SERVICES DAY CARE,Adult Social Care & Health,Homecare - new framework,A56127
Royal Borough of Kingston,05/04/2022,90092806,676.08,BRIGHT HORIZONS FAMILY SOLUTIONS,CHILDMINDERS START UP GRANT,Schools,2 Yr Old Place Funding,A60000
Royal Borough of Kingston,05/04/2022,90092808,676.08,BRIGHT HORIZONS FAMILY SOLUTIONS,CHILDMINDERS START UP GRANT,Schools,2 Yr Old Place Funding,A60000
Royal Borough of Kingston,05/04/2022,90092809,676.08,BRIGHT HORIZONS FAMILY SOLUTIONS,CHILDMINDERS START UP GRANT,Schools,2 Yr Old Place Funding,A60000
Royal Borough of Kingston,05/04/2022,90092842,676.08,REDACTED - PERSONAL DATA,CHILDMINDERS START UP GRANT,Schools,2 Yr Old Place Funding,A60000
Royal Borough of Kingston,05/04/2022,90092815,676.08,REDACTED - PERSONAL DATA,CHILDMINDERS START UP GRANT,Schools,2 Yr Old Place Funding,A60000
Royal Borough of Kingston,05/04/2022,90092825,676.08,KNOLLMEAD PRIMARY SCHOOL,SCHOOL FUNDS,Schools,2 Yr Old Place Funding,A60000
Royal Borough of Kingston,05/04/2022,90092813,676.08,DICKY BIRDS PRE SCHOOL NURSERIES LTD,CHILDMINDERS START UP GRANT,Schools,2 Yr Old Place Funding,A60000
Royal Borough of Kingston,05/04/2022,90092826,676.08,REDACTED - PERSONAL DATA,CHILDMINDERS START UP GRANT,Schools,2 Yr Old Place Funding,A60000
Royal Borough of Kingston,05/04/2022,90092818,676.08,FLISS CHILDMINDING SERVICES,CHILDMINDERS START UP GRANT,Schools,2 Yr Old Place Funding,A60000
Royal Borough of Kingston,05/04/2022,90092832,676.08,REDACTED - PERSONAL DATA,CHILDMINDERS START UP GRANT,Schools,2 Yr Old Place Funding,A60000
Royal Borough of Kingston,05/04/2022,90092831,676.08,REDACTED - PERSONAL DATA,CHILDMINDERS START UP GRANT,Schools,2 Yr Old Place Funding,A60000
Royal Borough of Kingston,05/04/2022,90092782,676.08,NUTKINS DAY NURSERY,CHILDMINDERS START UP GRANT,Schools,2 Yr Old Place Funding,A60000
Royal Borough of Kingston,05/04/2022,90092819,676.08,STARS DAY NURSERY,SOCIAL SERVICES DAY CARE,Schools,2 Yr Old Place Funding,A60000
Royal Borough of Kingston,01/04/2022,90112033,679.33,BALANCE (SUPPORT) C.I.C,SOCIAL SERVICES - OTHER,Adult Social Care & Health,Supported Living - new framework,A56126
Royal Borough of Kingston,01/04/2022,90112037,679.33,BALANCE (SUPPORT) C.I.C,SOCIAL SERVICES - OTHER,Adult Social Care & Health,Supported Living - new framework,A56126
Royal Borough of Kingston,06/04/2022,70022003,679.63,JM ADDINGTON & CO LIMITED,PREMISES - FURNISHINGS,Housing Revenue Account,Equipment And Materials Purchase,A40000
Royal Borough of Kingston,18/04/2022,90095213,679.76,REDACTED - PERSONAL DATA,SOCIAL SERVICES - PERSONAL BUDGETS,Adult Social Care & Health,Personal Budget - Direct Payment,A61016
Royal Borough of Kingston,01/04/2022,90111820,680.55,WILLOW GRANGE CARE LTD,SOCIAL SERVICES RESIDENTIAL,Adult Social Care & Health,Independent Placements,A56006
Royal Borough of Kingston,31/03/2022,70021535,686.17,METIS CONSULTANTS LTD,TEMP STAFF & CONSULTANCY,Corporate & Communities,Flood water management - RBK,A56050
Royal Borough of Kingston,18/04/2022,90095152,687.56,REDACTED - PERSONAL DATA,SOCIAL SERVICES - DIRECT PAYMENTS,Adult Social Care & Health,Personal Budget - Direct Payment,A61016
Royal Borough of Kingston,15/04/2022,70022680,688.73,NPOWER LIMITED,UTILITIES,Housing Revenue Account,Electricity,A21000
Royal Borough of Kingston,04/04/2022,90110438,690,CN Healthcare,SOCIAL SERVICES - OTHER,Adult Social Care & Health,Homecare - new framework,A56127
Royal Borough of Kingston,18/04/2022,90095217,692,REDACTED - PERSONAL DATA,SOCIAL SERVICES - PERSONAL BUDGETS,Adult Social Care & Health,Personal Budget - Direct Payment,A61016
Royal Borough of Kingston,01/04/2022,90113015,693.12,BALANCE (SUPPORT) C.I.C,SOCIAL SERVICES - OTHER,Adult Social Care & Health,Personal Budget - Third Party,A61019
Royal Borough of Kingston,28/03/2022,90094333,694.93,CARLCARE LTD ,SOCIAL SERVICES-HOME CARE,Adult Social Care & Health,Homecare - new framework,A56127
Royal Borough of Kingston,01/04/2022,90092034,694.95,LONDON RESIDENTIAL HEALTHCARE LTD,SOCIAL SERVICES RESIDENTIAL,Adult Social Care & Health,Independent Placements,A56006
Royal Borough of Kingston,01/04/2022,90110148,699,FOUR SEASONS HEALTHCARE,SOCIAL SERVICES RESIDENTIAL,Adult Social Care & Health,Independent Placements,A56006
Royal Borough of Kingston,23/03/2022,70021773,700.34,SOUTHERN ELECTRIC,UTILITIES,Housing Revenue Account,Gas,A21003
Royal Borough of Kingston,01/04/2022,90112794,701.14,BALANCE (SUPPORT) C.I.C,SOCIAL SERVICES - OTHER,Adult Social Care & Health,Personal Budget - Third Party,A61019
Royal Borough of Kingston,18/04/2022,90095180,705,REDACTED - PERSONAL DATA,SOCIAL SERVICES - DIRECT PAYMENTS,Adult Social Care & Health,Personal Budget - Direct Payment,A61016
Royal Borough of Kingston,13/04/2022,70022230,709.6,KENT COUNTY COUNCIL,UTILITIES,Housing Revenue Account,Gas,A21003
Royal Borough of Kingston,03/04/2022,70021631,710.82,BDT HEALTHCARE LTD,SOCIAL SERVICES - OTHER,Adult Social Care & Health,Other Private Contractors - Third Party,A56080
Royal Borough of Kingston,05/04/2022,70021706,711.15,KENT COUNTY COUNCIL,UTILITIES,Place,Gas,A21003
Royal Borough of Kingston,05/04/2022,90092927,711.5,REDACTED - PERSONAL DATA,CHILDMINDERS START UP GRANT,Schools,PVI Providers,A60014
Royal Borough of Kingston,18/04/2022,90095072,714,REDACTED - PERSONAL DATA,SOCIAL SERVICES - DIRECT PAYMENTS,Adult Social Care & Health,Personal Budget - Direct Payment,A61016
Royal Borough of Kingston,18/04/2022,90095073,714,REDACTED - PERSONAL DATA,SOCIAL SERVICES - DIRECT PAYMENTS,Adult Social Care & Health,Personal Budget - Direct Payment,A61016
Royal Borough of Kingston,18/04/2022,90095118,714,REDACTED - PERSONAL DATA,SOCIAL SERVICES - DIRECT PAYMENTS,Adult Social Care & Health,Personal Budget - Direct Payment,A61016
Royal Borough of Kingston,13/04/2022,70022235,714.61,KENT COUNTY COUNCIL,UTILITIES,Housing Revenue Account,Gas,A21003
Royal Borough of Kingston,01/04/2022,90112799,714.81,REDACTED - PERSONAL DATA,SOCIAL SERVICES - PERSONAL BUDGETS,Adult Social Care & Health,Personal Budget - Third Party,A61019
Royal Borough of Kingston,21/03/2022,90092506,715.88,ALPENBEST LTD,SOCIAL SERVICES DAY CARE,Adult Social Care & Health,Homecare - new framework,A56127
Royal Borough of Kingston,28/03/2022,90092682,717.45,HELMAR CARE AND COMMUNITY SERVICES LTD,SOCIAL SERVICES DAY CARE,Adult Social Care & Health,Personal Budget - Third Party,A61019
Royal Borough of Kingston,11/04/2022,90112222,717.51,CARLCARE LTD ,SOCIAL SERVICES-HOME CARE,Adult Social Care & Health,Homecare - new framework,A56127
Royal Borough of Kingston,18/04/2022,90095070,717.96,REDACTED - PERSONAL DATA,SOCIAL SERVICES - PERSONAL BUDGETS,Adult Social Care & Health,Personal Budget - Direct Payment,A61016
Royal Borough of Kingston,18/04/2022,90095144,720,REDACTED - PERSONAL DATA,SOCIAL SERVICES - DIRECT PAYMENTS,Adult Social Care & Health,Personal Budget - Direct Payment,A61016
Royal Borough of Kingston,04/04/2022,90111069,724.35,BLUE ARROW CARE LTD,SOCIAL SERVICES-HOME CARE,Adult Social Care & Health,Personal Budget - Third Party,A61019
Royal Borough of Kingston,11/04/2022,90112940,724.35,BLUE ARROW CARE LTD,SOCIAL SERVICES-HOME CARE,Adult Social Care & Health,Personal Budget - Third Party,A61019
Royal Borough of Kingston,21/03/2022,90092649,724.5,ALPENBEST LTD,SOCIAL SERVICES DAY CARE,Adult Social Care & Health,Personal Budget - Third Party,A61019
Royal Borough of Kingston,14/03/2022,90092359,724.5,Bright Star Care Service Ltd,SOCIAL SERVICES - OTHER,Adult Social Care & Health,Homecare - new framework,A56127
Royal Borough of Kingston,21/03/2022,90094542,724.5,Bright Star Care Service Ltd,SOCIAL SERVICES - OTHER,Adult Social Care & Health,Homecare - new framework,A56127
Royal Borough of Kingston,21/03/2022,90092211,724.5,CARLCARE LTD ,SOCIAL SERVICES-HOME CARE,Adult Social Care & Health,Homecare - new framework,A56127
Royal Borough of Kingston,14/03/2022,90092175,724.5,Humble Healthcare Ltd,SOCIAL SERVICES - OTHER,Adult Social Care & Health,Homecare - new framework,A56127
Royal Borough of Kingston,21/03/2022,90094273,724.5,Humble Healthcare Ltd,SOCIAL SERVICES - OTHER,Adult Social Care & Health,Homecare - new framework,A56127
Royal Borough of Kingston,04/04/2022,90110852,726.26,ALPENBEST LTD,SOCIAL SERVICES DAY CARE,Adult Social Care & Health,Homecare - new framework,A56127
Royal Borough of Kingston,11/04/2022,90112475,726.26,ALPENBEST LTD,SOCIAL SERVICES DAY CARE,Adult Social Care & Health,Homecare - new framework,A56127
Royal Borough of Kingston,18/04/2022,90095077,729.88,REDACTED - PERSONAL DATA,SOCIAL SERVICES - DIRECT PAYMENTS,Adult Social Care & Health,Personal Budget - Direct Payment,A61016
Royal Borough of Kingston,31/03/2022,70022774,735,Dunheved Hotel LTD,ACCOMMODATION BED & BREAKFAST,Place,Bed & Breakfast,A56000
Royal Borough of Kingston,04/04/2022,90111008,735.01,ALPENBEST LTD,SOCIAL SERVICES DAY CARE,Adult Social Care & Health,Personal Budget - Third Party,A61019
Royal Borough of Kingston,11/04/2022,90112878,735.01,ALPENBEST LTD,SOCIAL SERVICES DAY CARE,Adult Social Care & Health,Personal Budget - Third Party,A61019
Royal Borough of Kingston,04/04/2022,90112330,735.01,Bright Star Care Service Ltd,SOCIAL SERVICES - OTHER,Adult Social Care & Health,Homecare - new framework,A56127
Royal Borough of Kingston,04/04/2022,90110556,735.01,CARLCARE LTD ,SOCIAL SERVICES-HOME CARE,Adult Social Care & Health,Homecare - new framework,A56127
Royal Borough of Kingston,04/04/2022,90112183,735.01,Humble Healthcare Ltd,SOCIAL SERVICES - OTHER,Adult Social Care & Health,Homecare - new framework,A56127
Royal Borough of Kingston,18/04/2022,90095316,736.6,REDACTED - PERSONAL DATA,SOCIAL SERVICES - DIRECT PAYMENTS,Adult Social Care & Health,Personal Budget - Direct Payment,A61016
Royal Borough of Kingston,29/04/2022,70023292,736.66,BONSOR PENNINGTONS LTD  ,PLS LANDLORDS,Place,PSL Payments To Landlords,A22031
Royal Borough of Kingston,01/04/2022,90112724,742.5,BALANCE (SUPPORT) C.I.C,SOCIAL SERVICES - OTHER,Adult Social Care & Health,Personal Budget - Third Party,A61019
Royal Borough of Kingston,01/04/2022,90112787,742.5,BALANCE (SUPPORT) C.I.C,SOCIAL SERVICES - OTHER,Adult Social Care & Health,Personal Budget - Third Party,A61019
Royal Borough of Kingston,01/04/2022,90112627,745.61,THE GRANGE CENTRE,SOCIAL SERVICES RESIDENTIAL,Adult Social Care & Health,Personal Budget - Third Party,A61019
Royal Borough of Kingston,21/03/2022,90092671,748,BLUE ARROW CARE LTD,SOCIAL SERVICES-HOME CARE,Adult Social Care & Health,Personal Budget - Third Party,A61019
Royal Borough of Kingston,04/04/2022,90119040,748.4,BALANCE (SUPPORT) C.I.C,SOCIAL SERVICES - OTHER,Adult Social Care & Health,Supported Living - new framework,A56126
Royal Borough of Kingston,03/04/2022,70021629,749.69,BDT HEALTHCARE LTD,SOCIAL SERVICES - OTHER,Adult Social Care & Health,Other Private Contractors - Third Party,A56080
Royal Borough of Kingston,25/04/2022,90111371,750,REDACTED - PERSONAL DATA,PLS LANDLORDS,Place,PSL Payments To Landlords,A22031
Royal Borough of Kingston,01/04/2022,90119130,750,GENEVA ROAD LIMITED,SOCIAL SERVICES RESIDENTIAL,Adult Social Care & Health,Personal Budget - Third Party,A61019
Royal Borough of Kingston,01/04/2022,90092036,750,LONDON RESIDENTIAL HEALTHCARE LTD,SOCIAL SERVICES RESIDENTIAL,Adult Social Care & Health,Independent Placements,A56006
Royal Borough of Kingston,01/04/2022,90092037,750,LONDON RESIDENTIAL HEALTHCARE LTD,SOCIAL SERVICES RESIDENTIAL,Adult Social Care & Health,Independent Placements,A56006
Royal Borough of Kingston,25/04/2022,90111492,750,REDACTED - PERSONAL DATA,PLS LANDLORDS,Place,PSL Payments To Landlords,A22031
Royal Borough of Kingston,31/03/2022,70022731,750.52,YMCA ST PAULS GROUP,ACCOMMODATION BED & BREAKFAST,Place,Bed & Breakfast,A56000
Royal Borough of Kingston,25/03/2022,70022897,750.7,EDF ENERGY CUSTOMER PLC,UTILITIES,Housing Revenue Account,Electricity,A21000
Royal Borough of Kingston,25/04/2022,90111199,758.33,REDACTED - PERSONAL DATA,PLS LANDLORDS,Place,PSL Payments To Landlords,A22031
Royal Borough of Kingston,25/04/2022,90111453,758.33,REDACTED - PERSONAL DATA,PLS LANDLORDS,Place,PSL Payments To Landlords,A22031
Royal Borough of Kingston,11/04/2022,90112906,758.85,BLUE ARROW CARE LTD,SOCIAL SERVICES-HOME CARE,Adult Social Care & Health,Personal Budget - Third Party,A61019
Royal Borough of Kingston,30/08/2021,70021727,760.32,KNOWLES ASSOCIATES TFM LTD,VEHICLE & PLANT HIRE / MNTCE,Adult Social Care & Health,Vehicle Hire & Operating Leases,A32004
Royal Borough of Kingston,18/04/2022,90095099,764.4,REDACTED - PERSONAL DATA,SOCIAL SERVICES - PERSONAL BUDGETS,Adult Social Care & Health,Personal Budget - Direct Payment,A61016
Royal Borough of Kingston,18/04/2022,90095297,766.16,REDACTED - PERSONAL DATA,SOCIAL SERVICES - DIRECT PAYMENTS,Adult Social Care & Health,Personal Budget - Direct Payment,A61016
Royal Borough of Kingston,18/04/2022,90095283,768,REDACTED - PERSONAL DATA,SOCIAL SERVICES - DIRECT PAYMENTS,Adult Social Care & Health,Personal Budget - Direct Payment,A61016
Royal Borough of Kingston,25/04/2022,90111376,768.75,REDACTED - PERSONAL DATA,PLS LANDLORDS,Place,PSL Payments To Landlords,A22031
Royal Borough of Kingston,18/04/2022,90095215,772.48,REDACTED - PERSONAL DATA,SOCIAL SERVICES - PERSONAL BUDGETS,Adult Social Care & Health,Personal Budget - Direct Payment,A61016
Royal Borough of Kingston,21/03/2022,90092651,773.5,WINSOR CARE SERVICES LTD,SOCIAL SERVICES RESIDENTIAL,Adult Social Care & Health,Personal Budget - Third Party,A61019
Royal Borough of Kingston,21/03/2022,90092503,776.25,INSPIRE MANAGEMENT GROUP LTD,SOCIAL SERVICES DAY CARE,Adult Social Care & Health,Homecare - new framework,A56127
Royal Borough of Kingston,24/02/2022,70022895,778.78,EDF ENERGY CUSTOMER PLC,UTILITIES,Housing Revenue Account,Electricity,A21000
Royal Borough of Kingston,25/04/2022,90111571,780,REDACTED - PERSONAL DATA,PLS LANDLORDS,Place,PSL Payments To Landlords,A22031
Royal Borough of Kingston,25/04/2022,90111573,780,REDACTED - PERSONAL DATA,PLS LANDLORDS,Place,PSL Payments To Landlords,A22031
Royal Borough of Kingston,21/03/2022,90092633,782,SURBITON HOMECARE MANAGEMENT LTD,SOCIAL SERVICES-HOME CARE,Adult Social Care & Health,Personal Budget - Third Party,A61019
Royal Borough of Kingston,18/04/2022,90095115,784,REDACTED - PERSONAL DATA,SOCIAL SERVICES - DIRECT PAYMENTS,Adult Social Care & Health,Personal Budget - Direct Payment,A61016
Royal Borough of Kingston,04/04/2022,90111010,784.72,WINSOR CARE SERVICES LTD,SOCIAL SERVICES RESIDENTIAL,Adult Social Care & Health,Personal Budget - Third Party,A61019
Royal Borough of Kingston,21/03/2022,90092103,784.88,ALPENBEST LTD,SOCIAL SERVICES DAY CARE,Adult Social Care & Health,Homecare - new framework,A56127
Royal Borough of Kingston,21/03/2022,90092591,784.88,INSPIRE MANAGEMENT GROUP LTD,SOCIAL SERVICES DAY CARE,Adult Social Care & Health,Homecare - new framework,A56127
Royal Borough of Kingston,04/04/2022,90110849,787.51,INSPIRE MANAGEMENT GROUP LTD,SOCIAL SERVICES DAY CARE,Adult Social Care & Health,Homecare - new framework,A56127
Royal Borough of Kingston,11/04/2022,90112472,787.51,INSPIRE MANAGEMENT GROUP LTD,SOCIAL SERVICES DAY CARE,Adult Social Care & Health,Homecare - new framework,A56127
Royal Borough of Kingston,18/04/2022,90095133,788.08,REDACTED - PERSONAL DATA,SOCIAL SERVICES - PERSONAL BUDGETS,Adult Social Care & Health,Personal Budget - Direct Payment,A61016
Royal Borough of Kingston,18/04/2022,90095258,788.08,REDACTED - PERSONAL DATA,SOCIAL SERVICES - PERSONAL BUDGETS,Adult Social Care & Health,Personal Budget - Direct Payment,A61016
Royal Borough of Kingston,01/04/2022,90112967,788.57,REMARK ! LIMITED,INTERPRETERS,Adult Social Care & Health,Personal Budget - Third Party,A61019
Royal Borough of Kingston,08/03/2022,70021758,789,CROYDON HEALTH SERVICES NHST,SOCIAL SERVICES - OTHER,Adult Social Care & Health,Other Private Contractors - Third Party,A56080
Royal Borough of Kingston,18/04/2022,90095291,790.12,REDACTED - PERSONAL DATA,SOCIAL SERVICES - PERSONAL BUDGETS,Adult Social Care & Health,Personal Budget - Direct Payment,A61016
Royal Borough of Kingston,18/04/2022,90095176,790.48,REDACTED - PERSONAL DATA,SOCIAL SERVICES - DIRECT PAYMENTS,Adult Social Care & Health,Personal Budget - Direct Payment,A61016
Royal Borough of Kingston,04/04/2022,90110992,793.34,SURBITON HOMECARE MANAGEMENT LTD,SOCIAL SERVICES-HOME CARE,Adult Social Care & Health,Personal Budget - Third Party,A61019
Royal Borough of Kingston,11/04/2022,90112861,793.34,SURBITON HOMECARE MANAGEMENT LTD,SOCIAL SERVICES-HOME CARE,Adult Social Care & Health,Personal Budget - Third Party,A61019
Royal Borough of Kingston,14/03/2022,70022038,796,GAMBLING COMMISSION,SUBSCRIPTIONS & PUBLICATIONS,Corporate & Communities,Registration & Licence Fees Payable,A44267
Royal Borough of Kingston,04/04/2022,90110425,796.26,ALPENBEST LTD,SOCIAL SERVICES DAY CARE,Adult Social Care & Health,Homecare - new framework,A56127
Royal Borough of Kingston,11/04/2022,90112111,796.26,ALPENBEST LTD,SOCIAL SERVICES DAY CARE,Adult Social Care & Health,Homecare - new framework,A56127
Royal Borough of Kingston,04/04/2022,90110944,796.26,INSPIRE MANAGEMENT GROUP LTD,SOCIAL SERVICES DAY CARE,Adult Social Care & Health,Homecare - new framework,A56127
Royal Borough of Kingston,11/04/2022,90112558,796.26,INSPIRE MANAGEMENT GROUP LTD,SOCIAL SERVICES DAY CARE,Adult Social Care & Health,Homecare - new framework,A56127
Royal Borough of Kingston,01/04/2022,70022950,798,Wise Move Estate Agents LTD,ACCOMMODATION BED & BREAKFAST,Place,Bed & Breakfast,A56000
Royal Borough of Kingston,25/04/2022,90111219,800,LEATHERHEAD UNITED CHARITIES,PLS LANDLORDS,Place,PSL Payments To Landlords,A22031
Royal Borough of Kingston,25/04/2022,90111374,801.66,BONSOR PENNINGTONS LTD  ,PLS LANDLORDS,Place,PSL Payments To Landlords,A22031
Royal Borough of Kingston,18/04/2022,90095156,805.52,REDACTED - PERSONAL DATA,SOCIAL SERVICES - PERSONAL BUDGETS,Adult Social Care & Health,Personal Budget - Direct Payment,A61016
Royal Borough of Kingston,28/03/2022,90094150,806,Goldsmith Personnel Ltd,SOCIAL SERVICES - OTHER,Adult Social Care & Health,Homecare - new framework,A56127
Royal Borough of Kingston,21/03/2022,90092533,806,WANDLE HEALTHCARE SERVICES,SOCIAL SERVICES-HOME CARE,Adult Social Care & Health,Homecare - new framework,A56127
Royal Borough of Kingston,13/04/2022,70022239,814.48,KENT COUNTY COUNCIL,UTILITIES,Corporate & Communities,Gas,A21003
Royal Borough of Kingston,18/04/2022,90095085,816,REDACTED - PERSONAL DATA,SOCIAL SERVICES - PERSONAL BUDGETS,Adult Social Care & Health,Personal Budget - Direct Payment,A61016
Royal Borough of Kingston,04/04/2022,90110410,817.69,WANDLE HEALTHCARE SERVICES,SOCIAL SERVICES-HOME CARE,Adult Social Care & Health,Homecare - new framework,A56127
Royal Borough of Kingston,25/04/2022,90111560,818,REDACTED - PERSONAL DATA,PLS LANDLORDS,Place,PSL Payments To Landlords,A22031
Royal Borough of Kingston,25/04/2022,90111347,818,REDACTED - PERSONAL DATA,PLS LANDLORDS,Place,PSL Payments To Landlords,A22031
Royal Borough of Kingston,01/04/2022,90112607,819.74,Gold Care Homes,SOCIAL SERVICES RESIDENTIAL,Adult Social Care & Health,Personal Budget - Third Party,A61019
Royal Borough of Kingston,25/04/2022,90111507,823.33,REDACTED - PERSONAL DATA,PLS LANDLORDS,Place,PSL Payments To Landlords,A22031
Royal Borough of Kingston,13/04/2022,70022229,825.17,KENT COUNTY COUNCIL,UTILITIES,Housing Revenue Account,Gas,A21003
Royal Borough of Kingston,25/04/2022,90111483,826,JGPG LLP,PLS LANDLORDS,Place,PSL Payments To Landlords,A22031
Royal Borough of Kingston,25/04/2022,90111484,826,JGPG LLP,PLS LANDLORDS,Place,PSL Payments To Landlords,A22031
Royal Borough of Kingston,25/04/2022,90111485,826,JGPG LLP,PLS LANDLORDS,Place,PSL Payments To Landlords,A22031
Royal Borough of Kingston,25/04/2022,90111486,826,JGPG LLP,PLS LANDLORDS,Place,PSL Payments To Landlords,A22031
Royal Borough of Kingston,28/03/2022,90094252,828,ALPENBEST LTD,SOCIAL SERVICES DAY CARE,Adult Social Care & Health,Homecare - new framework,A56127
Royal Borough of Kingston,01/04/2022,90113058,833.14,KINGSTON VOLUNTARY ACTION CIO,CHARITIES & VOLUNTARY ORGNS,Adult Social Care & Health,Personal Budget - Third Party,A61019
Royal Borough of Kingston,25/04/2022,90111430,833.33,REDACTED - PERSONAL DATA,PLS LANDLORDS,Place,PSL Payments To Landlords,A22031
Royal Borough of Kingston,31/03/2022,70022743,833.91,YMCA ST PAULS GROUP,ACCOMMODATION BED & BREAKFAST,Place,Bed & Breakfast,A56000
Royal Borough of Kingston,01/04/2022,90112744,835.33,BALANCE (SUPPORT) C.I.C,SOCIAL SERVICES - OTHER,Adult Social Care & Health,Personal Budget - Third Party,A61019
Royal Borough of Kingston,01/04/2022,90112019,837.04,THE FRANCES TAYLOR FOUNDATION,SOCIAL SERVICES RESIDENTIAL,Adult Social Care & Health,Other Private Contractors - Third Party,A56080
Royal Borough of Kingston,18/04/2022,90095164,840,REDACTED - PERSONAL DATA,SOCIAL SERVICES - PERSONAL BUDGETS,Adult Social Care & Health,Personal Budget - Direct Payment,A61016
Royal Borough of Kingston,18/04/2022,90095172,840,REDACTED - PERSONAL DATA,SOCIAL SERVICES - DIRECT PAYMENTS,Adult Social Care & Health,Personal Budget - Direct Payment,A61016
Royal Borough of Kingston,18/04/2022,90095216,840,REDACTED - PERSONAL DATA,SOCIAL SERVICES - PERSONAL BUDGETS,Adult Social Care & Health,Personal Budget - Direct Payment,A61016
Royal Borough of Kingston,25/04/2022,90111607,842,REDACTED - PERSONAL DATA,PLS LANDLORDS,Place,PSL Payments To Landlords,A22031
Royal Borough of Kingston,25/04/2022,90111603,842,REDACTED - PERSONAL DATA,PLS LANDLORDS,Place,PSL Payments To Landlords,A22031
Royal Borough of Kingston,25/04/2022,90111300,845,REDACTED - PERSONAL DATA,PLS LANDLORDS,Place,PSL Payments To Landlords,A22031
Royal Borough of Kingston,21/03/2022,90092324,845.25,WANDLE HEALTHCARE SERVICES,SOCIAL SERVICES-HOME CARE,Adult Social Care & Health,Homecare - new framework,A56127
Royal Borough of Kingston,01/04/2022,90112656,847.54,GENEVA ROAD LIMITED,SOCIAL SERVICES RESIDENTIAL,Adult Social Care & Health,Personal Budget - Third Party,A61019
Royal Borough of Kingston,18/04/2022,90095280,848.08,REDACTED - PERSONAL DATA,SOCIAL SERVICES - DIRECT PAYMENTS,Adult Social Care & Health,Personal Budget - Direct Payment,A61016
Royal Borough of Kingston,25/04/2022,90111343,850,REDACTED - PERSONAL DATA,PLS LANDLORDS,Place,PSL Payments To Landlords,A22031
Royal Borough of Kingston,25/04/2022,90111217,850,FORTYNINE LTD,PLS LANDLORDS,Place,PSL Payments To Landlords,A22031
Royal Borough of Kingston,25/04/2022,90111613,850,REDACTED - PERSONAL DATA,PLS LANDLORDS,Place,PSL Payments To Landlords,A22031
Royal Borough of Kingston,01/04/2022,70022954,854,CRYSTAL & CO,ACCOMMODATION BED & BREAKFAST,Place,Bed & Breakfast,A56000
Royal Borough of Kingston,01/04/2022,90112654,856.5,UNITED RESPONSE,SOCIAL SERVICES RESIDENTIAL,Adult Social Care & Health,Personal Budget - Third Party,A61019
Royal Borough of Kingston,01/04/2022,90119093,857.14,GENEVA ROAD LIMITED,SOCIAL SERVICES RESIDENTIAL,Adult Social Care & Health,Personal Budget - Third Party,A61019
Royal Borough of Kingston,01/04/2022,90119048,857.14,HF TRUST LTD ,SOCIAL SERVICES DAY CARE,Adult Social Care & Health,Personal Budget - Third Party,A61019
Royal Borough of Kingston,01/04/2022,90119059,857.14,HF TRUST LTD ,SOCIAL SERVICES DAY CARE,Adult Social Care & Health,Personal Budget - Third Party,A61019
Royal Borough of Kingston,01/04/2022,90119060,857.14,HF TRUST LTD ,SOCIAL SERVICES DAY CARE,Adult Social Care & Health,Personal Budget - Third Party,A61019
Royal Borough of Kingston,01/04/2022,90119090,857.14,HF TRUST LTD ,SOCIAL SERVICES DAY CARE,Adult Social Care & Health,Personal Budget - Third Party,A61019
Royal Borough of Kingston,01/04/2022,90119097,857.14,HF TRUST LTD ,SOCIAL SERVICES DAY CARE,Adult Social Care & Health,Personal Budget - Third Party,A61019
Royal Borough of Kingston,01/04/2022,90119102,857.14,HF TRUST LTD ,SOCIAL SERVICES DAY CARE,Adult Social Care & Health,Personal Budget - Third Party,A61019
Royal Borough of Kingston,01/04/2022,90112007,857.14,ALBERT RESIDENTIAL HOME,SOCIAL SERVICES RESIDENTIAL,Adult Social Care & Health,Other Private Contractors - Third Party,A56080
Royal Borough of Kingston,04/04/2022,90110656,857.5,WANDLE HEALTHCARE SERVICES,SOCIAL SERVICES-HOME CARE,Adult Social Care & Health,Homecare - new framework,A56127
Royal Borough of Kingston,11/04/2022,90112302,857.5,WANDLE HEALTHCARE SERVICES,SOCIAL SERVICES-HOME CARE,Adult Social Care & Health,Homecare - new framework,A56127
Royal Borough of Kingston,18/04/2022,90095074,862.52,REDACTED - PERSONAL DATA,SOCIAL SERVICES - DIRECT PAYMENTS,Adult Social Care & Health,Personal Budget - Direct Payment,A61016
Royal Borough of Kingston,21/03/2022,90092740,862.75,SURBITON HOMECARE MANAGEMENT LTD,SOCIAL SERVICES-HOME CARE,Adult Social Care & Health,Personal Budget - Third Party,A61019
Royal Borough of Kingston,01/04/2022,90112735,864.94,VOYAGE LTD,SOCIAL SERVICES RESIDENTIAL,Adult Social Care & Health,Personal Budget - Third Party,A61019
Royal Borough of Kingston,01/04/2022,90112623,865.71,LARCHE BOGNOR REGIS,SOCIAL SERVICES - OTHER,Adult Social Care & Health,Personal Budget - Third Party,A61019
Royal Borough of Kingston,01/04/2022,90112853,866.57,ZEDCARZ LTD,TAXI AND COACH HIRE,Adult Social Care & Health,Personal Budget - Third Party,A61019
Royal Borough of Kingston,25/04/2022,90111362,867,REDACTED - PERSONAL DATA,PLS LANDLORDS,Place,PSL Payments To Landlords,A22031
Royal Borough of Kingston,25/04/2022,90111346,867,REDACTED - PERSONAL DATA,PLS LANDLORDS,Place,PSL Payments To Landlords,A22031
Royal Borough of Kingston,25/04/2022,90111230,867,REDACTED - PERSONAL DATA,PLS LANDLORDS,Place,PSL Payments To Landlords,A22031
Royal Borough of Kingston,25/04/2022,90111398,867,REDACTED - PERSONAL DATA,PLS LANDLORDS,Place,PSL Payments To Landlords,A22031
Royal Borough of Kingston,25/04/2022,90111503,867,REDACTED - PERSONAL DATA,PLS LANDLORDS,Place,PSL Payments To Landlords,A22031
Royal Borough of Kingston,25/04/2022,90111293,867,REDACTED - PERSONAL DATA,PLS LANDLORDS,Place,PSL Payments To Landlords,A22031
Royal Borough of Kingston,25/04/2022,90111235,867,REDACTED - PERSONAL DATA,PLS LANDLORDS,Place,PSL Payments To Landlords,A22031
Royal Borough of Kingston,18/03/2022,70021495,867.08,REDACTED - PERSONAL DATA,SOCIAL SERVICES - OTHER,Adult Social Care & Health,Other Private Contractors - Third Party,A56080
Royal Borough of Kingston,21/02/2022,70020777,867.36,ROYAL MAIL GROUP LTD,OFFICE SERVICES,Corporate & Communities,Postage & Couriers,A45015
Royal Borough of Kingston,25/04/2022,90111580,867.83,REDACTED - PERSONAL DATA,PLS LANDLORDS,Place,PSL Payments To Landlords,A22031
Royal Borough of Kingston,25/04/2022,90111342,867.91,REDACTED - PERSONAL DATA,PLS LANDLORDS,Place,PSL Payments To Landlords,A22031
Royal Borough of Kingston,25/04/2022,90111285,867.91,WIND SONGS INVESTMENT LIMITED,PLS LANDLORDS,Place,PSL Payments To Landlords,A22031
Royal Borough of Kingston,25/04/2022,90111288,867.91,WIND SONGS INVESTMENT LIMITED,PLS LANDLORDS,Place,PSL Payments To Landlords,A22031
Royal Borough of Kingston,04/03/2022,70021903,868,NEWMAN CHEMIST,LEGAL & PROFESSIONAL SERVICES,Adult Social Care & Health,Emergency & Short Term Clients Payments,A61014
Royal Borough of Kingston,25/04/2022,90111435,870,REDACTED - PERSONAL DATA,PLS LANDLORDS,Place,PSL Payments To Landlords,A22031
Royal Borough of Kingston,25/04/2022,90111352,870,REDACTED - PERSONAL DATA,PLS LANDLORDS,Place,PSL Payments To Landlords,A22031
Royal Borough of Kingston,25/04/2022,90111331,870,KEYCIRCLE LTD ,PLS LANDLORDS,Place,PSL Payments To Landlords,A22031
Royal Borough of Kingston,25/04/2022,90111332,870,KEYCIRCLE LTD ,PLS LANDLORDS,Place,PSL Payments To Landlords,A22031
Royal Borough of Kingston,14/04/2022,70022752,870,TRANSMEDIA COMMUNICATIONS LIMITED,TRAINING,Corporate & Communities,Staff Development And Training,A15022
Royal Borough of Kingston,25/04/2022,90111220,871,LEATHERHEAD UNITED CHARITIES,PLS LANDLORDS,Place,PSL Payments To Landlords,A22031
Royal Borough of Kingston,25/04/2022,90111350,871.22,REDACTED - PERSONAL DATA,PLS LANDLORDS,Place,PSL Payments To Landlords,A22031
Royal Borough of Kingston,01/04/2022,90112595,871.25,KINGSTON VOLUNTARY ACTION CIO,CHARITIES & VOLUNTARY ORGNS,Adult Social Care & Health,Personal Budget - Third Party,A61019
Royal Borough of Kingston,25/04/2022,90111175,872.58,REDACTED - PERSONAL DATA,PLS LANDLORDS,Place,PSL Payments To Landlords,A22031
Royal Borough of Kingston,06/04/2022,70022481,875,ADAM HOTEL MANAGEMENT LTD,ACCOMMODATION BED & BREAKFAST,Place,Bed & Breakfast,A56000
Royal Borough of Kingston,25/04/2022,90111466,875,REDACTED - PERSONAL DATA,PLS LANDLORDS,Place,PSL Payments To Landlords,A22031
Royal Borough of Kingston,10/03/2022,70019979,875,MERCATOR IT SOLUTIONS LTD,BUSINESS & COMPUTER SYSTEMS,Capital Programme,Intangible Assets - Project Management,C13001
Royal Borough of Kingston,04/04/2022,90111112,875.26,SURBITON HOMECARE MANAGEMENT LTD,SOCIAL SERVICES-HOME CARE,Adult Social Care & Health,Personal Budget - Third Party,A61019
Royal Borough of Kingston,11/04/2022,90112990,875.26,SURBITON HOMECARE MANAGEMENT LTD,SOCIAL SERVICES-HOME CARE,Adult Social Care & Health,Personal Budget - Third Party,A61019
Royal Borough of Kingston,13/04/2022,70022786,875.38,KENT COUNTY COUNCIL,UTILITIES,Place,Gas,A21003
Royal Borough of Kingston,18/04/2022,90095067,876.21,REDACTED - PERSONAL DATA,SOCIAL SERVICES - DIRECT PAYMENTS,Adult Social Care & Health,Personal Budget - Direct Payment,A61016
Royal Borough of Kingston,18/04/2022,90095308,878.12,REDACTED - PERSONAL DATA,SOCIAL SERVICES - PERSONAL BUDGETS,Adult Social Care & Health,Personal Budget - Direct Payment,A61016
Royal Borough of Kingston,18/04/2022,90095194,881.28,REDACTED - PERSONAL DATA,SOCIAL SERVICES - PERSONAL BUDGETS,Adult Social Care & Health,Personal Budget - Direct Payment,A61016
Royal Borough of Kingston,01/04/2022,90112655,882.86,HAZELDENE UK LIMITED,SOCIAL SERVICES RESIDENTIAL,Adult Social Care & Health,Personal Budget - Third Party,A61019
Royal Borough of Kingston,18/04/2022,90095061,884.66,REDACTED - PERSONAL DATA,SOCIAL SERVICES - DIRECT PAYMENTS,Adult Social Care & Health,Personal Budget - Direct Payment,A61016
Royal Borough of Kingston,03/04/2022,70021626,886.52,BDT HEALTHCARE LTD,SOCIAL SERVICES - OTHER,Adult Social Care & Health,Other Private Contractors - Third Party,A56080
Royal Borough of Kingston,03/04/2022,70021632,887.02,BDT HEALTHCARE LTD,SOCIAL SERVICES - OTHER,Adult Social Care & Health,Other Private Contractors - Third Party,A56080
Royal Borough of Kingston,25/04/2022,90111383,888.33,REDACTED - PERSONAL DATA,PLS LANDLORDS,Place,PSL Payments To Landlords,A22031
Royal Borough of Kingston,05/04/2022,90092799,889.38,REDACTED - PERSONAL DATA,CHILDMINDERS START UP GRANT,Schools,PVI Providers,A60014
Royal Borough of Kingston,05/04/2022,90092790,889.38,REDACTED - PERSONAL DATA,CHILDMINDERS START UP GRANT,Schools,PVI Providers,A60014
Royal Borough of Kingston,18/04/2022,90095301,895.44,REDACTED - PERSONAL DATA,SOCIAL SERVICES - PERSONAL BUDGETS,Adult Social Care & Health,Personal Budget - Direct Payment,A61016
Royal Borough of Kingston,25/04/2022,90111594,897,REDACTED - PERSONAL DATA,PLS LANDLORDS,Place,PSL Payments To Landlords,A22031
Royal Borough of Kingston,25/04/2022,90111344,897,REDACTED - PERSONAL DATA,PLS LANDLORDS,Place,PSL Payments To Landlords,A22031
Royal Borough of Kingston,25/04/2022,90111537,897,REDACTED - PERSONAL DATA,PLS LANDLORDS,Place,PSL Payments To Landlords,A22031
Royal Borough of Kingston,25/04/2022,90111474,897,PARKMEAD ESTATES LTD,LANDLORDS,Place,PSL Payments To Landlords,A22031
Royal Borough of Kingston,01/04/2022,90112765,897.26,THE HOME FARM TRUST LTD,SOCIAL SERVICES RESIDENTIAL,Adult Social Care & Health,Personal Budget - Third Party,A61019
Royal Borough of Kingston,25/04/2022,90111568,898.33,LYNSOUTH DEVELOPMENT LIMITED,PLS LANDLORDS,Place,PSL Payments To Landlords,A22031
Royal Borough of Kingston,13/04/2022,70022542,898.99,KENT COUNTY COUNCIL,UTILITIES,Corporate & Communities,Gas,A21003
Royal Borough of Kingston,25/04/2022,90111437,899,REDACTED - PERSONAL DATA,PLS LANDLORDS,Place,PSL Payments To Landlords,A22031
Royal Borough of Kingston,25/04/2022,90111316,899.86,REDACTED - PERSONAL DATA,PLS LANDLORDS,Place,PSL Payments To Landlords,A22031
Royal Borough of Kingston,25/04/2022,90111375,900,BR INVESTMENTS LIMITED,PLS LANDLORDS,Place,PSL Payments To Landlords,A22031
Royal Borough of Kingston,25/04/2022,90111567,900,REDACTED - PERSONAL DATA,PLS LANDLORDS,Place,PSL Payments To Landlords,A22031
Royal Borough of Kingston,25/04/2022,90111595,900,REDACTED - PERSONAL DATA,PLS LANDLORDS,Place,PSL Payments To Landlords,A22031
Royal Borough of Kingston,25/04/2022,90111261,900,REDACTED - PERSONAL DATA,PLS LANDLORDS,Place,PSL Payments To Landlords,A22031
Royal Borough of Kingston,18/04/2022,90095275,900,REDACTED - PERSONAL DATA,SOCIAL SERVICES - DIRECT PAYMENTS,Adult Social Care & Health,Personal Budget - Direct Payment,A61016
Royal Borough of Kingston,25/04/2022,90111465,900,REDACTED - PERSONAL DATA,PLS LANDLORDS,Place,PSL Payments To Landlords,A22031
Royal Borough of Kingston,01/04/2022,90112781,900.26,CMG LIMITED,SOCIAL SERVICES - OTHER,Adult Social Care & Health,Personal Budget - Third Party,A61019
Royal Borough of Kingston,18/04/2022,90095132,902.16,REDACTED - PERSONAL DATA,SOCIAL SERVICES - DIRECT PAYMENTS,Adult Social Care & Health,Personal Budget - Direct Payment,A61016
Royal Borough of Kingston,01/04/2022,90119127,903.27,HF TRUST LTD ,SOCIAL SERVICES DAY CARE,Adult Social Care & Health,Personal Budget - Third Party,A61019
Royal Borough of Kingston,21/03/2022,90092275,905.63,CN Healthcare,SOCIAL SERVICES - OTHER,Adult Social Care & Health,Homecare - new framework,A56127
Royal Borough of Kingston,18/04/2022,90095204,906.44,REDACTED - PERSONAL DATA,SOCIAL SERVICES - PERSONAL BUDGETS,Adult Social Care & Health,Personal Budget - Direct Payment,A61016
Royal Borough of Kingston,01/04/2022,90119132,907.71,ENHANCEABLE,SOCIAL SERVICES - OTHER,Adult Social Care & Health,Personal Budget - Third Party,A61019
Royal Borough of Kingston,01/04/2022,90112583,908.57,Gold Care Homes,SOCIAL SERVICES RESIDENTIAL,Adult Social Care & Health,Personal Budget - Third Party,A61019
Royal Borough of Kingston,01/04/2022,90112593,908.57,Gold Care Homes,SOCIAL SERVICES RESIDENTIAL,Adult Social Care & Health,Personal Budget - Third Party,A61019
Royal Borough of Kingston,25/04/2022,90111242,910,REDACTED - PERSONAL DATA,PLS LANDLORDS,Place,PSL Payments To Landlords,A22031
Royal Borough of Kingston,25/04/2022,90111509,910,REDACTED - PERSONAL DATA,PLS LANDLORDS,Place,PSL Payments To Landlords,A22031
Royal Borough of Kingston,25/04/2022,90111510,910,REDACTED - PERSONAL DATA,PLS LANDLORDS,Place,PSL Payments To Landlords,A22031
Royal Borough of Kingston,25/04/2022,90111559,910,REDACTED - PERSONAL DATA,PLS LANDLORDS,Place,PSL Payments To Landlords,A22031
Royal Borough of Kingston,25/03/2022,70021584,910,SURREY COUNTY COUNCIL,CENTRAL & LOCAL GOVERNMENT,Corporate & Communities,Revenue Carriageway Works,A56036
Royal Borough of Kingston,18/04/2022,90095233,910.71,REDACTED - PERSONAL DATA,SOCIAL SERVICES - DIRECT PAYMENTS,Adult Social Care & Health,Personal Budget - Direct Payment,A61016
Royal Borough of Kingston,18/04/2022,90095116,916.72,REDACTED - PERSONAL DATA,SOCIAL SERVICES - DIRECT PAYMENTS,Adult Social Care & Health,Personal Budget - Direct Payment,A61016
Royal Borough of Kingston,31/03/2022,70022738,917.31,YMCA ST PAULS GROUP,ACCOMMODATION BED & BREAKFAST,Place,Bed & Breakfast,A56000
Royal Borough of Kingston,25/04/2022,90111232,918.33,REDACTED - PERSONAL DATA,PLS LANDLORDS,Place,PSL Payments To Landlords,A22031
Royal Borough of Kingston,04/04/2022,90110625,918.76,CN Healthcare,SOCIAL SERVICES - OTHER,Adult Social Care & Health,Homecare - new framework,A56127
Royal Borough of Kingston,11/04/2022,90112275,918.76,CN Healthcare,SOCIAL SERVICES - OTHER,Adult Social Care & Health,Homecare - new framework,A56127
Royal Borough of Kingston,01/04/2022,90112825,921.6,ASHINGTON HOUSE LTD,SOCIAL SERVICES RESIDENTIAL,Adult Social Care & Health,Personal Budget - Third Party,A61019
Royal Borough of Kingston,18/04/2022,90095103,921.64,REDACTED - PERSONAL DATA,SOCIAL SERVICES - DIRECT PAYMENTS,Adult Social Care & Health,Personal Budget - Direct Payment,A61016
Royal Borough of Kingston,31/03/2022,70022318,923.7,EXCHANGING LTD ,TCES RETAILERS (PHARMACYS),Adult Social Care & Health,Other Private Contractors - Third Party,A56080
Royal Borough of Kingston,18/04/2022,90095250,926.08,REDACTED - PERSONAL DATA,SOCIAL SERVICES - PERSONAL BUDGETS,Adult Social Care & Health,Personal Budget - Direct Payment,A61016
Royal Borough of Kingston,01/04/2022,90112672,928.16,BALANCE (SUPPORT) C.I.C,SOCIAL SERVICES - OTHER,Adult Social Care & Health,Personal Budget - Third Party,A61019
Royal Borough of Kingston,01/04/2022,90112676,928.16,BALANCE (SUPPORT) C.I.C,SOCIAL SERVICES - OTHER,Adult Social Care & Health,Personal Budget - Third Party,A61019
Royal Borough of Kingston,25/04/2022,90111238,931,REDACTED - PERSONAL DATA,PLS LANDLORDS,Place,PSL Payments To Landlords,A22031
Royal Borough of Kingston,25/04/2022,90111572,931.66,REDACTED - PERSONAL DATA,PLS LANDLORDS,Place,PSL Payments To Landlords,A22031
Royal Borough of Kingston,25/04/2022,90111574,931.66,REDACTED - PERSONAL DATA,PLS LANDLORDS,Place,PSL Payments To Landlords,A22031
Royal Borough of Kingston,25/04/2022,90111564,931.66,REDACTED - PERSONAL DATA,PLS LANDLORDS,Place,PSL Payments To Landlords,A22031
Royal Borough of Kingston,20/04/2022,70022440,935,REDACTED - PERSONAL DATA,PLS LANDLORDS,Place,PSL Payments To Landlords,A22031
Royal Borough of Kingston,25/04/2022,90111227,935,REDACTED - PERSONAL DATA,PLS LANDLORDS,Place,PSL Payments To Landlords,A22031
Royal Borough of Kingston,25/04/2022,90111228,935,REDACTED - PERSONAL DATA,PLS LANDLORDS,Place,PSL Payments To Landlords,A22031
Royal Borough of Kingston,25/04/2022,90111461,936,CRPD,PLS LANDLORDS,Place,PSL Payments To Landlords,A22031
Royal Borough of Kingston,25/04/2022,90111463,936,CRPD,PLS LANDLORDS,Place,PSL Payments To Landlords,A22031
Royal Borough of Kingston,18/04/2022,90095136,942.48,REDACTED - PERSONAL DATA,SOCIAL SERVICES - DIRECT PAYMENTS,Adult Social Care & Health,Personal Budget - Direct Payment,A61016
Royal Borough of Kingston,18/04/2022,90095160,942.48,REDACTED - PERSONAL DATA,SOCIAL SERVICES - PERSONAL BUDGETS,Adult Social Care & Health,Personal Budget - Direct Payment,A61016
Royal Borough of Kingston,28/03/2022,90092683,942.81,HELMAR CARE AND COMMUNITY SERVICES LTD,SOCIAL SERVICES DAY CARE,Adult Social Care & Health,Personal Budget - Third Party,A61019
Royal Borough of Kingston,05/04/2022,90092794,948.67,REDACTED - PERSONAL DATA,CHILDMINDERS START UP GRANT,Schools,PVI Providers,A60014
Royal Borough of Kingston,01/04/2022,90112645,948.96,THE GRANGE CENTRE,SOCIAL SERVICES RESIDENTIAL,Adult Social Care & Health,Personal Budget - Third Party,A61019
Royal Borough of Kingston,18/04/2022,90095274,949.44,REDACTED - PERSONAL DATA,SOCIAL SERVICES - PERSONAL BUDGETS,Adult Social Care & Health,Personal Budget - Direct Payment,A61016
Royal Borough of Kingston,05/04/2022,70021658,950,DEXTERS LIMITED,LANDLORDS,Adult Social Care & Health,Building Rents,A22005
Royal Borough of Kingston,25/04/2022,90111417,950,REDACTED - PERSONAL DATA,PLS LANDLORDS,Place,PSL Payments To Landlords,A22031
Royal Borough of Kingston,18/04/2022,90095097,952,REDACTED - PERSONAL DATA,SOCIAL SERVICES - DIRECT PAYMENTS,Adult Social Care & Health,Personal Budget - Direct Payment,A61016
Royal Borough of Kingston,25/04/2022,90111454,953.33,REDACTED - PERSONAL DATA,PLS LANDLORDS,Place,PSL Payments To Landlords,A22031
Royal Borough of Kingston,25/04/2022,90111438,953.33,REDACTED - PERSONAL DATA,PLS LANDLORDS,Place,PSL Payments To Landlords,A22031
Royal Borough of Kingston,28/02/2022,70021130,956.25,STACE LLP,LEGAL & PROFESSIONAL SERVICES,Capital Programme,Buildings - Project Management,C14003
Royal Borough of Kingston,25/04/2022,90111265,958.33,REDACTED - PERSONAL DATA,PLS LANDLORDS,Place,PSL Payments To Landlords,A22031
Royal Borough of Kingston,18/04/2022,90095153,960,REDACTED - PERSONAL DATA,SOCIAL SERVICES - DIRECT PAYMENTS,Adult Social Care & Health,Personal Budget - Direct Payment,A61016
Royal Borough of Kingston,04/04/2022,90110384,963.78,CARLCARE LTD ,SOCIAL SERVICES-HOME CARE,Adult Social Care & Health,Homecare - new framework,A56127
Royal Borough of Kingston,11/04/2022,90112072,963.78,CARLCARE LTD ,SOCIAL SERVICES-HOME CARE,Adult Social Care & Health,Homecare - new framework,A56127
Royal Borough of Kingston,01/04/2022,90119047,964.29,HF TRUST LTD ,SOCIAL SERVICES DAY CARE,Adult Social Care & Health,Personal Budget - Third Party,A61019
Royal Borough of Kingston,18/04/2022,90095083,966,REDACTED - PERSONAL DATA,SOCIAL SERVICES - PERSONAL BUDGETS,Adult Social Care & Health,Personal Budget - Direct Payment,A61016
Royal Borough of Kingston,18/04/2022,90095114,966,REDACTED - PERSONAL DATA,SOCIAL SERVICES - DIRECT PAYMENTS,Adult Social Care & Health,Personal Budget - Direct Payment,A61016
Royal Borough of Kingston,30/08/2021,70021727,971.52,KNOWLES ASSOCIATES TFM LTD,VEHICLE & PLANT HIRE / MNTCE,Housing Revenue Account,Housing - Caretakers van leasing,A32005
Royal Borough of Kingston,01/04/2022,90112975,973.92,JUST MY PA,SOCIAL SERVICES RESIDENTIAL,Adult Social Care & Health,Personal Budget - Third Party,A61019
Royal Borough of Kingston,01/04/2022,90112813,974.57,BALANCE (SUPPORT) C.I.C,SOCIAL SERVICES - OTHER,Adult Social Care & Health,Personal Budget - Third Party,A61019
Royal Borough of Kingston,15/03/2022,70020517,976.93,KENT COUNTY COUNCIL,UTILITIES,Corporate & Communities,Electricity,A21000
Royal Borough of Kingston,18/04/2022,90095137,977.52,REDACTED - PERSONAL DATA,SOCIAL SERVICES - DIRECT PAYMENTS,Adult Social Care & Health,Personal Budget - Direct Payment,A61016
Royal Borough of Kingston,18/04/2022,90095146,981.04,REDACTED - PERSONAL DATA,SOCIAL SERVICES - DIRECT PAYMENTS,Adult Social Care & Health,Personal Budget - Direct Payment,A61016
Royal Borough of Kingston,30/04/2022,90110162,983.4,REDACTED - PERSONAL DATA,SOCIAL SERVICES - DIRECT PAYMENTS,Adult Social Care & Health,Payments To Carers,A56030
Royal Borough of Kingston,01/04/2022,90110143,983.57,FOUR SEASONS HEALTHCARE,SOCIAL SERVICES RESIDENTIAL,Adult Social Care & Health,Independent Placements,A56006
Royal Borough of Kingston,18/04/2022,90095223,984,REDACTED - PERSONAL DATA,SOCIAL SERVICES - PERSONAL BUDGETS,Adult Social Care & Health,Personal Budget - Direct Payment,A61016
Royal Borough of Kingston,25/04/2022,90111279,988,REDACTED - PERSONAL DATA,PLS LANDLORDS,Place,PSL Payments To Landlords,A22031
Royal Borough of Kingston,22/02/2022,70019946,988,YOUR HEALTHCARE CIC,CENTRAL & LOCAL GOVERNMENT,Adult Social Care & Health,Other Private Contractors - Third Party,A56080
Royal Borough of Kingston,25/04/2022,90111340,990.58,REDACTED - PERSONAL DATA,PLS LANDLORDS,Place,PSL Payments To Landlords,A22031
Royal Borough of Kingston,25/04/2022,90111330,993.34,REDACTED - PERSONAL DATA,PLS LANDLORDS,Place,PSL Payments To Landlords,A22031
Royal Borough of Kingston,25/04/2022,90111591,993.85,SWEETINGS CLIENTS,PLS LANDLORDS,Place,PSL Payments To Landlords,A22031
Royal Borough of Kingston,25/04/2022,90111168,994.22,REDACTED - PERSONAL DATA,PLS LANDLORDS,Place,PSL Payments To Landlords,A22031
Royal Borough of Kingston,01/04/2022,90119133,998.49,ENHANCEABLE,SOCIAL SERVICES - OTHER,Adult Social Care & Health,Personal Budget - Third Party,A61019
Royal Borough of Kingston,25/03/2022,70021676,"1,000.00",C & P HYGIENE,PREMISES - CLEANING & LAUNDRY,Capital Programme,Grants Given For Capital Purposes,C20004
Royal Borough of Kingston,25/04/2022,90111601,"1,000.00",REDACTED - PERSONAL DATA,PLS LANDLORDS,Place,PSL Payments To Landlords,A22031
Royal Borough of Kingston,27/04/2022,70023277,"1,000.00",FC Foundation Ltd,SUNDRY SUPPLIER - FINANCE,Adult Social Care & Health,"Grants, Contributions & Donations",A47005
Royal Borough of Kingston,04/04/2022,70021596,"1,000.00",REDACTED - PERSONAL DATA,SUNDRY SUPPLIER - HOUSING,Place,Housing Incentives,A62025
Royal Borough of Kingston,22/04/2022,70023017,"1,000.00",GRAHAM SPICER TABLE TENNIS CLUB 2000,CHARITIES & VOLUNTARY ORGNS,Adult Social Care & Health,"Grants, Contributions & Donations",A47005
Royal Borough of Kingston,10/04/2022,70022283,"1,000.00",INSPIRE SPORT,GRANTS & EX GRATIA PAYMENTS,Adult Social Care & Health,"Grants, Contributions & Donations",A47005
Royal Borough of Kingston,13/04/2022,70022568,"1,000.00",Kingfisher Triathletes,SUNDRY SUPPLIER - FINANCE,Adult Social Care & Health,"Grants, Contributions & Donations",A47005
Royal Borough of Kingston,13/04/2022,70022393,"1,000.00",KINGSTON CARERS NETWORK,GRANTS & EX GRATIA PAYMENTS,Adult Social Care & Health,"Grants, Contributions & Donations",A47005
Royal Borough of Kingston,25/04/2022,90111221,"1,000.00",LEATHERHEAD UNITED CHARITIES,PLS LANDLORDS,Place,PSL Payments To Landlords,A22031
Royal Borough of Kingston,31/03/2022,70021490,"1,000.00",LONDON BOROUGH OF RICHMOND UPON THAMES,CONNEXIONS SUPPLIERS,Adult Social Care & Health,Other Establishments,A55000
Royal Borough of Kingston,13/04/2022,70022452,"1,000.00",Malden Wanderers Cricket and Lawn Tennis Club,SUNDRY SUPPLIER - FINANCE,Adult Social Care & Health,"Grants, Contributions & Donations",A47005
Royal Borough of Kingston,25/04/2022,90111475,"1,000.00",REDACTED - PERSONAL DATA,PLS LANDLORDS,Place,PSL Payments To Landlords,A22031
Royal Borough of Kingston,25/04/2022,90111164,"1,000.00",REDACTED - PERSONAL DATA,PLS LANDLORDS,Place,PSL Payments To Landlords,A22031
Royal Borough of Kingston,25/04/2022,90111270,"1,000.00",REDACTED - PERSONAL DATA,PLS LANDLORDS,Place,PSL Payments To Landlords,A22031
Royal Borough of Kingston,07/03/2022,90112041,"1,002.32",BALANCE (SUPPORT) C.I.C,SOCIAL SERVICES - OTHER,Adult Social Care & Health,Supported Living - new framework,A56126
Royal Borough of Kingston,01/04/2022,90112824,"1,006.46",VOYAGE LTD,SOCIAL SERVICES RESIDENTIAL,Adult Social Care & Health,Personal Budget - Third Party,A61019
Royal Borough of Kingston,05/04/2022,90092783,"1,007.97",REDACTED - PERSONAL DATA,CHILDMINDERS START UP GRANT,Schools,PVI Providers,A60014
Royal Borough of Kingston,06/04/2022,70022484,"1,008.00",ADAM HOTEL MANAGEMENT LTD,ACCOMMODATION BED & BREAKFAST,Place,Bed & Breakfast,A56000
Royal Borough of Kingston,01/04/2022,70022252,"1,008.00",Stef and Philips,ACCOMMODATION BED & BREAKFAST,Place,Bed & Breakfast,A56000
Royal Borough of Kingston,05/04/2022,70021870,"1,009.00",PARK RETAIL LTD,SOCIAL SERVICES RESIDENTIAL,Housing Revenue Account,Consultancy Services - Other,A44065
Royal Borough of Kingston,01/04/2022,90112629,"1,016.74",THE GRANGE CENTRE,SOCIAL SERVICES RESIDENTIAL,Adult Social Care & Health,Personal Budget - Third Party,A61019
Royal Borough of Kingston,01/04/2022,90112635,"1,016.74",THE GRANGE CENTRE,SOCIAL SERVICES RESIDENTIAL,Adult Social Care & Health,Personal Budget - Third Party,A61019
Royal Borough of Kingston,01/04/2022,90112639,"1,016.74",THE GRANGE CENTRE,SOCIAL SERVICES RESIDENTIAL,Adult Social Care & Health,Personal Budget - Third Party,A61019
Royal Borough of Kingston,01/04/2022,90112649,"1,016.74",THE GRANGE CENTRE,SOCIAL SERVICES RESIDENTIAL,Adult Social Care & Health,Personal Budget - Third Party,A61019
Royal Borough of Kingston,01/04/2022,90112661,"1,020.94",BALANCE (SUPPORT) C.I.C,SOCIAL SERVICES - OTHER,Adult Social Care & Health,Personal Budget - Third Party,A61019
Royal Borough of Kingston,01/04/2022,70022243,"1,023.00",Stef and Philips,ACCOMMODATION BED & BREAKFAST,Place,Bed & Breakfast,A56000
Royal Borough of Kingston,01/04/2022,70022249,"1,023.00",Stef and Philips,ACCOMMODATION BED & BREAKFAST,Place,Bed & Breakfast,A56000
Royal Borough of Kingston,01/04/2022,70022249,"1,023.00",Stef and Philips,ACCOMMODATION BED & BREAKFAST,Place,Bed & Breakfast,A56000
Royal Borough of Kingston,01/04/2022,70022249,"1,023.00",Stef and Philips,ACCOMMODATION BED & BREAKFAST,Place,Bed & Breakfast,A56000
Royal Borough of Kingston,01/04/2022,70022249,"1,023.00",Stef and Philips,ACCOMMODATION BED & BREAKFAST,Place,Bed & Breakfast,A56000
Royal Borough of Kingston,01/04/2022,70022249,"1,023.00",Stef and Philips,ACCOMMODATION BED & BREAKFAST,Place,Bed & Breakfast,A56000
Royal Borough of Kingston,01/04/2022,70022249,"1,023.00",Stef and Philips,ACCOMMODATION BED & BREAKFAST,Place,Bed & Breakfast,A56000
Royal Borough of Kingston,01/04/2022,70022251,"1,023.00",Stef and Philips,ACCOMMODATION BED & BREAKFAST,Place,Bed & Breakfast,A56000
Royal Borough of Kingston,01/04/2022,70022251,"1,023.00",Stef and Philips,ACCOMMODATION BED & BREAKFAST,Place,Bed & Breakfast,A56000
Royal Borough of Kingston,01/04/2022,70022251,"1,023.00",Stef and Philips,ACCOMMODATION BED & BREAKFAST,Place,Bed & Breakfast,A56000
Royal Borough of Kingston,18/04/2022,90095201,"1,024.00",REDACTED - PERSONAL DATA,SOCIAL SERVICES - PERSONAL BUDGETS,Adult Social Care & Health,Personal Budget - Direct Payment,A61016
Royal Borough of Kingston,25/04/2022,90111385,"1,025.00",REDACTED - PERSONAL DATA,PLS LANDLORDS,Place,PSL Payments To Landlords,A22031
Royal Borough of Kingston,20/04/2022,70022466,"1,029.62",KENT COUNTY COUNCIL,UTILITIES,Corporate & Communities,Electricity,A21000
Royal Borough of Kingston,25/04/2022,90111252,"1,033.33",REDACTED - PERSONAL DATA,PLS LANDLORDS,Place,PSL Payments To Landlords,A22031
Royal Borough of Kingston,28/03/2022,70021246,"1,033.64",AXIS EUROPE PLC,CONSTRUCTION INDUSTRY,Capital Programme,Council Dwellings - Construction & Renovation,C10002
Royal Borough of Kingston,13/04/2022,70022546,"1,033.69",KENT COUNTY COUNCIL,UTILITIES,Corporate & Communities,Gas,A21003
Royal Borough of Kingston,05/04/2022,70021654,"1,035.00",AP RENTAL INC LTD,LANDLORDS,Adult Social Care & Health,Housing Benefit - Rent Allowances -Private Tenants Only,A62009
Royal Borough of Kingston,25/04/2022,90111272,"1,038.66",REDACTED - PERSONAL DATA,PLS LANDLORDS,Place,PSL Payments To Landlords,A22031
Royal Borough of Kingston,18/04/2022,90095202,"1,038.84",REDACTED - PERSONAL DATA,SOCIAL SERVICES - PERSONAL BUDGETS,Adult Social Care & Health,Personal Budget - Direct Payment,A61016
Royal Borough of Kingston,01/04/2022,90112000,"1,039.00",ALBERT RESIDENTIAL HOME,SOCIAL SERVICES RESIDENTIAL,Adult Social Care & Health,Other Private Contractors - Third Party,A56080
Royal Borough of Kingston,25/04/2022,90111231,"1,041.66",REDACTED - PERSONAL DATA,PLS LANDLORDS,Place,PSL Payments To Landlords,A22031
Royal Borough of Kingston,13/04/2022,70022238,"1,041.78",KENT COUNTY COUNCIL,UTILITIES,Housing Revenue Account,Gas,A21003
Royal Borough of Kingston,04/04/2022,90111059,"1,043.91",WINSOR CARE SERVICES LTD,SOCIAL SERVICES RESIDENTIAL,Adult Social Care & Health,Personal Budget - Third Party,A61019
Royal Borough of Kingston,25/04/2022,90111575,"1,045.00",REDACTED - PERSONAL DATA,PLS LANDLORDS,Place,PSL Payments To Landlords,A22031
Royal Borough of Kingston,01/04/2022,90112984,"1,045.50",REDACTED - PERSONAL DATA,SOCIAL SERVICES - PERSONAL BUDGETS,Adult Social Care & Health,Personal Budget - Third Party,A61019
Royal Borough of Kingston,25/04/2022,90111473,"1,046.75",REDACTED - PERSONAL DATA,PLS LANDLORDS,Place,PSL Payments To Landlords,A22031
Royal Borough of Kingston,18/04/2022,90095091,"1,046.76",REDACTED - PERSONAL DATA,SOCIAL SERVICES - PERSONAL BUDGETS,Adult Social Care & Health,Personal Budget - Direct Payment,A61016
Royal Borough of Kingston,25/04/2022,90111173,"1,047.00",Accountancy Services (New Malden) Limited,PLS LANDLORDS,Place,PSL Payments To Landlords,A22031
Royal Borough of Kingston,25/04/2022,90111160,"1,047.00",REDACTED - PERSONAL DATA,PLS LANDLORDS,Place,PSL Payments To Landlords,A22031
Royal Borough of Kingston,25/04/2022,90111179,"1,047.00",REDACTED - PERSONAL DATA,PLS LANDLORDS,Place,PSL Payments To Landlords,A22031
Royal Borough of Kingston,25/04/2022,90111180,"1,047.00",REDACTED - PERSONAL DATA,PLS LANDLORDS,Place,PSL Payments To Landlords,A22031
Royal Borough of Kingston,25/04/2022,90111172,"1,047.00",EARLSFIELD PROPERTIES,PLS LANDLORDS,Place,PSL Payments To Landlords,A22031
Royal Borough of Kingston,25/04/2022,90111181,"1,047.00",REDACTED - PERSONAL DATA,PLS LANDLORDS,Place,PSL Payments To Landlords,A22031
Royal Borough of Kingston,25/04/2022,90111178,"1,047.00",REDACTED - PERSONAL DATA,PLS LANDLORDS,Place,PSL Payments To Landlords,A22031
Royal Borough of Kingston,25/04/2022,90111162,"1,047.00",REDACTED - PERSONAL DATA,PLS LANDLORDS,Place,PSL Payments To Landlords,A22031
Royal Borough of Kingston,25/04/2022,90111171,"1,047.00",REDACTED - PERSONAL DATA,PLS LANDLORDS,Place,PSL Payments To Landlords,A22031
Royal Borough of Kingston,25/04/2022,90111169,"1,047.00",REDACTED - PERSONAL DATA,PLS LANDLORDS,Place,PSL Payments To Landlords,A22031
Royal Borough of Kingston,25/04/2022,90111176,"1,047.00",COOMBE HILL INVESTMENTS,PLS LANDLORDS,Place,PSL Payments To Landlords,A22031
Royal Borough of Kingston,25/04/2022,90111177,"1,047.00",COOMBE HILL INVESTMENTS,PLS LANDLORDS,Place,PSL Payments To Landlords,A22031
Royal Borough of Kingston,25/04/2022,90111167,"1,047.00",REDACTED - PERSONAL DATA,PLS LANDLORDS,Place,PSL Payments To Landlords,A22031
Royal Borough of Kingston,31/03/2022,70021609,"1,047.98",CANON (UK) LTD,OPERATIONAL EQUIPMENT/MATERIAL,Corporate & Communities,Printing And Photocopying,A43005
Royal Borough of Kingston,25/04/2022,90111163,"1,050.00",ALEXANDRA SCHOOL,PLS LANDLORDS,Place,PSL Payments To Landlords,A22031
Royal Borough of Kingston,25/04/2022,90111268,"1,050.00",REDACTED - PERSONAL DATA,PLS LANDLORDS,Place,PSL Payments To Landlords,A22031
Royal Borough of Kingston,25/04/2022,90111386,"1,050.00",REDACTED - PERSONAL DATA,PLS LANDLORDS,Place,PSL Payments To Landlords,A22031
Royal Borough of Kingston,01/04/2022,90112652,"1,050.00",THE GRANGE CENTRE,SOCIAL SERVICES RESIDENTIAL,Adult Social Care & Health,Personal Budget - Third Party,A61019
Royal Borough of Kingston,18/04/2022,90095130,"1,050.20",REDACTED - PERSONAL DATA,SOCIAL SERVICES - DIRECT PAYMENTS,Adult Social Care & Health,Personal Budget - Direct Payment,A61016
Royal Borough of Kingston,01/04/2022,70021581,"1,050.40",Credence Direct Limited,TEMP STAFF & CONSULTANCY,Adult Social Care & Health,Other Private Contractors - Third Party,A56080
Royal Borough of Kingston,01/04/2022,90112631,"1,050.63",THE GRANGE CENTRE,SOCIAL SERVICES RESIDENTIAL,Adult Social Care & Health,Personal Budget - Third Party,A61019
Royal Borough of Kingston,01/04/2022,90112633,"1,050.63",THE GRANGE CENTRE,SOCIAL SERVICES RESIDENTIAL,Adult Social Care & Health,Personal Budget - Third Party,A61019
Royal Borough of Kingston,01/04/2022,90112637,"1,050.63",THE GRANGE CENTRE,SOCIAL SERVICES RESIDENTIAL,Adult Social Care & Health,Personal Budget - Third Party,A61019
Royal Borough of Kingston,01/04/2022,90112641,"1,050.63",THE GRANGE CENTRE,SOCIAL SERVICES RESIDENTIAL,Adult Social Care & Health,Personal Budget - Third Party,A61019
Royal Borough of Kingston,01/04/2022,90112643,"1,050.63",THE GRANGE CENTRE,SOCIAL SERVICES RESIDENTIAL,Adult Social Care & Health,Personal Budget - Third Party,A61019
Royal Borough of Kingston,01/04/2022,90112647,"1,050.63",THE GRANGE CENTRE,SOCIAL SERVICES RESIDENTIAL,Adult Social Care & Health,Personal Budget - Third Party,A61019
Royal Borough of Kingston,25/04/2022,90111529,"1,051.20",REDACTED - PERSONAL DATA,PLS LANDLORDS,Place,PSL Payments To Landlords,A22031
Royal Borough of Kingston,25/04/2022,90111387,"1,052.25",REDACTED - PERSONAL DATA,PLS LANDLORDS,Place,PSL Payments To Landlords,A22031
Royal Borough of Kingston,25/04/2022,90111599,"1,052.26",JOHN FOWLERS LLP,PLS LANDLORDS,Place,PSL Payments To Landlords,A22031
Royal Borough of Kingston,25/04/2022,90111214,"1,052.26",REDACTED - PERSONAL DATA,PLS LANDLORDS,Place,PSL Payments To Landlords,A22031
Royal Borough of Kingston,25/04/2022,90111366,"1,052.26",REDACTED - PERSONAL DATA,PLS LANDLORDS,Place,PSL Payments To Landlords,A22031
Royal Borough of Kingston,25/04/2022,90111314,"1,052.26",WORTHSTREAM LIMITED,PLS LANDLORDS,Place,PSL Payments To Landlords,A22031
Royal Borough of Kingston,25/04/2022,90111315,"1,052.26",WORTHSTREAM LIMITED,PLS LANDLORDS,Place,PSL Payments To Landlords,A22031
Royal Borough of Kingston,25/04/2022,90111361,"1,053.00",REDACTED - PERSONAL DATA,PLS LANDLORDS,Place,PSL Payments To Landlords,A22031
Royal Borough of Kingston,25/04/2022,90111536,"1,053.00",REDACTED - PERSONAL DATA,PLS LANDLORDS,Place,PSL Payments To Landlords,A22031
Royal Borough of Kingston,25/04/2022,90111439,"1,053.00",REDACTED - PERSONAL DATA,PLS LANDLORDS,Place,PSL Payments To Landlords,A22031
Royal Borough of Kingston,25/04/2022,90111269,"1,056.67",REDACTED - PERSONAL DATA,PLS LANDLORDS,Place,PSL Payments To Landlords,A22031
Royal Borough of Kingston,03/04/2022,70021628,"1,057.85",BDT HEALTHCARE LTD,SOCIAL SERVICES - OTHER,Adult Social Care & Health,Other Private Contractors - Third Party,A56080
Royal Borough of Kingston,25/04/2022,90111357,"1,061.66",REDACTED - PERSONAL DATA,PLS LANDLORDS,Place,PSL Payments To Landlords,A22031
Royal Borough of Kingston,18/04/2022,90095088,"1,062.00",REDACTED - PERSONAL DATA,SOCIAL SERVICES - PERSONAL BUDGETS,Adult Social Care & Health,Personal Budget - Direct Payment,A61016
Royal Borough of Kingston,18/04/2022,90095302,"1,065.40",REDACTED - PERSONAL DATA,SOCIAL SERVICES - PERSONAL BUDGETS,Adult Social Care & Health,Personal Budget - Direct Payment,A61016
Royal Borough of Kingston,25/04/2022,90111267,"1,066.66",REDACTED - PERSONAL DATA,PLS LANDLORDS,Place,PSL Payments To Landlords,A22031
Royal Borough of Kingston,01/04/2022,70022954,"1,068.00",CRYSTAL & CO,ACCOMMODATION BED & BREAKFAST,Place,Bed & Breakfast,A56000
Royal Borough of Kingston,01/04/2022,90111805,"1,068.69",CHD LIVING,SOCIAL SERVICES RESIDENTIAL,Adult Social Care & Health,Independent Placements,A56006
Royal Borough of Kingston,01/04/2022,90119054,"1,071.43",GENEVA ROAD LIMITED,SOCIAL SERVICES RESIDENTIAL,Adult Social Care & Health,Personal Budget - Third Party,A61019
Royal Borough of Kingston,01/04/2022,90119055,"1,071.43",GENEVA ROAD LIMITED,SOCIAL SERVICES RESIDENTIAL,Adult Social Care & Health,Personal Budget - Third Party,A61019
Royal Borough of Kingston,01/04/2022,90119063,"1,071.43",GENEVA ROAD LIMITED,SOCIAL SERVICES RESIDENTIAL,Adult Social Care & Health,Personal Budget - Third Party,A61019
Royal Borough of Kingston,01/04/2022,90119072,"1,071.43",GENEVA ROAD LIMITED,SOCIAL SERVICES RESIDENTIAL,Adult Social Care & Health,Personal Budget - Third Party,A61019
Royal Borough of Kingston,01/04/2022,90119073,"1,071.43",GENEVA ROAD LIMITED,SOCIAL SERVICES RESIDENTIAL,Adult Social Care & Health,Personal Budget - Third Party,A61019
Royal Borough of Kingston,01/04/2022,90119074,"1,071.43",HF TRUST LTD ,SOCIAL SERVICES DAY CARE,Adult Social Care & Health,Personal Budget - Third Party,A61019
Royal Borough of Kingston,01/04/2022,90119089,"1,071.43",HF TRUST LTD ,SOCIAL SERVICES DAY CARE,Adult Social Care & Health,Personal Budget - Third Party,A61019
Royal Borough of Kingston,01/04/2022,90119094,"1,071.43",HF TRUST LTD ,SOCIAL SERVICES DAY CARE,Adult Social Care & Health,Personal Budget - Third Party,A61019
Royal Borough of Kingston,01/04/2022,90119103,"1,071.43",HF TRUST LTD ,SOCIAL SERVICES DAY CARE,Adult Social Care & Health,Personal Budget - Third Party,A61019
Royal Borough of Kingston,01/04/2022,90119107,"1,071.43",HF TRUST LTD ,SOCIAL SERVICES DAY CARE,Adult Social Care & Health,Personal Budget - Third Party,A61019
Royal Borough of Kingston,01/04/2022,90119111,"1,071.43",HF TRUST LTD ,SOCIAL SERVICES DAY CARE,Adult Social Care & Health,Personal Budget - Third Party,A61019
Royal Borough of Kingston,01/04/2022,90119113,"1,071.43",HF TRUST LTD ,SOCIAL SERVICES DAY CARE,Adult Social Care & Health,Personal Budget - Third Party,A61019
Royal Borough of Kingston,25/04/2022,90111471,"1,073.00",REDACTED - PERSONAL DATA,PLS LANDLORDS,Place,PSL Payments To Landlords,A22031
Royal Borough of Kingston,30/03/2022,70021555,"1,073.40",MAIL SOLUTIONS UK LTD,OFFICE SUPPLIES,Corporate & Communities,Postage & Couriers,A45015
Royal Borough of Kingston,18/04/2022,90095214,"1,074.12",REDACTED - PERSONAL DATA,SOCIAL SERVICES - DIRECT PAYMENTS,Adult Social Care & Health,Personal Budget - Direct Payment,A61016
Royal Borough of Kingston,01/04/2022,90113005,"1,074.99",COMFORT CARE SERVICES UK LTD,SOCIAL SERVICES-HOME CARE,Adult Social Care & Health,Personal Budget - Third Party,A61019
Royal Borough of Kingston,01/04/2022,90113028,"1,074.99",COMFORT CARE SERVICES UK LTD,SOCIAL SERVICES-HOME CARE,Adult Social Care & Health,Personal Budget - Third Party,A61019
Royal Borough of Kingston,25/04/2022,90111353,"1,075.00",REDACTED - PERSONAL DATA,PLS LANDLORDS,Place,PSL Payments To Landlords,A22031
Royal Borough of Kingston,25/04/2022,90111198,"1,075.00",REDACTED - PERSONAL DATA,PLS LANDLORDS,Place,PSL Payments To Landlords,A22031
Royal Borough of Kingston,12/03/2022,70021645,"1,076.88",INDEPENDENT LIVING LTD,SOCIAL SERVICES - OTHER,Capital Programme,Grants Given For Capital Purposes,C20004
Royal Borough of Kingston,26/11/2021,70021388,"1,080.00",ACCESS INDEPENDENT LIMITED,SOCIAL SERVICES - OTHER,Adult Social Care & Health,Other Private Contractors - Third Party,A56080
Royal Borough of Kingston,30/04/2022,90119027,"1,080.00",REDACTED - PERSONAL DATA,SOCIAL SERVICES - DIRECT PAYMENTS,Adult Social Care & Health,Payments To Carers,A56030
Royal Borough of Kingston,06/04/2022,70022480,"1,085.00",ADAM HOTEL MANAGEMENT LTD,ACCOMMODATION BED & BREAKFAST,Place,Bed & Breakfast,A56000
Royal Borough of Kingston,06/04/2022,70022491,"1,085.00",ADAM HOTEL MANAGEMENT LTD,ACCOMMODATION BED & BREAKFAST,Place,Bed & Breakfast,A56000
Royal Borough of Kingston,05/04/2022,70021653,"1,085.00",AP RENTAL INC LTD,LANDLORDS,Adult Social Care & Health,Housing Benefit - Rent Allowances -Private Tenants Only,A62009
Royal Borough of Kingston,31/03/2022,70022774,"1,085.00",Dunheved Hotel LTD,ACCOMMODATION BED & BREAKFAST,Place,Bed & Breakfast,A56000
Royal Borough of Kingston,31/03/2022,70022524,"1,085.00",LHG Wembley LTD,ACCOMMODATION BED & BREAKFAST,Place,Bed & Breakfast,A56000
Royal Borough of Kingston,31/03/2022,70022524,"1,085.00",LHG Wembley LTD,ACCOMMODATION BED & BREAKFAST,Place,Bed & Breakfast,A56000
Royal Borough of Kingston,31/03/2022,70022772,"1,085.00",London Croydon LTD,ACCOMMODATION BED & BREAKFAST,Place,Bed & Breakfast,A56000
Royal Borough of Kingston,01/04/2022,70022242,"1,085.00",Stef and Philips,ACCOMMODATION BED & BREAKFAST,Place,Bed & Breakfast,A56000
Royal Borough of Kingston,01/04/2022,70022245,"1,085.00",Stef and Philips,ACCOMMODATION BED & BREAKFAST,Place,Bed & Breakfast,A56000
Royal Borough of Kingston,01/04/2022,70022245,"1,085.00",Stef and Philips,ACCOMMODATION BED & BREAKFAST,Place,Bed & Breakfast,A56000
Royal Borough of Kingston,01/04/2022,70022248,"1,085.00",Stef and Philips,ACCOMMODATION BED & BREAKFAST,Place,Bed & Breakfast,A56000
Royal Borough of Kingston,01/04/2022,70022250,"1,085.00",Stef and Philips,ACCOMMODATION BED & BREAKFAST,Place,Bed & Breakfast,A56000
Royal Borough of Kingston,01/04/2022,70022250,"1,085.00",Stef and Philips,ACCOMMODATION BED & BREAKFAST,Place,Bed & Breakfast,A56000
Royal Borough of Kingston,01/04/2022,70022250,"1,085.00",Stef and Philips,ACCOMMODATION BED & BREAKFAST,Place,Bed & Breakfast,A56000
Royal Borough of Kingston,01/04/2022,70022250,"1,085.00",Stef and Philips,ACCOMMODATION BED & BREAKFAST,Place,Bed & Breakfast,A56000
Royal Borough of Kingston,01/04/2022,70022251,"1,085.00",Stef and Philips,ACCOMMODATION BED & BREAKFAST,Place,Bed & Breakfast,A56000
Royal Borough of Kingston,01/04/2022,70022252,"1,085.00",Stef and Philips,ACCOMMODATION BED & BREAKFAST,Place,Bed & Breakfast,A56000
Royal Borough of Kingston,18/03/2022,70023046,"1,085.98",ANGLIAN WATER BUSINESS NATIONAL LTD,UTILITIES,Housing Revenue Account,Water Services,A24005
Royal Borough of Kingston,18/04/2022,90095127,"1,088.00",REDACTED - PERSONAL DATA,SOCIAL SERVICES - PERSONAL BUDGETS,Adult Social Care & Health,Personal Budget - Direct Payment,A61016
Royal Borough of Kingston,25/04/2022,90111370,"1,090.00",REDACTED - PERSONAL DATA,PLS LANDLORDS,Place,PSL Payments To Landlords,A22031
Royal Borough of Kingston,25/04/2022,90111578,"1,090.00",REDACTED - PERSONAL DATA,PLS LANDLORDS,Place,PSL Payments To Landlords,A22031
Royal Borough of Kingston,25/04/2022,90111458,"1,091.00",REDACTED - PERSONAL DATA,PLS LANDLORDS,Place,PSL Payments To Landlords,A22031
Royal Borough of Kingston,25/04/2022,90111349,"1,091.00",REDACTED - PERSONAL DATA,PLS LANDLORDS,Place,PSL Payments To Landlords,A22031
Royal Borough of Kingston,25/04/2022,90111351,"1,091.58",REDACTED - PERSONAL DATA,PLS LANDLORDS,Place,PSL Payments To Landlords,A22031
Royal Borough of Kingston,25/04/2022,90111218,"1,091.64",REDACTED - PERSONAL DATA,PLS LANDLORDS,Place,PSL Payments To Landlords,A22031
Royal Borough of Kingston,18/04/2022,90095279,"1,092.00",REDACTED - PERSONAL DATA,SOCIAL SERVICES - PERSONAL BUDGETS,Adult Social Care & Health,Personal Budget - Direct Payment,A61016
Royal Borough of Kingston,18/04/2022,90095255,"1,092.40",REDACTED - PERSONAL DATA,SOCIAL SERVICES - DIRECT PAYMENTS,Adult Social Care & Health,Personal Budget - Direct Payment,A61016
Royal Borough of Kingston,07/03/2022,90112063,"1,092.86",EMEZZIONS LIMITED ,SOCIAL SERVICES - OTHER,Adult Social Care & Health,Supported Living - new framework,A56126
Royal Borough of Kingston,25/04/2022,90111581,"1,093.00",COOMBE HILL INVESTMENTS,PLS LANDLORDS,Place,PSL Payments To Landlords,A22031
Royal Borough of Kingston,25/04/2022,90111229,"1,093.50",REDACTED - PERSONAL DATA,PLS LANDLORDS,Place,PSL Payments To Landlords,A22031
Royal Borough of Kingston,25/04/2022,90111429,"1,093.50",REDACTED - PERSONAL DATA,PLS LANDLORDS,Place,PSL Payments To Landlords,A22031
Royal Borough of Kingston,25/04/2022,90111424,"1,093.50",REDACTED - PERSONAL DATA,PLS LANDLORDS,Place,PSL Payments To Landlords,A22031
Royal Borough of Kingston,25/04/2022,90111418,"1,093.50",REDACTED - PERSONAL DATA,PLS LANDLORDS,Place,PSL Payments To Landlords,A22031
Royal Borough of Kingston,25/04/2022,90111531,"1,093.50",COOMBE HILL INVESTMENTS,PLS LANDLORDS,Place,PSL Payments To Landlords,A22031
Royal Borough of Kingston,25/04/2022,90111612,"1,093.50",COOMBE HILL INVESTMENTS,PLS LANDLORDS,Place,PSL Payments To Landlords,A22031
Royal Borough of Kingston,25/04/2022,90111364,"1,093.52",REDACTED - PERSONAL DATA,PLS LANDLORDS,Place,PSL Payments To Landlords,A22031
Royal Borough of Kingston,25/04/2022,90111291,"1,094.00",REDACTED - PERSONAL DATA,PLS LANDLORDS,Place,PSL Payments To Landlords,A22031
Royal Borough of Kingston,25/04/2022,90111419,"1,094.00",REDACTED - PERSONAL DATA,LANDLORDS,Place,PSL Payments To Landlords,A22031
Royal Borough of Kingston,25/04/2022,90111487,"1,094.00",REDACTED - PERSONAL DATA,PLS LANDLORDS,Place,PSL Payments To Landlords,A22031
Royal Borough of Kingston,25/04/2022,90111247,"1,094.00",REDACTED - PERSONAL DATA,PLS LANDLORDS,Place,PSL Payments To Landlords,A22031
Royal Borough of Kingston,25/04/2022,90111550,"1,094.00",REDACTED - PERSONAL DATA,PLS LANDLORDS,Place,PSL Payments To Landlords,A22031
Royal Borough of Kingston,25/04/2022,90111318,"1,094.00",REDACTED - PERSONAL DATA,PLS LANDLORDS,Place,PSL Payments To Landlords,A22031
Royal Borough of Kingston,25/04/2022,90111222,"1,094.00",REDACTED - PERSONAL DATA,PLS LANDLORDS,Place,PSL Payments To Landlords,A22031
Royal Borough of Kingston,25/04/2022,90111259,"1,094.00",CASTLE WILDISH RESI LTD,PLS LANDLORDS,Place,PSL Payments To Landlords,A22031
Royal Borough of Kingston,25/04/2022,90111444,"1,094.00",CLIFFE &  ROCHFORD,PLS LANDLORDS,Place,PSL Payments To Landlords,A22031
Royal Borough of Kingston,25/04/2022,90111303,"1,094.00",REDACTED - PERSONAL DATA,PLS LANDLORDS,Place,PSL Payments To Landlords,A22031
Royal Borough of Kingston,25/04/2022,90111320,"1,094.00",REDACTED - PERSONAL DATA,PLS LANDLORDS,Place,PSL Payments To Landlords,A22031
Royal Borough of Kingston,25/04/2022,90111548,"1,094.00",REDACTED - PERSONAL DATA,PLS LANDLORDS,Place,PSL Payments To Landlords,A22031
Royal Borough of Kingston,25/04/2022,90111508,"1,094.00",REDACTED - PERSONAL DATA,PLS LANDLORDS,Place,PSL Payments To Landlords,A22031
Royal Borough of Kingston,25/04/2022,90111530,"1,094.00",REDACTED - PERSONAL DATA,PLS LANDLORDS,Place,PSL Payments To Landlords,A22031
Royal Borough of Kingston,25/04/2022,90111542,"1,094.00",REDACTED - PERSONAL DATA,PLS LANDLORDS,Place,PSL Payments To Landlords,A22031
Royal Borough of Kingston,25/04/2022,90111390,"1,094.00",EARLSFIELD PROPERTIES,PLS LANDLORDS,Place,PSL Payments To Landlords,A22031
Royal Borough of Kingston,25/04/2022,90111391,"1,094.00",EARLSFIELD PROPERTIES,PLS LANDLORDS,Place,PSL Payments To Landlords,A22031
Royal Borough of Kingston,25/04/2022,90111206,"1,094.00",REDACTED - PERSONAL DATA,PLS LANDLORDS,Place,PSL Payments To Landlords,A22031
Royal Borough of Kingston,25/04/2022,90111434,"1,094.00",REDACTED - PERSONAL DATA,PLS LANDLORDS,Place,PSL Payments To Landlords,A22031
Royal Borough of Kingston,25/04/2022,90111468,"1,094.00",REDACTED - PERSONAL DATA,PLS LANDLORDS,Place,PSL Payments To Landlords,A22031
Royal Borough of Kingston,25/04/2022,90111355,"1,094.00",REDACTED - PERSONAL DATA,PLS LANDLORDS,Place,PSL Payments To Landlords,A22031
Royal Borough of Kingston,25/04/2022,90111443,"1,094.00",REDACTED - PERSONAL DATA,PLS LANDLORDS,Place,PSL Payments To Landlords,A22031
Royal Borough of Kingston,25/04/2022,90111333,"1,094.00",KEYCIRCLE LTD ,PLS LANDLORDS,Place,PSL Payments To Landlords,A22031
Royal Borough of Kingston,25/04/2022,90111394,"1,094.00",REDACTED - PERSONAL DATA,PLS LANDLORDS,Place,PSL Payments To Landlords,A22031
Royal Borough of Kingston,25/04/2022,90111506,"1,094.00",REDACTED - PERSONAL DATA,PLS LANDLORDS,Place,PSL Payments To Landlords,A22031
Royal Borough of Kingston,25/04/2022,90111412,"1,094.00",CRPD,PLS LANDLORDS,Place,PSL Payments To Landlords,A22031
Royal Borough of Kingston,25/04/2022,90111413,"1,094.00",CRPD,PLS LANDLORDS,Place,PSL Payments To Landlords,A22031
Royal Borough of Kingston,25/04/2022,90111414,"1,094.00",CRPD,PLS LANDLORDS,Place,PSL Payments To Landlords,A22031
Royal Borough of Kingston,25/04/2022,90111415,"1,094.00",CRPD,PLS LANDLORDS,Place,PSL Payments To Landlords,A22031
Royal Borough of Kingston,25/04/2022,90111604,"1,094.00",REDACTED - PERSONAL DATA,PLS LANDLORDS,Place,PSL Payments To Landlords,A22031
Royal Borough of Kingston,25/04/2022,90111523,"1,094.00",REDACTED - PERSONAL DATA,PLS LANDLORDS,Place,PSL Payments To Landlords,A22031
Royal Borough of Kingston,25/04/2022,90111405,"1,094.00",REDACTED - PERSONAL DATA,PLS LANDLORDS,Place,PSL Payments To Landlords,A22031
Royal Borough of Kingston,25/04/2022,90111393,"1,094.00",REDACTED - PERSONAL DATA,PLS LANDLORDS,Place,PSL Payments To Landlords,A22031
Royal Borough of Kingston,25/04/2022,90111226,"1,094.00",REDACTED - PERSONAL DATA,PLS LANDLORDS,Place,PSL Payments To Landlords,A22031
Royal Borough of Kingston,25/04/2022,90111558,"1,094.00",REDACTED - PERSONAL DATA,PLS LANDLORDS,Place,PSL Payments To Landlords,A22031
Royal Borough of Kingston,25/04/2022,90111408,"1,094.00",REDACTED - PERSONAL DATA,PLS LANDLORDS,Place,PSL Payments To Landlords,A22031
Royal Borough of Kingston,25/04/2022,90111360,"1,094.00",REDACTED - PERSONAL DATA,PLS LANDLORDS,Place,PSL Payments To Landlords,A22031
Royal Borough of Kingston,25/04/2022,90111609,"1,094.00",REDACTED - PERSONAL DATA,PLS LANDLORDS,Place,PSL Payments To Landlords,A22031
Royal Borough of Kingston,25/04/2022,90111196,"1,094.00",REDACTED - PERSONAL DATA,PLS LANDLORDS,Place,PSL Payments To Landlords,A22031
Royal Borough of Kingston,25/04/2022,90111348,"1,094.00",REDACTED - PERSONAL DATA,PLS LANDLORDS,Place,PSL Payments To Landlords,A22031
Royal Borough of Kingston,25/04/2022,90111540,"1,094.00",REDACTED - PERSONAL DATA,PLS LANDLORDS,Place,PSL Payments To Landlords,A22031
Royal Borough of Kingston,25/04/2022,90111210,"1,094.00",REDACTED - PERSONAL DATA,PLS LANDLORDS,Place,PSL Payments To Landlords,A22031
Royal Borough of Kingston,25/04/2022,90111384,"1,094.00",REDACTED - PERSONAL DATA,PLS LANDLORDS,Place,PSL Payments To Landlords,A22031
Royal Borough of Kingston,25/04/2022,90111253,"1,094.00",REDACTED - PERSONAL DATA,PLS LANDLORDS,Place,PSL Payments To Landlords,A22031
Royal Borough of Kingston,25/04/2022,90111552,"1,094.00",REDACTED - PERSONAL DATA,PLS LANDLORDS,Place,PSL Payments To Landlords,A22031
Royal Borough of Kingston,25/04/2022,90111545,"1,094.00",REDACTED - PERSONAL DATA,PLS LANDLORDS,Place,PSL Payments To Landlords,A22031
Royal Borough of Kingston,25/04/2022,90111289,"1,094.00",REDACTED - PERSONAL DATA,PLS LANDLORDS,Place,PSL Payments To Landlords,A22031
Royal Borough of Kingston,25/04/2022,90111195,"1,094.00",REDACTED - PERSONAL DATA,PLS LANDLORDS,Place,PSL Payments To Landlords,A22031
Royal Borough of Kingston,25/04/2022,90111409,"1,094.00",REDACTED - PERSONAL DATA,PLS LANDLORDS,Place,PSL Payments To Landlords,A22031
Royal Borough of Kingston,25/04/2022,90111234,"1,094.00",REDACTED - PERSONAL DATA,PLS LANDLORDS,Place,PSL Payments To Landlords,A22031
Royal Borough of Kingston,25/04/2022,90111605,"1,094.00",REDACTED - PERSONAL DATA,PLS LANDLORDS,Place,PSL Payments To Landlords,A22031
Royal Borough of Kingston,25/04/2022,90111304,"1,094.00",REDACTED - PERSONAL DATA,PLS LANDLORDS,Place,PSL Payments To Landlords,A22031
Royal Borough of Kingston,25/04/2022,90111249,"1,094.00",REDACTED - PERSONAL DATA,PLS LANDLORDS,Place,PSL Payments To Landlords,A22031
Royal Borough of Kingston,25/04/2022,90111432,"1,094.00",COOMBE HILL INVESTMENTS,PLS LANDLORDS,Place,PSL Payments To Landlords,A22031
Royal Borough of Kingston,25/04/2022,90111277,"1,094.00",REDACTED - PERSONAL DATA,PLS LANDLORDS,Place,PSL Payments To Landlords,A22031
Royal Borough of Kingston,25/04/2022,90111240,"1,094.00",REDACTED - PERSONAL DATA,PLS LANDLORDS,Place,PSL Payments To Landlords,A22031
Royal Borough of Kingston,25/04/2022,90111241,"1,094.00",REDACTED - PERSONAL DATA,PLS LANDLORDS,Place,PSL Payments To Landlords,A22031
Royal Borough of Kingston,25/04/2022,90111194,"1,094.00",REDACTED - PERSONAL DATA,PLS LANDLORDS,Place,PSL Payments To Landlords,A22031
Royal Borough of Kingston,25/04/2022,90111286,"1,094.00",WIND SONGS INVESTMENT LIMITED,PLS LANDLORDS,Place,PSL Payments To Landlords,A22031
Royal Borough of Kingston,25/04/2022,90111287,"1,094.00",WIND SONGS INVESTMENT LIMITED,PLS LANDLORDS,Place,PSL Payments To Landlords,A22031
Royal Borough of Kingston,25/04/2022,90111504,"1,094.00",REDACTED - PERSONAL DATA,PLS LANDLORDS,Place,PSL Payments To Landlords,A22031
Royal Borough of Kingston,25/04/2022,90111524,"1,094.00",REDACTED - PERSONAL DATA,PLS LANDLORDS,Place,PSL Payments To Landlords,A22031
Royal Borough of Kingston,25/04/2022,90111579,"1,094.33",REDACTED - PERSONAL DATA,PLS LANDLORDS,Place,PSL Payments To Landlords,A22031
Royal Borough of Kingston,25/04/2022,90111416,"1,094.33",REDACTED - PERSONAL DATA,PLS LANDLORDS,Place,PSL Payments To Landlords,A22031
Royal Borough of Kingston,25/04/2022,90111213,"1,094.33",REDACTED - PERSONAL DATA,PLS LANDLORDS,Place,PSL Payments To Landlords,A22031
Royal Borough of Kingston,25/04/2022,90111543,"1,094.33",REDACTED - PERSONAL DATA,PLS LANDLORDS,Place,PSL Payments To Landlords,A22031
Royal Borough of Kingston,25/04/2022,90111519,"1,094.33",REDACTED - PERSONAL DATA,PLS LANDLORDS,Place,PSL Payments To Landlords,A22031
Royal Borough of Kingston,25/04/2022,90111208,"1,094.33",REDACTED - PERSONAL DATA,PLS LANDLORDS,Place,PSL Payments To Landlords,A22031
Royal Borough of Kingston,25/04/2022,90111211,"1,094.33",REDACTED - PERSONAL DATA,PLS LANDLORDS,Place,PSL Payments To Landlords,A22031
Royal Borough of Kingston,25/04/2022,90111328,"1,094.33",REDACTED - PERSONAL DATA,PLS LANDLORDS,Place,PSL Payments To Landlords,A22031
Royal Borough of Kingston,25/04/2022,90111426,"1,094.34",AUMKARA INVESTMENTS LTD,PLS LANDLORDS,Place,PSL Payments To Landlords,A22031
Royal Borough of Kingston,25/04/2022,90111427,"1,094.34",AUMKARA INVESTMENTS LTD,PLS LANDLORDS,Place,PSL Payments To Landlords,A22031
Royal Borough of Kingston,25/04/2022,90111428,"1,094.34",AUMKARA INVESTMENTS LTD,PLS LANDLORDS,Place,PSL Payments To Landlords,A22031
Royal Borough of Kingston,25/04/2022,90111190,"1,094.34",CASTLE WILDISH RESI LTD,PLS LANDLORDS,Place,PSL Payments To Landlords,A22031
Royal Borough of Kingston,25/04/2022,90111191,"1,094.34",CASTLE WILDISH RESI LTD,PLS LANDLORDS,Place,PSL Payments To Landlords,A22031
Royal Borough of Kingston,25/04/2022,90111192,"1,094.34",CASTLE WILDISH RESI LTD,PLS LANDLORDS,Place,PSL Payments To Landlords,A22031
Royal Borough of Kingston,25/04/2022,90111187,"1,094.34",REDACTED - PERSONAL DATA,PLS LANDLORDS,Place,PSL Payments To Landlords,A22031
Royal Borough of Kingston,25/04/2022,90111501,"1,094.34",REDACTED - PERSONAL DATA,PLS LANDLORDS,Place,PSL Payments To Landlords,A22031
Royal Borough of Kingston,25/04/2022,90111502,"1,094.34",REDACTED - PERSONAL DATA,PLS LANDLORDS,Place,PSL Payments To Landlords,A22031
Royal Borough of Kingston,25/04/2022,90111372,"1,094.34",REDACTED - PERSONAL DATA,PLS LANDLORDS,Place,PSL Payments To Landlords,A22031
Royal Borough of Kingston,25/04/2022,90111525,"1,094.34",REDACTED - PERSONAL DATA,PLS LANDLORDS,Place,PSL Payments To Landlords,A22031
Royal Borough of Kingston,25/04/2022,90111526,"1,094.34",REDACTED - PERSONAL DATA,PLS LANDLORDS,Place,PSL Payments To Landlords,A22031
Royal Borough of Kingston,25/04/2022,90111185,"1,094.34",REDACTED - PERSONAL DATA,PLS LANDLORDS,Place,PSL Payments To Landlords,A22031
Royal Borough of Kingston,25/04/2022,90111518,"1,094.34",REDACTED - PERSONAL DATA,PLS LANDLORDS,Place,PSL Payments To Landlords,A22031
Royal Borough of Kingston,25/04/2022,90111207,"1,094.34",REDACTED - PERSONAL DATA,PLS LANDLORDS,Place,PSL Payments To Landlords,A22031
Royal Borough of Kingston,25/04/2022,90111500,"1,094.34",REDACTED - PERSONAL DATA,PLS LANDLORDS,Place,PSL Payments To Landlords,A22031
Royal Borough of Kingston,25/04/2022,90111600,"1,094.34",REDACTED - PERSONAL DATA,PLS LANDLORDS,Place,PSL Payments To Landlords,A22031
Royal Borough of Kingston,25/04/2022,90111553,"1,094.34",REDACTED - PERSONAL DATA,PLS LANDLORDS,Place,PSL Payments To Landlords,A22031
Royal Borough of Kingston,25/04/2022,90111431,"1,094.34",COOMBE HILL INVESTMENTS,PLS LANDLORDS,Place,PSL Payments To Landlords,A22031
Royal Borough of Kingston,25/04/2022,90111517,"1,094.34",REDACTED - PERSONAL DATA,PLS LANDLORDS,Place,PSL Payments To Landlords,A22031
Royal Borough of Kingston,25/04/2022,90111248,"1,094.34",REDACTED - PERSONAL DATA,PLS LANDLORDS,Place,PSL Payments To Landlords,A22031
Royal Borough of Kingston,25/04/2022,90111469,"1,095.00",PETLEY LTD,PLS LANDLORDS,Place,PSL Payments To Landlords,A22031
Royal Borough of Kingston,25/04/2022,90111256,"1,095.92",REDACTED - PERSONAL DATA,PLS LANDLORDS,Place,PSL Payments To Landlords,A22031
Royal Borough of Kingston,25/04/2022,90111223,"1,097.00",REDACTED - PERSONAL DATA,PLS LANDLORDS,Place,PSL Payments To Landlords,A22031
Royal Borough of Kingston,25/04/2022,90111215,"1,097.00",REDACTED - PERSONAL DATA,PLS LANDLORDS,Place,PSL Payments To Landlords,A22031
Royal Borough of Kingston,25/04/2022,90111200,"1,097.00",REDACTED - PERSONAL DATA,PLS LANDLORDS,Place,PSL Payments To Landlords,A22031
Royal Borough of Kingston,25/04/2022,90111562,"1,097.00",REDACTED - PERSONAL DATA,PLS LANDLORDS,Place,PSL Payments To Landlords,A22031
Royal Borough of Kingston,25/04/2022,90111584,"1,097.33",REDACTED - PERSONAL DATA,PLS LANDLORDS,Place,PSL Payments To Landlords,A22031
Royal Borough of Kingston,25/04/2022,90111583,"1,097.33",REDACTED - PERSONAL DATA,PLS LANDLORDS,Place,PSL Payments To Landlords,A22031
Royal Borough of Kingston,25/04/2022,90111354,"1,097.35",REDACTED - PERSONAL DATA,PLS LANDLORDS,Place,PSL Payments To Landlords,A22031
Royal Borough of Kingston,25/04/2022,90111441,"1,097.35",REDACTED - PERSONAL DATA,PLS LANDLORDS,Place,PSL Payments To Landlords,A22031
Royal Borough of Kingston,25/04/2022,90111456,"1,097.64",REDACTED - PERSONAL DATA,PLS LANDLORDS,Place,PSL Payments To Landlords,A22031
Royal Borough of Kingston,25/04/2022,90111257,"1,100.00",REDACTED - PERSONAL DATA,PLS LANDLORDS,Place,PSL Payments To Landlords,A22031
Royal Borough of Kingston,25/04/2022,90111254,"1,100.00",REDACTED - PERSONAL DATA,PLS LANDLORDS,Place,PSL Payments To Landlords,A22031
Royal Borough of Kingston,25/04/2022,90111297,"1,100.00",REDACTED - PERSONAL DATA,PLS LANDLORDS,Place,PSL Payments To Landlords,A22031
Royal Borough of Kingston,25/04/2022,90111544,"1,100.00",REDACTED - PERSONAL DATA,PLS LANDLORDS,Place,PSL Payments To Landlords,A22031
Royal Borough of Kingston,25/04/2022,90111457,"1,100.00",SWEETINGS MANAGEMENT,PLS LANDLORDS,Place,PSL Payments To Landlords,A22031
Royal Borough of Kingston,25/04/2022,90111255,"1,100.00",THOMPSON PROPERTIES,PLS LANDLORDS,Place,PSL Payments To Landlords,A22031
Royal Borough of Kingston,25/04/2022,90111258,"1,100.00",THOMPSON PROPERTIES,PLS LANDLORDS,Place,PSL Payments To Landlords,A22031
Royal Borough of Kingston,25/04/2022,90111260,"1,100.00",THOMPSON PROPERTIES,PLS LANDLORDS,Place,PSL Payments To Landlords,A22031
Royal Borough of Kingston,25/04/2022,90111250,"1,105.00",REDACTED - PERSONAL DATA,PLS LANDLORDS,Place,PSL Payments To Landlords,A22031
Royal Borough of Kingston,25/04/2022,90111541,"1,106.66",REDACTED - PERSONAL DATA,PLS LANDLORDS,Place,PSL Payments To Landlords,A22031
Royal Borough of Kingston,18/04/2022,90095167,"1,107.68",REDACTED - PERSONAL DATA,SOCIAL SERVICES - PERSONAL BUDGETS,Adult Social Care & Health,Personal Budget - Direct Payment,A61016
Royal Borough of Kingston,25/04/2022,90111321,"1,113.00",REDACTED - PERSONAL DATA,PLS LANDLORDS,Place,PSL Payments To Landlords,A22031
Royal Borough of Kingston,01/04/2022,90113034,"1,113.94",BALANCE (SUPPORT) C.I.C,SOCIAL SERVICES - OTHER,Adult Social Care & Health,Personal Budget - Third Party,A61019
Royal Borough of Kingston,18/04/2022,90095064,"1,115.18",REDACTED - PERSONAL DATA,SOCIAL SERVICES - DIRECT PAYMENTS,Adult Social Care & Health,Personal Budget - Direct Payment,A61016
Royal Borough of Kingston,25/04/2022,90111488,"1,116.00",COBHAM RENTALS LTD,PLS LANDLORDS,Place,PSL Payments To Landlords,A22031
Royal Borough of Kingston,25/04/2022,90111489,"1,116.00",COBHAM RENTALS LTD,PLS LANDLORDS,Place,PSL Payments To Landlords,A22031
Royal Borough of Kingston,25/04/2022,90111490,"1,116.00",COBHAM RENTALS LTD,PLS LANDLORDS,Place,PSL Payments To Landlords,A22031
Royal Borough of Kingston,31/03/2022,70022492,"1,116.00",London Clapham South,ACCOMMODATION BED & BREAKFAST,Place,Bed & Breakfast,A56000
Royal Borough of Kingston,31/03/2022,70022494,"1,116.00",London Clapham South,ACCOMMODATION BED & BREAKFAST,Place,Bed & Breakfast,A56000
Royal Borough of Kingston,31/03/2022,70022495,"1,116.00",London Clapham South,ACCOMMODATION BED & BREAKFAST,Place,Bed & Breakfast,A56000
Royal Borough of Kingston,31/03/2022,70022497,"1,116.00",London Clapham South,ACCOMMODATION BED & BREAKFAST,Place,Bed & Breakfast,A56000
Royal Borough of Kingston,31/03/2022,70022500,"1,116.00",London Clapham South,ACCOMMODATION BED & BREAKFAST,Place,Bed & Breakfast,A56000
Royal Borough of Kingston,31/03/2022,70022501,"1,116.00",London Clapham South,ACCOMMODATION BED & BREAKFAST,Place,Bed & Breakfast,A56000
Royal Borough of Kingston,31/03/2022,70022509,"1,116.00",London Clapham South,ACCOMMODATION BED & BREAKFAST,Place,Bed & Breakfast,A56000
Royal Borough of Kingston,31/03/2022,70022509,"1,116.00",London Clapham South,ACCOMMODATION BED & BREAKFAST,Place,Bed & Breakfast,A56000
Royal Borough of Kingston,31/03/2022,70022509,"1,116.00",London Clapham South,ACCOMMODATION BED & BREAKFAST,Place,Bed & Breakfast,A56000
Royal Borough of Kingston,31/03/2022,70022509,"1,116.00",London Clapham South,ACCOMMODATION BED & BREAKFAST,Place,Bed & Breakfast,A56000
Royal Borough of Kingston,31/03/2022,70022509,"1,116.00",London Clapham South,ACCOMMODATION BED & BREAKFAST,Place,Bed & Breakfast,A56000
Royal Borough of Kingston,31/03/2022,70022510,"1,116.00",London Clapham South,ACCOMMODATION BED & BREAKFAST,Place,Bed & Breakfast,A56000
Royal Borough of Kingston,31/03/2022,70022510,"1,116.00",London Clapham South,ACCOMMODATION BED & BREAKFAST,Place,Bed & Breakfast,A56000
Royal Borough of Kingston,31/03/2022,70022772,"1,116.00",London Croydon LTD,ACCOMMODATION BED & BREAKFAST,Place,Bed & Breakfast,A56000
Royal Borough of Kingston,31/03/2022,70022772,"1,116.00",London Croydon LTD,ACCOMMODATION BED & BREAKFAST,Place,Bed & Breakfast,A56000
Royal Borough of Kingston,01/04/2022,70022246,"1,116.00",Stef and Philips,ACCOMMODATION BED & BREAKFAST,Place,Bed & Breakfast,A56000
Royal Borough of Kingston,01/04/2022,70022246,"1,116.00",Stef and Philips,ACCOMMODATION BED & BREAKFAST,Place,Bed & Breakfast,A56000
Royal Borough of Kingston,01/04/2022,70022246,"1,116.00",Stef and Philips,ACCOMMODATION BED & BREAKFAST,Place,Bed & Breakfast,A56000
Royal Borough of Kingston,01/04/2022,70022247,"1,116.00",Stef and Philips,ACCOMMODATION BED & BREAKFAST,Place,Bed & Breakfast,A56000
Royal Borough of Kingston,01/04/2022,90119071,"1,118.57",GENEVA ROAD LIMITED,SOCIAL SERVICES RESIDENTIAL,Adult Social Care & Health,Personal Budget - Third Party,A61019
Royal Borough of Kingston,04/04/2022,90119037,"1,122.60",BALANCE (SUPPORT) C.I.C,SOCIAL SERVICES - OTHER,Adult Social Care & Health,Supported Living - new framework,A56126
Royal Borough of Kingston,13/04/2022,70022226,"1,122.88",KENT COUNTY COUNCIL,UTILITIES,Housing Revenue Account,Gas,A21003
Royal Borough of Kingston,07/04/2022,70022102,"1,125.00",M3 HOUSING LTD,SUBSCRIPTIONS & PUBLICATIONS,Corporate & Communities,IT Software Maintenance,A45045
Royal Borough of Kingston,25/04/2022,90111290,"1,125.00",REDACTED - PERSONAL DATA,PLS LANDLORDS,Place,PSL Payments To Landlords,A22031
Royal Borough of Kingston,25/04/2022,90111292,"1,125.00",REDACTED - PERSONAL DATA,PLS LANDLORDS,Place,PSL Payments To Landlords,A22031
Royal Borough of Kingston,25/04/2022,90111356,"1,125.00",REDACTED - PERSONAL DATA,PLS LANDLORDS,Place,PSL Payments To Landlords,A22031
Royal Borough of Kingston,25/04/2022,90111422,"1,125.00",URBAN SPECTRUM PROPERTY MANAGEMENT LTD,PLS LANDLORDS,Place,PSL Payments To Landlords,A22031
Royal Borough of Kingston,25/04/2022,90111460,"1,126.66",REDACTED - PERSONAL DATA,PLS LANDLORDS,Place,PSL Payments To Landlords,A22031
Royal Borough of Kingston,25/04/2022,90111538,"1,126.66",REDACTED - PERSONAL DATA,PLS LANDLORDS,Place,PSL Payments To Landlords,A22031
Royal Borough of Kingston,29/03/2022,70021452,"1,127.84",NEWSQUEST MEDIA GROUP LTD,PRESS & PUBLICITY,Place,Publicity And Promotions,A45026
Royal Borough of Kingston,25/04/2022,90111212,"1,136.00",REDACTED - PERSONAL DATA,PLS LANDLORDS,Place,PSL Payments To Landlords,A22031
Royal Borough of Kingston,25/04/2022,90111271,"1,136.00",REDACTED - PERSONAL DATA,PLS LANDLORDS,Place,PSL Payments To Landlords,A22031
Royal Borough of Kingston,25/04/2022,90111209,"1,136.00",REDACTED - PERSONAL DATA,PLS LANDLORDS,Place,PSL Payments To Landlords,A22031
Royal Borough of Kingston,18/04/2022,90095165,"1,136.84",REDACTED - PERSONAL DATA,SOCIAL SERVICES - PERSONAL BUDGETS,Adult Social Care & Health,Personal Budget - Direct Payment,A61016
Royal Borough of Kingston,19/04/2022,70022415,"1,140.00",Bentley Pugh and Associates,SUNDRY SUPPLIER - FINANCE,Capital Programme,Council Dwellings - Acquisition,C10006
Royal Borough of Kingston,09/03/2022,70019714,"1,140.00",TGL GROUP LTD,CONSTRUCTION INDUSTRY,Capital Programme,Infrastructure Assets - Project Management,C12000
Royal Borough of Kingston,14/03/2022,70021907,"1,144.41",SOUTHERN ELECTRIC,UTILITIES,Housing Revenue Account,Gas,A21003
Royal Borough of Kingston,31/03/2022,70022837,"1,147.00",APEX HOUSING SOLUTIONS LTD,ACCOMMODATION BED & BREAKFAST,Place,Bed & Breakfast,A56000
Royal Borough of Kingston,01/04/2022,70022489,"1,147.00",HOUSING ACTION  MANAGEMENT,ACCOMMODATION BED & BREAKFAST,Place,Bed & Breakfast,A56000
Royal Borough of Kingston,31/03/2022,70022352,"1,147.00",LAUREL PHARMACY,TCES RETAILERS (PHARMACYS),Adult Social Care & Health,Other Private Contractors - Third Party,A56080
Royal Borough of Kingston,01/04/2022,70022241,"1,147.00",QUARTZ PROPERTIES ( LONDON ) LTD,ACCOMMODATION BED & BREAKFAST,Place,Bed & Breakfast,A56000
Royal Borough of Kingston,01/04/2022,70022241,"1,147.00",QUARTZ PROPERTIES ( LONDON ) LTD,ACCOMMODATION BED & BREAKFAST,Place,Bed & Breakfast,A56000
Royal Borough of Kingston,01/04/2022,70022241,"1,147.00",QUARTZ PROPERTIES ( LONDON ) LTD,ACCOMMODATION BED & BREAKFAST,Place,Bed & Breakfast,A56000
Royal Borough of Kingston,01/04/2022,70022241,"1,147.00",QUARTZ PROPERTIES ( LONDON ) LTD,ACCOMMODATION BED & BREAKFAST,Place,Bed & Breakfast,A56000
Royal Borough of Kingston,01/04/2022,70022241,"1,147.00",QUARTZ PROPERTIES ( LONDON ) LTD,ACCOMMODATION BED & BREAKFAST,Place,Bed & Breakfast,A56000
Royal Borough of Kingston,01/04/2022,70022241,"1,147.00",QUARTZ PROPERTIES ( LONDON ) LTD,ACCOMMODATION BED & BREAKFAST,Place,Bed & Breakfast,A56000
Royal Borough of Kingston,01/04/2022,70022241,"1,147.00",QUARTZ PROPERTIES ( LONDON ) LTD,ACCOMMODATION BED & BREAKFAST,Place,Bed & Breakfast,A56000
Royal Borough of Kingston,01/04/2022,70022241,"1,147.00",QUARTZ PROPERTIES ( LONDON ) LTD,ACCOMMODATION BED & BREAKFAST,Place,Bed & Breakfast,A56000
Royal Borough of Kingston,01/04/2022,70022241,"1,147.00",QUARTZ PROPERTIES ( LONDON ) LTD,ACCOMMODATION BED & BREAKFAST,Place,Bed & Breakfast,A56000
Royal Borough of Kingston,01/04/2022,70022241,"1,147.00",QUARTZ PROPERTIES ( LONDON ) LTD,ACCOMMODATION BED & BREAKFAST,Place,Bed & Breakfast,A56000
Royal Borough of Kingston,13/11/2021,70020901,"1,147.19",NPOWER LIMITED,UTILITIES,Corporate & Communities,TMS - General,A56085
Royal Borough of Kingston,18/04/2022,90095307,"1,148.32",REDACTED - PERSONAL DATA,SOCIAL SERVICES - DIRECT PAYMENTS,Adult Social Care & Health,Personal Budget - Direct Payment,A61016
Royal Borough of Kingston,25/04/2022,90111440,"1,150.00",REDACTED - PERSONAL DATA,PLS LANDLORDS,Place,PSL Payments To Landlords,A22031
Royal Borough of Kingston,15/02/2022,70018276,"1,153.92",KENT COUNTY COUNCIL,UTILITIES,Corporate & Communities,Electricity,A21000
Royal Borough of Kingston,18/04/2022,90095098,"1,155.00",REDACTED - PERSONAL DATA,SOCIAL SERVICES - PERSONAL BUDGETS,Adult Social Care & Health,Personal Budget - Direct Payment,A61016
Royal Borough of Kingston,18/04/2022,90095154,"1,156.00",REDACTED - PERSONAL DATA,SOCIAL SERVICES - PERSONAL BUDGETS,Adult Social Care & Health,Personal Budget - Direct Payment,A61016
Royal Borough of Kingston,25/04/2022,90111462,"1,161.33",CRPD,PLS LANDLORDS,Place,PSL Payments To Landlords,A22031
Royal Borough of Kingston,25/04/2022,90111464,"1,161.33",CRPD,PLS LANDLORDS,Place,PSL Payments To Landlords,A22031
Royal Borough of Kingston,25/04/2022,90111551,"1,163.33",REDACTED - PERSONAL DATA,PLS LANDLORDS,Place,PSL Payments To Landlords,A22031
Royal Borough of Kingston,25/04/2022,90111251,"1,170.00",REDACTED - PERSONAL DATA,PLS LANDLORDS,Place,PSL Payments To Landlords,A22031
Royal Borough of Kingston,18/04/2022,90095306,"1,170.00",REDACTED - PERSONAL DATA,SOCIAL SERVICES - PERSONAL BUDGETS,Adult Social Care & Health,Personal Budget - Direct Payment,A61016
Royal Borough of Kingston,18/04/2022,90095186,"1,174.04",REDACTED - PERSONAL DATA,SOCIAL SERVICES - PERSONAL BUDGETS,Adult Social Care & Health,Personal Budget - Direct Payment,A61016
Royal Borough of Kingston,25/04/2022,90111306,"1,175.00",REDACTED - PERSONAL DATA,PLS LANDLORDS,Place,PSL Payments To Landlords,A22031
Royal Borough of Kingston,18/04/2022,90095200,"1,176.00",REDACTED - PERSONAL DATA,SOCIAL SERVICES - PERSONAL BUDGETS,Adult Social Care & Health,Personal Budget - Direct Payment,A61016
Royal Borough of Kingston,31/03/2022,70022773,"1,178.00",LHG Thornton Heath LTD,ACCOMMODATION BED & BREAKFAST,Place,Bed & Breakfast,A56000
Royal Borough of Kingston,01/04/2022,90113049,"1,180.03",PALM LODGE,SOCIAL SERVICES RESIDENTIAL,Adult Social Care & Health,Personal Budget - Third Party,A61019
Royal Borough of Kingston,25/04/2022,90111407,"1,181.00",REDACTED - PERSONAL DATA,PLS LANDLORDS,Place,PSL Payments To Landlords,A22031
Royal Borough of Kingston,05/04/2022,90092893,"1,185.84",REDACTED - PERSONAL DATA,CHILDMINDERS START UP GRANT,Schools,PVI Providers,A60014
Royal Borough of Kingston,05/04/2022,90092931,"1,185.84",AKIKO' S CHILDCARE,CHILDMINDERS START UP GRANT,Schools,PVI Providers,A60014
Royal Borough of Kingston,05/04/2022,90092939,"1,185.84",REDACTED - PERSONAL DATA,CHILDMINDERS START UP GRANT,Schools,PVI Providers,A60014
Royal Borough of Kingston,05/04/2022,90092864,"1,185.84",REDACTED - PERSONAL DATA,CHILDMINDERS START UP GRANT,Schools,PVI Providers,A60014
Royal Borough of Kingston,05/04/2022,90092932,"1,185.84",REDACTED - PERSONAL DATA,CHILDMINDERS START UP GRANT,Schools,PVI Providers,A60014
Royal Borough of Kingston,05/04/2022,90092917,"1,185.84",REDACTED - PERSONAL DATA,CHILDMINDERS START UP GRANT,Schools,PVI Providers,A60014
Royal Borough of Kingston,05/04/2022,90092890,"1,185.84",REDACTED - PERSONAL DATA,CHILDMINDERS START UP GRANT,Schools,PVI Providers,A60014
Royal Borough of Kingston,05/04/2022,90092918,"1,185.84",REDACTED - PERSONAL DATA,CHILDMINDERS START UP GRANT,Schools,PVI Providers,A60014
Royal Borough of Kingston,05/04/2022,90092882,"1,185.84",REDACTED - PERSONAL DATA,CHILDMINDERS START UP GRANT,Schools,PVI Providers,A60014
Royal Borough of Kingston,05/04/2022,90092921,"1,185.84",REDACTED - PERSONAL DATA,CHILDMINDERS START UP GRANT,Schools,PVI Providers,A60014
Royal Borough of Kingston,05/04/2022,90092900,"1,185.84",REDACTED - PERSONAL DATA,CHILDMINDERS START UP GRANT,Schools,PVI Providers,A60014
Royal Borough of Kingston,05/04/2022,90092853,"1,185.84",REDACTED - PERSONAL DATA,CHILDMINDERS START UP GRANT,Schools,PVI Providers,A60014
Royal Borough of Kingston,31/03/2022,70022300,"1,187.15",REDACTED - PERSONAL DATA,TCES RETAILERS (PHARMACYS),Adult Social Care & Health,Other Private Contractors - Third Party,A56080
Royal Borough of Kingston,25/04/2022,90111442,"1,191.66",REDACTED - PERSONAL DATA,PLS LANDLORDS,Place,PSL Payments To Landlords,A22031
Royal Borough of Kingston,25/04/2022,90111274,"1,191.67",REDACTED - PERSONAL DATA,PLS LANDLORDS,Place,PSL Payments To Landlords,A22031
Royal Borough of Kingston,30/04/2022,90112838,"1,194.92",REDACTED - PERSONAL DATA,SOCIAL SERVICES - OTHER,Adult Social Care & Health,Personal Budget - Third Party,A61019
Royal Borough of Kingston,08/03/2022,70023117,"1,195.92",ANGLIAN WATER BUSINESS NATIONAL LTD,UTILITIES,Corporate & Communities,Water Services,A24005
Royal Borough of Kingston,05/04/2022,70021655,"1,200.00",AP RENTAL INC LTD,LANDLORDS,Adult Social Care & Health,Housing Benefit - Rent Allowances -Private Tenants Only,A62009
Royal Borough of Kingston,25/04/2022,90111246,"1,200.00",REDACTED - PERSONAL DATA,PLS LANDLORDS,Place,PSL Payments To Landlords,A22031
Royal Borough of Kingston,25/04/2022,90111547,"1,200.00",REDACTED - PERSONAL DATA,PLS LANDLORDS,Place,PSL Payments To Landlords,A22031
Royal Borough of Kingston,11/10/2021,70016329,"1,200.00",OLEEO PLC,LEGAL & PROFESSIONAL SERVICES,Place,Recruitment Expenses,A15026
Royal Borough of Kingston,18/04/2022,90095079,"1,202.16",REDACTED - PERSONAL DATA,SOCIAL SERVICES - DIRECT PAYMENTS,Adult Social Care & Health,Personal Budget - Direct Payment,A61016
Royal Borough of Kingston,01/04/2022,90112783,"1,206.60",BALANCE (SUPPORT) C.I.C,SOCIAL SERVICES - OTHER,Adult Social Care & Health,Personal Budget - Third Party,A61019
Royal Borough of Kingston,01/04/2022,90112818,"1,206.60",BALANCE (SUPPORT) C.I.C,SOCIAL SERVICES - OTHER,Adult Social Care & Health,Personal Budget - Third Party,A61019
Royal Borough of Kingston,25/04/2022,90111476,"1,208.33",REDACTED - PERSONAL DATA,PLS LANDLORDS,Place,PSL Payments To Landlords,A22031
Royal Borough of Kingston,28/03/2022,90094160,"1,209.00",FIRST CHOICE SOCIAL CARE & SHELTERED HOUSING LTD,SOCIAL SERVICES - OTHER,Adult Social Care & Health,Homecare - new framework,A56127
Royal Borough of Kingston,21/03/2022,90092102,"1,209.00",Goldsmith Personnel Ltd,SOCIAL SERVICES - OTHER,Adult Social Care & Health,Homecare - new framework,A56127
Royal Borough of Kingston,01/04/2022,70022241,"1,209.00",QUARTZ PROPERTIES ( LONDON ) LTD,ACCOMMODATION BED & BREAKFAST,Place,Bed & Breakfast,A56000
Royal Borough of Kingston,31/03/2022,70022734,"1,209.18",YMCA ST PAULS GROUP,ACCOMMODATION BED & BREAKFAST,Place,Bed & Breakfast,A56000
Royal Borough of Kingston,25/04/2022,90111589,"1,210.00",REDACTED - PERSONAL DATA,PLS LANDLORDS,Place,PSL Payments To Landlords,A22031
Royal Borough of Kingston,07/03/2022,90112052,"1,212.43",GENEVA ROAD LIMITED,SOCIAL SERVICES RESIDENTIAL,Adult Social Care & Health,Supported Living - new framework,A56126
Royal Borough of Kingston,30/04/2022,70021889,"1,214.39",COMETT LIMITED,ENTERTAINMENTS INDUSTRY,Adult Social Care & Health,Consultancy Services - Other,A44065
Royal Borough of Kingston,12/03/2022,70021726,"1,214.66",DOCUSAVE LIMITED,OFFICE SERVICES,Corporate & Communities,Storage And Archiving Services,A44085
Royal Borough of Kingston,25/04/2022,90111513,"1,215.00",REDACTED - PERSONAL DATA,PLS LANDLORDS,Place,PSL Payments To Landlords,A22031
Royal Borough of Kingston,25/04/2022,90111281,"1,215.00",OXON PROPERTY INVESTMENTS LIMITED,PLS LANDLORDS,Place,PSL Payments To Landlords,A22031
Royal Borough of Kingston,25/04/2022,90111282,"1,215.00",OXON PROPERTY INVESTMENTS LIMITED,PLS LANDLORDS,Place,PSL Payments To Landlords,A22031
Royal Borough of Kingston,25/04/2022,90111283,"1,215.00",OXON PROPERTY INVESTMENTS LIMITED,PLS LANDLORDS,Place,PSL Payments To Landlords,A22031
Royal Borough of Kingston,25/04/2022,90111284,"1,215.00",OXON PROPERTY INVESTMENTS LIMITED,PLS LANDLORDS,Place,PSL Payments To Landlords,A22031
Royal Borough of Kingston,01/04/2022,90112749,"1,223.36",THE HOME FARM TRUST LTD,SOCIAL SERVICES RESIDENTIAL,Adult Social Care & Health,Personal Budget - Third Party,A61019
Royal Borough of Kingston,04/04/2022,90119044,"1,224.00",EMEZZIONS LIMITED ,SOCIAL SERVICES - OTHER,Adult Social Care & Health,Supported Living - new framework,A56126
Royal Borough of Kingston,01/04/2022,70021552,"1,224.27",METIS CONSULTANTS LTD,TEMP STAFF & CONSULTANCY,Corporate & Communities,Flood water management - Sutton,A56051
Royal Borough of Kingston,25/04/2022,90111204,"1,225.00",REDACTED - PERSONAL DATA,PLS LANDLORDS,Place,PSL Payments To Landlords,A22031
Royal Borough of Kingston,04/04/2022,90110439,"1,225.01",CN Healthcare,SOCIAL SERVICES - OTHER,Adult Social Care & Health,Homecare - new framework,A56127
Royal Borough of Kingston,11/04/2022,90112122,"1,225.01",CN Healthcare,SOCIAL SERVICES - OTHER,Adult Social Care & Health,Homecare - new framework,A56127
Royal Borough of Kingston,01/04/2022,90113007,"1,225.41",PALM LODGE,SOCIAL SERVICES RESIDENTIAL,Adult Social Care & Health,Personal Budget - Third Party,A61019
Royal Borough of Kingston,01/04/2022,90113016,"1,225.41",PALM LODGE,SOCIAL SERVICES RESIDENTIAL,Adult Social Care & Health,Personal Budget - Third Party,A61019
Royal Borough of Kingston,01/04/2022,90113027,"1,225.41",PALM LODGE,SOCIAL SERVICES RESIDENTIAL,Adult Social Care & Health,Personal Budget - Third Party,A61019
Royal Borough of Kingston,28/03/2022,90094945,"1,226.53",FIRST CHOICE SOCIAL CARE & SHELTERED HOUSING LTD,SOCIAL SERVICES - OTHER,Adult Social Care & Health,Homecare - new framework,A56127
Royal Borough of Kingston,28/03/2022,90094126,"1,226.53",Global Homecare,SOCIAL SERVICES-HOME CARE,Adult Social Care & Health,Homecare - new framework,A56127
Royal Borough of Kingston,28/03/2022,90094703,"1,226.53",Global Homecare,SOCIAL SERVICES-HOME CARE,Adult Social Care & Health,Homecare - new framework,A56127
Royal Borough of Kingston,11/04/2022,90112102,"1,226.53",Global Homecare,SOCIAL SERVICES-HOME CARE,Adult Social Care & Health,Homecare - new framework,A56127
Royal Borough of Kingston,28/03/2022,90094147,"1,226.53",Goldsmith Personnel Ltd,SOCIAL SERVICES - OTHER,Adult Social Care & Health,Homecare - new framework,A56127
Royal Borough of Kingston,28/03/2022,90094618,"1,226.53",Goldsmith Personnel Ltd,SOCIAL SERVICES - OTHER,Adult Social Care & Health,Homecare - new framework,A56127
Royal Borough of Kingston,11/04/2022,90112108,"1,226.53",Goldsmith Personnel Ltd,SOCIAL SERVICES - OTHER,Adult Social Care & Health,Homecare - new framework,A56127
Royal Borough of Kingston,28/03/2022,90095018,"1,226.53",HELMAR CARE AND COMMUNITY SERVICES LTD,SOCIAL SERVICES DAY CARE,Adult Social Care & Health,Homecare - new framework,A56127
Royal Borough of Kingston,28/03/2022,90094098,"1,226.53",INSPIRE MANAGEMENT GROUP LTD,SOCIAL SERVICES DAY CARE,Adult Social Care & Health,Homecare - new framework,A56127
Royal Borough of Kingston,28/03/2022,90094163,"1,226.53",INSPIRE MANAGEMENT GROUP LTD,SOCIAL SERVICES DAY CARE,Adult Social Care & Health,Homecare - new framework,A56127
Royal Borough of Kingston,28/03/2022,90094153,"1,226.53",MY HOMECARE KINGSTON LTD,SOCIAL SERVICES DAY CARE,Adult Social Care & Health,Homecare - new framework,A56127
Royal Borough of Kingston,28/03/2022,90094117,"1,226.53",WANDLE HEALTHCARE SERVICES,SOCIAL SERVICES-HOME CARE,Adult Social Care & Health,Homecare - new framework,A56127
Royal Borough of Kingston,28/03/2022,90094129,"1,226.53",WANDLE HEALTHCARE SERVICES,SOCIAL SERVICES-HOME CARE,Adult Social Care & Health,Homecare - new framework,A56127
Royal Borough of Kingston,28/03/2022,90094133,"1,226.53",WANDLE HEALTHCARE SERVICES,SOCIAL SERVICES-HOME CARE,Adult Social Care & Health,Homecare - new framework,A56127
Royal Borough of Kingston,28/03/2022,90094134,"1,226.53",WANDLE HEALTHCARE SERVICES,SOCIAL SERVICES-HOME CARE,Adult Social Care & Health,Homecare - new framework,A56127
Royal Borough of Kingston,28/03/2022,90094138,"1,226.53",WANDLE HEALTHCARE SERVICES,SOCIAL SERVICES-HOME CARE,Adult Social Care & Health,Homecare - new framework,A56127
Royal Borough of Kingston,28/03/2022,90094161,"1,226.53",WANDLE HEALTHCARE SERVICES,SOCIAL SERVICES-HOME CARE,Adult Social Care & Health,Homecare - new framework,A56127
Royal Borough of Kingston,04/04/2022,90110414,"1,226.53",WANDLE HEALTHCARE SERVICES,SOCIAL SERVICES-HOME CARE,Adult Social Care & Health,Homecare - new framework,A56127
Royal Borough of Kingston,04/04/2022,90110418,"1,226.53",WANDLE HEALTHCARE SERVICES,SOCIAL SERVICES-HOME CARE,Adult Social Care & Health,Homecare - new framework,A56127
Royal Borough of Kingston,04/04/2022,90110419,"1,226.53",WANDLE HEALTHCARE SERVICES,SOCIAL SERVICES-HOME CARE,Adult Social Care & Health,Homecare - new framework,A56127
Royal Borough of Kingston,13/04/2022,70022223,"1,230.00",ADVANCED TREE SERVICES LIMITED,CONSTRUCTION INDUSTRY,Place,Property-Related Professional Fees,A20035
Royal Borough of Kingston,01/04/2022,90119062,"1,230.43",GENEVA ROAD LIMITED,SOCIAL SERVICES RESIDENTIAL,Adult Social Care & Health,Personal Budget - Third Party,A61019
Royal Borough of Kingston,25/04/2022,90111493,"1,234.08",REDACTED - PERSONAL DATA,PLS LANDLORDS,Place,PSL Payments To Landlords,A22031
Royal Borough of Kingston,05/04/2022,70021652,"1,235.00",AP RENTAL INC LTD,LANDLORDS,Adult Social Care & Health,Housing Benefit - Rent Allowances -Private Tenants Only,A62009
Royal Borough of Kingston,05/04/2022,70021657,"1,235.00",AP RENTAL INC LTD,LANDLORDS,Adult Social Care & Health,Housing Benefit - Rent Allowances -Private Tenants Only,A62009
Royal Borough of Kingston,25/04/2022,90111478,"1,239.33",REDACTED - PERSONAL DATA,PLS LANDLORDS,Place,PSL Payments To Landlords,A22031
Royal Borough of Kingston,01/03/2022,70022947,"1,240.00",CRYSTAL & CO,ACCOMMODATION BED & BREAKFAST,Place,Bed & Breakfast,A56000
Royal Borough of Kingston,25/04/2022,90111296,"1,240.00",GATES & BRADSHAW (UK) LTD,PLS LANDLORDS,Place,PSL Payments To Landlords,A22031
Royal Borough of Kingston,28/03/2022,90095514,"1,241.83",OZUMBA TRAINING AND CONSULTANCY SERVICES LIMITED,SOCIAL SERVICES DAY CARE,Adult Social Care & Health,Personal Budget - Third Party,A61019
Royal Borough of Kingston,31/03/2022,70022861,"1,242.00",APEX HOUSING SOLUTIONS LTD,ACCOMMODATION BED & BREAKFAST,Place,Bed & Breakfast,A56000
Royal Borough of Kingston,21/03/2022,90092989,"1,242.00",REDACTED - PERSONAL DATA,SOCIAL SERVICES - DIRECT PAYMENTS,Adult Social Care & Health,Payments To Carers,A56030
Royal Borough of Kingston,21/03/2022,90092986,"1,242.00",REDACTED - PERSONAL DATA,SOCIAL SERVICES - DIRECT PAYMENTS,Adult Social Care & Health,Payments To Carers,A56030
Royal Borough of Kingston,30/04/2022,90119034,"1,242.00",REDACTED - PERSONAL DATA,SOCIAL SERVICES - DIRECT PAYMENTS,Adult Social Care & Health,Payments To Carers,A56030
Royal Borough of Kingston,21/03/2022,90110158,"1,242.00",REDACTED - PERSONAL DATA,SOCIAL SERVICES - DIRECT PAYMENTS,Adult Social Care & Health,Payments To Carers,A56030
Royal Borough of Kingston,21/03/2022,90110166,"1,242.00",REDACTED - PERSONAL DATA,SOCIAL SERVICES - DIRECT PAYMENTS,Adult Social Care & Health,Payments To Carers,A56030
Royal Borough of Kingston,30/04/2022,90111993,"1,242.00",REDACTED - PERSONAL DATA,SOCIAL SERVICES - DIRECT PAYMENTS,Adult Social Care & Health,Payments To Carers,A56030
Royal Borough of Kingston,21/03/2022,90092984,"1,242.00",REDACTED - PERSONAL DATA,SOCIAL SERVICES - DIRECT PAYMENTS,Adult Social Care & Health,Payments To Carers,A56030
Royal Borough of Kingston,25/04/2022,90111505,"1,245.00",REDACTED - PERSONAL DATA,PLS LANDLORDS,Place,PSL Payments To Landlords,A22031
Royal Borough of Kingston,18/04/2022,90095292,"1,249.36",REDACTED - PERSONAL DATA,SOCIAL SERVICES - PERSONAL BUDGETS,Adult Social Care & Health,Personal Budget - Direct Payment,A61016
Royal Borough of Kingston,01/04/2022,90111731,"1,250.00",LYNTON HALL NURSING HOME,SOCIAL SERVICES RESIDENTIAL,Adult Social Care & Health,Independent Placements,A56006
Royal Borough of Kingston,25/04/2022,90111404,"1,250.00",REDACTED - PERSONAL DATA,PLS LANDLORDS,Place,PSL Payments To Landlords,A22031
Royal Borough of Kingston,15/03/2022,70023218,"1,250.00",WC Evans & Sons Ltd,CONSTRUCTION INDUSTRY,Capital Programme,Payments to Contractors,C14000
Royal Borough of Kingston,31/03/2022,70022728,"1,250.88",YMCA ST PAULS GROUP,ACCOMMODATION BED & BREAKFAST,Place,Bed & Breakfast,A56000
Royal Borough of Kingston,31/03/2022,70022735,"1,250.88",YMCA ST PAULS GROUP,ACCOMMODATION BED & BREAKFAST,Place,Bed & Breakfast,A56000
Royal Borough of Kingston,25/04/2022,90111309,"1,251.67",REDACTED - PERSONAL DATA,PLS LANDLORDS,Place,PSL Payments To Landlords,A22031
Royal Borough of Kingston,01/04/2022,90112683,"1,253.01",BALANCE (SUPPORT) C.I.C,SOCIAL SERVICES - OTHER,Adult Social Care & Health,Personal Budget - Third Party,A61019
Royal Borough of Kingston,11/04/2022,70022128,"1,256.00",MACS AUTOMATED BOLLARD SYSTEMS LIMITED,CONSTRUCTION INDUSTRY,Corporate & Communities,Other Roading-Related Expenditure,A56041
Royal Borough of Kingston,25/04/2022,90111516,"1,258.33",REDACTED - PERSONAL DATA,PLS LANDLORDS,Place,PSL Payments To Landlords,A22031
Royal Borough of Kingston,18/04/2022,90095273,"1,258.36",REDACTED - PERSONAL DATA,SOCIAL SERVICES - PERSONAL BUDGETS,Adult Social Care & Health,Personal Budget - Direct Payment,A61016
Royal Borough of Kingston,05/04/2022,70021656,"1,260.00",AP RENTAL INC LTD,LANDLORDS,Adult Social Care & Health,Housing Benefit - Rent Allowances -Private Tenants Only,A62009
Royal Borough of Kingston,31/03/2022,70022881,"1,260.00",APEX HOUSING SOLUTIONS LTD,ACCOMMODATION BED & BREAKFAST,Place,Bed & Breakfast,A56000
Royal Borough of Kingston,21/03/2022,90119031,"1,260.00",REDACTED - PERSONAL DATA,SOCIAL SERVICES - DIRECT PAYMENTS,Adult Social Care & Health,Payments To Carers,A56030
Royal Borough of Kingston,18/04/2022,90095060,"1,260.00",REDACTED - PERSONAL DATA,SOCIAL SERVICES - DIRECT PAYMENTS,Adult Social Care & Health,Personal Budget - Direct Payment,A61016
Royal Borough of Kingston,18/04/2022,90095124,"1,260.00",REDACTED - PERSONAL DATA,SOCIAL SERVICES - PERSONAL BUDGETS,Adult Social Care & Health,Personal Budget - Direct Payment,A61016
Royal Borough of Kingston,18/04/2022,90095187,"1,260.00",REDACTED - PERSONAL DATA,SOCIAL SERVICES - DIRECT PAYMENTS,Adult Social Care & Health,Personal Budget - Direct Payment,A61016
Royal Borough of Kingston,25/04/2022,90111449,"1,263.60",REDACTED - PERSONAL DATA,PLS LANDLORDS,Place,PSL Payments To Landlords,A22031
Royal Borough of Kingston,25/04/2022,90111183,"1,265.33",REDACTED - PERSONAL DATA,PLS LANDLORDS,Place,PSL Payments To Landlords,A22031
Royal Borough of Kingston,25/04/2022,90111337,"1,270.83",REDACTED - PERSONAL DATA,PLS LANDLORDS,Place,PSL Payments To Landlords,A22031
Royal Borough of Kingston,31/03/2022,70022865,"1,271.00",APEX HOUSING SOLUTIONS LTD,ACCOMMODATION BED & BREAKFAST,Place,Bed & Breakfast,A56000
Royal Borough of Kingston,01/04/2022,90112060,"1,273.75",BALANCE (SUPPORT) C.I.C,SOCIAL SERVICES - OTHER,Adult Social Care & Health,Supported Living - new framework,A56126
Royal Borough of Kingston,18/04/2022,90095166,"1,278.24",REDACTED - PERSONAL DATA,SOCIAL SERVICES - PERSONAL BUDGETS,Adult Social Care & Health,Personal Budget - Direct Payment,A61016
Royal Borough of Kingston,18/04/2022,90095293,"1,280.00",REDACTED - PERSONAL DATA,SOCIAL SERVICES - PERSONAL BUDGETS,Adult Social Care & Health,Personal Budget - Direct Payment,A61016
Royal Borough of Kingston,25/04/2022,90111496,"1,280.67",REDACTED - PERSONAL DATA,PLS LANDLORDS,Place,PSL Payments To Landlords,A22031
Royal Borough of Kingston,25/04/2022,90111592,"1,286.17",REDACTED - PERSONAL DATA,PLS LANDLORDS,Place,PSL Payments To Landlords,A22031
Royal Borough of Kingston,31/03/2022,70022726,"1,292.57",YMCA ST PAULS GROUP,ACCOMMODATION BED & BREAKFAST,Place,Bed & Breakfast,A56000
Royal Borough of Kingston,31/03/2022,70022729,"1,292.57",YMCA ST PAULS GROUP,ACCOMMODATION BED & BREAKFAST,Place,Bed & Breakfast,A56000
Royal Borough of Kingston,31/03/2022,70022730,"1,292.57",YMCA ST PAULS GROUP,ACCOMMODATION BED & BREAKFAST,Place,Bed & Breakfast,A56000
Royal Borough of Kingston,31/03/2022,70022732,"1,292.57",YMCA ST PAULS GROUP,ACCOMMODATION BED & BREAKFAST,Place,Bed & Breakfast,A56000
Royal Borough of Kingston,31/03/2022,70022733,"1,292.57",YMCA ST PAULS GROUP,ACCOMMODATION BED & BREAKFAST,Place,Bed & Breakfast,A56000
Royal Borough of Kingston,31/03/2022,70022737,"1,292.57",YMCA ST PAULS GROUP,ACCOMMODATION BED & BREAKFAST,Place,Bed & Breakfast,A56000
Royal Borough of Kingston,31/03/2022,70022739,"1,292.57",YMCA ST PAULS GROUP,ACCOMMODATION BED & BREAKFAST,Place,Bed & Breakfast,A56000
Royal Borough of Kingston,31/03/2022,70022740,"1,292.57",YMCA ST PAULS GROUP,ACCOMMODATION BED & BREAKFAST,Place,Bed & Breakfast,A56000
Royal Borough of Kingston,31/03/2022,70022741,"1,292.57",YMCA ST PAULS GROUP,ACCOMMODATION BED & BREAKFAST,Place,Bed & Breakfast,A56000
Royal Borough of Kingston,31/03/2022,70022742,"1,292.57",YMCA ST PAULS GROUP,ACCOMMODATION BED & BREAKFAST,Place,Bed & Breakfast,A56000
Royal Borough of Kingston,31/03/2022,70022744,"1,292.57",YMCA ST PAULS GROUP,ACCOMMODATION BED & BREAKFAST,Place,Bed & Breakfast,A56000
Royal Borough of Kingston,31/03/2022,70022746,"1,292.57",YMCA ST PAULS GROUP,ACCOMMODATION BED & BREAKFAST,Place,Bed & Breakfast,A56000
Royal Borough of Kingston,31/03/2022,70022747,"1,292.57",YMCA ST PAULS GROUP,ACCOMMODATION BED & BREAKFAST,Place,Bed & Breakfast,A56000
Royal Borough of Kingston,31/03/2022,70022748,"1,292.57",YMCA ST PAULS GROUP,ACCOMMODATION BED & BREAKFAST,Place,Bed & Breakfast,A56000
Royal Borough of Kingston,31/03/2022,70022749,"1,292.57",YMCA ST PAULS GROUP,ACCOMMODATION BED & BREAKFAST,Place,Bed & Breakfast,A56000
Royal Borough of Kingston,31/03/2022,70022751,"1,292.57",YMCA ST PAULS GROUP,ACCOMMODATION BED & BREAKFAST,Place,Bed & Breakfast,A56000
Royal Borough of Kingston,31/03/2022,70022753,"1,292.57",YMCA ST PAULS GROUP,ACCOMMODATION BED & BREAKFAST,Place,Bed & Breakfast,A56000
Royal Borough of Kingston,28/02/2021,70022911,"1,293.15",BGC Group,LEGAL & PROFESSIONAL SERVICES,Corporate & Communities,Professional Fees,A44066
Royal Borough of Kingston,25/04/2022,90111182,"1,296.67",REDACTED - PERSONAL DATA,PLS LANDLORDS,Place,PSL Payments To Landlords,A22031
Royal Borough of Kingston,01/04/2022,90112675,"1,299.39",BALANCE (SUPPORT) C.I.C,SOCIAL SERVICES - OTHER,Adult Social Care & Health,Personal Budget - Third Party,A61019
Royal Borough of Kingston,01/04/2022,90112816,"1,299.39",BALANCE (SUPPORT) C.I.C,SOCIAL SERVICES - OTHER,Adult Social Care & Health,Personal Budget - Third Party,A61019
Royal Borough of Kingston,01/04/2022,70021541,"1,300.00",F H & G LIMITED,LEGAL & PROFESSIONAL SERVICES,Housing Revenue Account,Professional Fees,A44066
Royal Borough of Kingston,25/04/2022,90111193,"1,300.00",REDACTED - PERSONAL DATA,PLS LANDLORDS,Place,PSL Payments To Landlords,A22031
Royal Borough of Kingston,25/04/2022,90111243,"1,300.00",REDACTED - PERSONAL DATA,PLS LANDLORDS,Place,PSL Payments To Landlords,A22031
Royal Borough of Kingston,06/04/2022,70022490,"1,302.00",ADAM HOTEL MANAGEMENT LTD,ACCOMMODATION BED & BREAKFAST,Place,Bed & Breakfast,A56000
Royal Borough of Kingston,31/03/2022,70022240,"1,302.00",ADAM HOTELS UK LIMITED,ACCOMMODATION BED & BREAKFAST,Place,Bed & Breakfast,A56000
Royal Borough of Kingston,31/03/2022,70022818,"1,302.00",APEX HOUSING SOLUTIONS LTD,ACCOMMODATION BED & BREAKFAST,Place,Bed & Breakfast,A56000
Royal Borough of Kingston,31/03/2022,70022823,"1,302.00",APEX HOUSING SOLUTIONS LTD,ACCOMMODATION BED & BREAKFAST,Place,Bed & Breakfast,A56000
Royal Borough of Kingston,31/03/2022,70022850,"1,302.00",APEX HOUSING SOLUTIONS LTD,ACCOMMODATION BED & BREAKFAST,Place,Bed & Breakfast,A56000
Royal Borough of Kingston,31/03/2022,70022857,"1,302.00",APEX HOUSING SOLUTIONS LTD,ACCOMMODATION BED & BREAKFAST,Place,Bed & Breakfast,A56000
Royal Borough of Kingston,31/03/2022,70022859,"1,302.00",APEX HOUSING SOLUTIONS LTD,ACCOMMODATION BED & BREAKFAST,Place,Bed & Breakfast,A56000
Royal Borough of Kingston,31/03/2022,70022920,"1,302.00",Buildvantage Limited,ACCOMMODATION BED & BREAKFAST,Place,Bed & Breakfast,A56000
Royal Borough of Kingston,31/03/2022,70022922,"1,302.00",Buildvantage Limited,ACCOMMODATION BED & BREAKFAST,Place,Bed & Breakfast,A56000
Royal Borough of Kingston,01/04/2022,70022241,"1,302.00",QUARTZ PROPERTIES ( LONDON ) LTD,ACCOMMODATION BED & BREAKFAST,Place,Bed & Breakfast,A56000
Royal Borough of Kingston,01/04/2022,70022241,"1,302.00",QUARTZ PROPERTIES ( LONDON ) LTD,ACCOMMODATION BED & BREAKFAST,Place,Bed & Breakfast,A56000
Royal Borough of Kingston,01/04/2022,70022241,"1,302.00",QUARTZ PROPERTIES ( LONDON ) LTD,ACCOMMODATION BED & BREAKFAST,Place,Bed & Breakfast,A56000
Royal Borough of Kingston,01/04/2022,90112769,"1,305.73",ASHPRIME PROPERTIES LTD,SOCIAL SERVICES RESIDENTIAL,Adult Social Care & Health,Personal Budget - Third Party,A61019
Royal Borough of Kingston,25/04/2022,90111389,"1,314.00",REDACTED - PERSONAL DATA,PLS LANDLORDS,Place,PSL Payments To Landlords,A22031
Royal Borough of Kingston,25/04/2022,90111236,"1,314.00",REDACTED - PERSONAL DATA,PLS LANDLORDS,Place,PSL Payments To Landlords,A22031
Royal Borough of Kingston,25/04/2022,90111570,"1,314.00",REDACTED - PERSONAL DATA,PLS LANDLORDS,Place,PSL Payments To Landlords,A22031
Royal Borough of Kingston,25/04/2022,90111295,"1,314.00",REDACTED - PERSONAL DATA,PLS LANDLORDS,Place,PSL Payments To Landlords,A22031
Royal Borough of Kingston,25/04/2022,90111425,"1,314.00",REDACTED - PERSONAL DATA,PLS LANDLORDS,Place,PSL Payments To Landlords,A22031
Royal Borough of Kingston,25/04/2022,90111555,"1,314.00",REDACTED - PERSONAL DATA,PLS LANDLORDS,Place,PSL Payments To Landlords,A22031
Royal Borough of Kingston,25/04/2022,90111202,"1,314.00",REDACTED - PERSONAL DATA,PLS LANDLORDS,Place,PSL Payments To Landlords,A22031
Royal Borough of Kingston,25/04/2022,90111225,"1,314.00",REDACTED - PERSONAL DATA,PLS LANDLORDS,Place,PSL Payments To Landlords,A22031
Royal Borough of Kingston,25/04/2022,90111345,"1,314.00",REDACTED - PERSONAL DATA,PLS LANDLORDS,Place,PSL Payments To Landlords,A22031
Royal Borough of Kingston,25/04/2022,90111481,"1,314.00",REDACTED - PERSONAL DATA,PLS LANDLORDS,Place,PSL Payments To Landlords,A22031
Royal Borough of Kingston,25/04/2022,90111521,"1,314.00",HOMEPATH MANAGEMENT LTD,PLS LANDLORDS,Place,PSL Payments To Landlords,A22031
Royal Borough of Kingston,25/04/2022,90111522,"1,314.00",HOMEPATH MANAGEMENT LTD,PLS LANDLORDS,Place,PSL Payments To Landlords,A22031
Royal Borough of Kingston,25/04/2022,90111239,"1,314.00",REDACTED - PERSONAL DATA,PLS LANDLORDS,Place,PSL Payments To Landlords,A22031
Royal Borough of Kingston,25/04/2022,90111403,"1,314.00",REDACTED - PERSONAL DATA,PLS LANDLORDS,Place,PSL Payments To Landlords,A22031
Royal Borough of Kingston,25/04/2022,90111377,"1,314.00",REDACTED - PERSONAL DATA,PLS LANDLORDS,Place,PSL Payments To Landlords,A22031
Royal Borough of Kingston,25/04/2022,90111495,"1,314.00",REDACTED - PERSONAL DATA,PLS LANDLORDS,Place,PSL Payments To Landlords,A22031
Royal Borough of Kingston,25/04/2022,90111608,"1,314.00",REDACTED - PERSONAL DATA,PLS LANDLORDS,Place,PSL Payments To Landlords,A22031
Royal Borough of Kingston,25/04/2022,90111459,"1,314.00",REDACTED - PERSONAL DATA,PLS LANDLORDS,Place,PSL Payments To Landlords,A22031
Royal Borough of Kingston,25/04/2022,90111363,"1,314.00",REDACTED - PERSONAL DATA,PLS LANDLORDS,Place,PSL Payments To Landlords,A22031
Royal Borough of Kingston,25/04/2022,90111410,"1,314.00",CRPD,PLS LANDLORDS,Place,PSL Payments To Landlords,A22031
Royal Borough of Kingston,25/04/2022,90111411,"1,314.00",CRPD,PLS LANDLORDS,Place,PSL Payments To Landlords,A22031
Royal Borough of Kingston,25/04/2022,70022912,"1,314.00",REDACTED - PERSONAL DATA,PLS LANDLORDS,Place,PSL Payments To Landlords,A22031
Royal Borough of Kingston,29/04/2022,70023293,"1,314.00",REDACTED - PERSONAL DATA,PLS LANDLORDS,Place,PSL Payments To Landlords,A22031
Royal Borough of Kingston,25/04/2022,90111392,"1,314.00",REDACTED - PERSONAL DATA,PLS LANDLORDS,Place,PSL Payments To Landlords,A22031
Royal Borough of Kingston,25/04/2022,90111188,"1,314.00",REDACTED - PERSONAL DATA,PLS LANDLORDS,Place,PSL Payments To Landlords,A22031
Royal Borough of Kingston,25/04/2022,90111299,"1,314.00",REDACTED - PERSONAL DATA,PLS LANDLORDS,Place,PSL Payments To Landlords,A22031
Royal Borough of Kingston,25/04/2022,90111527,"1,314.00",REDACTED - PERSONAL DATA,PLS LANDLORDS,Place,PSL Payments To Landlords,A22031
Royal Borough of Kingston,25/04/2022,90111451,"1,314.00",REDACTED - PERSONAL DATA,PLS LANDLORDS,Place,PSL Payments To Landlords,A22031
Royal Borough of Kingston,25/04/2022,90111266,"1,314.00",REDACTED - PERSONAL DATA,PLS LANDLORDS,Place,PSL Payments To Landlords,A22031
Royal Borough of Kingston,25/04/2022,90111186,"1,314.00",REDACTED - PERSONAL DATA,PLS LANDLORDS,Place,PSL Payments To Landlords,A22031
Royal Borough of Kingston,25/04/2022,90111596,"1,314.00",REDACTED - PERSONAL DATA,PLS LANDLORDS,Place,PSL Payments To Landlords,A22031
Royal Borough of Kingston,25/04/2022,90111597,"1,314.00",REDACTED - PERSONAL DATA,PLS LANDLORDS,Place,PSL Payments To Landlords,A22031
Royal Borough of Kingston,25/04/2022,90111455,"1,314.00",REDACTED - PERSONAL DATA,PLS LANDLORDS,Place,PSL Payments To Landlords,A22031
Royal Borough of Kingston,25/04/2022,90111561,"1,314.00",REDACTED - PERSONAL DATA,PLS LANDLORDS,Place,PSL Payments To Landlords,A22031
Royal Borough of Kingston,25/04/2022,90111278,"1,314.00",REDACTED - PERSONAL DATA,PLS LANDLORDS,Place,PSL Payments To Landlords,A22031
Royal Borough of Kingston,25/04/2022,90111396,"1,314.00",REDACTED - PERSONAL DATA,PLS LANDLORDS,Place,PSL Payments To Landlords,A22031
Royal Borough of Kingston,25/04/2022,90111368,"1,314.00",REDACTED - PERSONAL DATA,PLS LANDLORDS,Place,PSL Payments To Landlords,A22031
Royal Borough of Kingston,25/04/2022,90111275,"1,314.00",REDACTED - PERSONAL DATA,PLS LANDLORDS,Place,PSL Payments To Landlords,A22031
Royal Borough of Kingston,25/04/2022,90111499,"1,314.00",REDACTED - PERSONAL DATA,PLS LANDLORDS,Place,PSL Payments To Landlords,A22031
Royal Borough of Kingston,25/04/2022,90111399,"1,314.00",REDACTED - PERSONAL DATA,PLS LANDLORDS,Place,PSL Payments To Landlords,A22031
Royal Borough of Kingston,25/04/2022,90111467,"1,314.00",REDACTED - PERSONAL DATA,PLS LANDLORDS,Place,PSL Payments To Landlords,A22031
Royal Borough of Kingston,25/04/2022,90111546,"1,314.00",REDACTED - PERSONAL DATA,PLS LANDLORDS,Place,PSL Payments To Landlords,A22031
Royal Borough of Kingston,25/04/2022,90111341,"1,314.00",REDACTED - PERSONAL DATA,PLS LANDLORDS,Place,PSL Payments To Landlords,A22031
Royal Borough of Kingston,25/04/2022,90111590,"1,314.00",REDACTED - PERSONAL DATA,PLS LANDLORDS,Place,PSL Payments To Landlords,A22031
Royal Borough of Kingston,25/04/2022,90111565,"1,314.00",REDACTED - PERSONAL DATA,PLS LANDLORDS,Place,PSL Payments To Landlords,A22031
Royal Borough of Kingston,25/04/2022,90111335,"1,314.00",REDACTED - PERSONAL DATA,PLS LANDLORDS,Place,PSL Payments To Landlords,A22031
Royal Borough of Kingston,25/04/2022,90111482,"1,314.00",REDACTED - PERSONAL DATA,PLS LANDLORDS,Place,PSL Payments To Landlords,A22031
Royal Borough of Kingston,25/04/2022,90111298,"1,314.00",PROPERTIES BY J AND J,PLS LANDLORDS,Place,PSL Payments To Landlords,A22031
Royal Borough of Kingston,25/04/2022,90111216,"1,314.00",REDACTED - PERSONAL DATA,PLS LANDLORDS,Place,PSL Payments To Landlords,A22031
Royal Borough of Kingston,25/04/2022,90111420,"1,314.00",REDACTED - PERSONAL DATA,PLS LANDLORDS,Place,PSL Payments To Landlords,A22031
Royal Borough of Kingston,25/04/2022,90111273,"1,314.00",REDACTED - PERSONAL DATA,PLS LANDLORDS,Place,PSL Payments To Landlords,A22031
Royal Borough of Kingston,25/04/2022,90111276,"1,314.00",REDACTED - PERSONAL DATA,PLS LANDLORDS,Place,PSL Payments To Landlords,A22031
Royal Borough of Kingston,25/04/2022,90111237,"1,314.00",REDACTED - PERSONAL DATA,PLS LANDLORDS,Place,PSL Payments To Landlords,A22031
Royal Borough of Kingston,25/04/2022,90111334,"1,314.08",REDACTED - PERSONAL DATA,PLS LANDLORDS,Place,PSL Payments To Landlords,A22031
Royal Borough of Kingston,25/04/2022,90111317,"1,314.08",REDACTED - PERSONAL DATA,PLS LANDLORDS,Place,PSL Payments To Landlords,A22031
Royal Borough of Kingston,25/04/2022,90111445,"1,314.08",REDACTED - PERSONAL DATA,PLS LANDLORDS,Place,PSL Payments To Landlords,A22031
Royal Borough of Kingston,25/04/2022,90111446,"1,314.08",REDACTED - PERSONAL DATA,PLS LANDLORDS,Place,PSL Payments To Landlords,A22031
Royal Borough of Kingston,25/04/2022,90111447,"1,314.08",REDACTED - PERSONAL DATA,PLS LANDLORDS,Place,PSL Payments To Landlords,A22031
Royal Borough of Kingston,25/04/2022,90111448,"1,314.08",REDACTED - PERSONAL DATA,PLS LANDLORDS,Place,PSL Payments To Landlords,A22031
Royal Borough of Kingston,25/04/2022,90111280,"1,314.08",REDACTED - PERSONAL DATA,PLS LANDLORDS,Place,PSL Payments To Landlords,A22031
Royal Borough of Kingston,25/04/2022,90111602,"1,314.08",J BEIM PROPERTY PARTNERSHIP,PLS LANDLORDS,Place,PSL Payments To Landlords,A22031
Royal Borough of Kingston,25/04/2022,90111203,"1,314.08",REDACTED - PERSONAL DATA,PLS LANDLORDS,Place,PSL Payments To Landlords,A22031
Royal Borough of Kingston,25/04/2022,90111367,"1,314.08",REDACTED - PERSONAL DATA,PLS LANDLORDS,Place,PSL Payments To Landlords,A22031
Royal Borough of Kingston,25/04/2022,90111381,"1,314.08",REDACTED - PERSONAL DATA,PLS LANDLORDS,Place,PSL Payments To Landlords,A22031
Royal Borough of Kingston,25/04/2022,90111322,"1,314.08",REDACTED - PERSONAL DATA,PLS LANDLORDS,Place,PSL Payments To Landlords,A22031
Royal Borough of Kingston,25/04/2022,90111323,"1,314.08",REDACTED - PERSONAL DATA,PLS LANDLORDS,Place,PSL Payments To Landlords,A22031
Royal Borough of Kingston,25/04/2022,90111324,"1,314.08",REDACTED - PERSONAL DATA,PLS LANDLORDS,Place,PSL Payments To Landlords,A22031
Royal Borough of Kingston,25/04/2022,90111325,"1,314.08",REDACTED - PERSONAL DATA,PLS LANDLORDS,Place,PSL Payments To Landlords,A22031
Royal Borough of Kingston,25/04/2022,90111326,"1,314.08",REDACTED - PERSONAL DATA,PLS LANDLORDS,Place,PSL Payments To Landlords,A22031
Royal Borough of Kingston,25/04/2022,90111327,"1,314.08",REDACTED - PERSONAL DATA,PLS LANDLORDS,Place,PSL Payments To Landlords,A22031
Royal Borough of Kingston,25/04/2022,90111329,"1,314.08",REDACTED - PERSONAL DATA,PLS LANDLORDS,Place,PSL Payments To Landlords,A22031
Royal Borough of Kingston,25/04/2022,90111264,"1,314.12",REDACTED - PERSONAL DATA,PLS LANDLORDS,Place,PSL Payments To Landlords,A22031
Royal Borough of Kingston,25/04/2022,90111588,"1,314.13",REDACTED - PERSONAL DATA,PLS LANDLORDS,Place,PSL Payments To Landlords,A22031
Royal Borough of Kingston,25/04/2022,90111401,"1,314.14",REDACTED - PERSONAL DATA,PLS LANDLORDS,Place,PSL Payments To Landlords,A22031
Royal Borough of Kingston,25/04/2022,90111611,"1,314.14",REDACTED - PERSONAL DATA,PLS LANDLORDS,Place,PSL Payments To Landlords,A22031
Royal Borough of Kingston,25/04/2022,90111533,"1,314.14",REDACTED - PERSONAL DATA,PLS LANDLORDS,Place,PSL Payments To Landlords,A22031
Royal Borough of Kingston,25/04/2022,90111480,"1,314.14",REDACTED - PERSONAL DATA,PLS LANDLORDS,Place,PSL Payments To Landlords,A22031
Royal Borough of Kingston,25/04/2022,90111307,"1,314.14",REDACTED - PERSONAL DATA,PLS LANDLORDS,Place,PSL Payments To Landlords,A22031
Royal Borough of Kingston,25/04/2022,90111302,"1,314.14",SAINT MATTHEW' S PAROCHIAL CHURCH COUNCIL,PLS LANDLORDS,Place,PSL Payments To Landlords,A22031
Royal Borough of Kingston,25/04/2022,90111313,"1,314.14",REDACTED - PERSONAL DATA,PLS LANDLORDS,Place,PSL Payments To Landlords,A22031
Royal Borough of Kingston,25/04/2022,90111498,"1,317.00",REDACTED - PERSONAL DATA,PLS LANDLORDS,Place,PSL Payments To Landlords,A22031
Royal Borough of Kingston,25/04/2022,90111433,"1,317.00",REDACTED - PERSONAL DATA,PLS LANDLORDS,Place,PSL Payments To Landlords,A22031
Royal Borough of Kingston,25/04/2022,90111436,"1,317.00",REDACTED - PERSONAL DATA,PLS LANDLORDS,Place,PSL Payments To Landlords,A22031
Royal Borough of Kingston,25/04/2022,90111470,"1,317.00",REDACTED - PERSONAL DATA,PLS LANDLORDS,Place,PSL Payments To Landlords,A22031
Royal Borough of Kingston,25/04/2022,90111365,"1,317.00",REDACTED - PERSONAL DATA,PLS LANDLORDS,Place,PSL Payments To Landlords,A22031
Royal Borough of Kingston,25/04/2022,90111263,"1,317.00",REDACTED - PERSONAL DATA,PLS LANDLORDS,Place,PSL Payments To Landlords,A22031
Royal Borough of Kingston,25/04/2022,90111294,"1,317.00",REDACTED - PERSONAL DATA,PLS LANDLORDS,Place,PSL Payments To Landlords,A22031
Royal Borough of Kingston,23/03/2022,70021500,"1,317.00",UK POWER NETWORKS LIMITED,UTILITIES,Corporate & Communities,Street Lighting - Other,A56084
Royal Borough of Kingston,25/04/2022,90111528,"1,317.75",REDACTED - PERSONAL DATA,PLS LANDLORDS,Place,PSL Payments To Landlords,A22031
Royal Borough of Kingston,25/04/2022,90111184,"1,317.76",REDACTED - PERSONAL DATA,PLS LANDLORDS,Place,PSL Payments To Landlords,A22031
Royal Borough of Kingston,25/04/2022,90111406,"1,317.76",REDACTED - PERSONAL DATA,PLS LANDLORDS,Place,PSL Payments To Landlords,A22031
Royal Borough of Kingston,25/04/2022,90111512,"1,321.66",REDACTED - PERSONAL DATA,PLS LANDLORDS,Place,PSL Payments To Landlords,A22031
Royal Borough of Kingston,25/04/2022,90111382,"1,321.66",REDACTED - PERSONAL DATA,PLS LANDLORDS,Place,PSL Payments To Landlords,A22031
Royal Borough of Kingston,25/04/2022,90111532,"1,326.00",REDACTED - PERSONAL DATA,PLS LANDLORDS,Place,PSL Payments To Landlords,A22031
Royal Borough of Kingston,25/04/2022,90111189,"1,331.67",REDACTED - PERSONAL DATA,PLS LANDLORDS,Place,PSL Payments To Landlords,A22031
Royal Borough of Kingston,25/04/2022,90111421,"1,343.00",CARLISLE SECURITIES LTD,PLS LANDLORDS,Place,PSL Payments To Landlords,A22031
Royal Borough of Kingston,25/04/2022,90111308,"1,343.30",REDACTED - PERSONAL DATA,PLS LANDLORDS,Place,PSL Payments To Landlords,A22031
Royal Borough of Kingston,25/04/2022,90111450,"1,343.33",REDACTED - PERSONAL DATA,PLS LANDLORDS,Place,PSL Payments To Landlords,A22031
Royal Borough of Kingston,25/04/2022,90111563,"1,343.33",REDACTED - PERSONAL DATA,PLS LANDLORDS,Place,PSL Payments To Landlords,A22031
Royal Borough of Kingston,28/02/2022,70022936,"1,344.00",Buildvantage Limited,ACCOMMODATION BED & BREAKFAST,Place,Bed & Breakfast,A56000
Royal Borough of Kingston,01/04/2022,90112792,"1,347.94",REDACTED - PERSONAL DATA,SOCIAL SERVICES - PERSONAL BUDGETS,Adult Social Care & Health,Personal Budget - Third Party,A61019
Royal Borough of Kingston,18/04/2022,90095288,"1,350.00",REDACTED - PERSONAL DATA,SOCIAL SERVICES - DIRECT PAYMENTS,Adult Social Care & Health,Personal Budget - Direct Payment,A61016
Royal Borough of Kingston,01/04/2022,90112996,"1,350.21",COMFORT CARE SERVICES UK LTD,SOCIAL SERVICES-HOME CARE,Adult Social Care & Health,Personal Budget - Third Party,A61019
Royal Borough of Kingston,05/04/2022,90092812,"1,352.16",DICKY BIRDS PRE SCHOOL NURSERIES LTD,CHILDMINDERS START UP GRANT,Schools,2 Yr Old Place Funding,A60000
Royal Borough of Kingston,05/04/2022,90092807,"1,352.16",REDACTED - PERSONAL DATA,CHILDMINDERS START UP GRANT,Schools,2 Yr Old Place Funding,A60000
Royal Borough of Kingston,05/04/2022,90092839,"1,352.16",FEATHERNEST NURSERY,SOCIAL SERVICES - OTHER,Schools,2 Yr Old Place Funding,A60000
Royal Borough of Kingston,05/04/2022,90092830,"1,352.16",ORANGES & LEMONS NURSERY SCHOOL,ACADEMIC - STUDENT FEES,Schools,2 Yr Old Place Funding,A60000
Royal Borough of Kingston,05/04/2022,90092841,"1,352.16",TOLWORTH INFANTS & NURSERY SCHOOL & TOLWORTH JUNIOR SCH,ACADEMIC INSTNS - OTHER,Schools,2 Yr Old Place Funding,A60000
Royal Borough of Kingston,18/04/2022,90095066,"1,354.15",REDACTED - PERSONAL DATA,SOCIAL SERVICES - DIRECT PAYMENTS,Adult Social Care & Health,Personal Budget - Direct Payment,A61016
Royal Borough of Kingston,18/04/2022,90095140,"1,354.16",REDACTED - PERSONAL DATA,SOCIAL SERVICES - PERSONAL BUDGETS,Adult Social Care & Health,Personal Budget - Direct Payment,A61016
Royal Borough of Kingston,01/04/2022,90112624,"1,355.66",THE GRANGE CENTRE,SOCIAL SERVICES RESIDENTIAL,Adult Social Care & Health,Personal Budget - Third Party,A61019
Royal Borough of Kingston,04/04/2022,90119042,"1,357.92",GENEVA ROAD LIMITED,SOCIAL SERVICES RESIDENTIAL,Adult Social Care & Health,Supported Living - new framework,A56126
Royal Borough of Kingston,25/04/2022,90111479,"1,369.94",REDACTED - PERSONAL DATA,PLS LANDLORDS,Place,PSL Payments To Landlords,A22031
Royal Borough of Kingston,04/04/2022,90111060,"1,372.00",WINSOR CARE SERVICES LTD,SOCIAL SERVICES RESIDENTIAL,Adult Social Care & Health,Personal Budget - Third Party,A61019
Royal Borough of Kingston,25/04/2022,90111452,"1,375.00",REDACTED - PERSONAL DATA,PLS LANDLORDS,Place,PSL Payments To Landlords,A22031
Royal Borough of Kingston,30/12/2021,70021737,"1,378.73",KINGSTON TOWN CENTRE MANAGEMENT LTD,GRANTS & EX GRATIA PAYMENTS,Place,Electricity,A21000
Royal Borough of Kingston,01/04/2022,90113026,"1,381.67",THE FIRCROFT TRUST,CHARITIES & VOLUNTARY ORGNS,Adult Social Care & Health,Personal Budget - Third Party,A61019
Royal Borough of Kingston,25/04/2022,90111388,"1,390.00",REDACTED - PERSONAL DATA,PLS LANDLORDS,Place,PSL Payments To Landlords,A22031
Royal Borough of Kingston,01/04/2022,90112695,"1,392.21",BALANCE (SUPPORT) C.I.C,SOCIAL SERVICES - OTHER,Adult Social Care & Health,Personal Budget - Third Party,A61019
Royal Borough of Kingston,01/04/2022,90112737,"1,392.21",BALANCE (SUPPORT) C.I.C,SOCIAL SERVICES - OTHER,Adult Social Care & Health,Personal Budget - Third Party,A61019
Royal Borough of Kingston,04/04/2022,90111078,"1,400.00",OZUMBA TRAINING AND CONSULTANCY SERVICES LIMITED,SOCIAL SERVICES DAY CARE,Adult Social Care & Health,Personal Budget - Third Party,A61019
Royal Borough of Kingston,11/04/2022,90112948,"1,400.00",OZUMBA TRAINING AND CONSULTANCY SERVICES LIMITED,SOCIAL SERVICES DAY CARE,Adult Social Care & Health,Personal Budget - Third Party,A61019
Royal Borough of Kingston,03/04/2022,70021627,"1,407.85",BDT HEALTHCARE LTD,SOCIAL SERVICES - OTHER,Adult Social Care & Health,Other Private Contractors - Third Party,A56080
Royal Borough of Kingston,01/04/2022,70022182,"1,410.00",VM Couriers,DELIVERY AND COURIER SERVICES,Corporate & Communities,Postage & Couriers,A45015
Royal Borough of Kingston,21/04/2022,70022804,"1,415.05",KENT COUNTY COUNCIL,UTILITIES,Housing Revenue Account,Electricity,A21000
Royal Borough of Kingston,01/04/2022,90112757,"1,417.96",BALANCE (SUPPORT) C.I.C,SOCIAL SERVICES - OTHER,Adult Social Care & Health,Personal Budget - Third Party,A61019
Royal Borough of Kingston,01/04/2022,90110152,"1,420.71",THE ROYAL STAR AND GARTER HOME,SOCIAL SERVICES RESIDENTIAL,Adult Social Care & Health,Independent Placements,A56006
Royal Borough of Kingston,18/04/2022,90095192,"1,421.00",REDACTED - PERSONAL DATA,SOCIAL SERVICES - PERSONAL BUDGETS,Adult Social Care & Health,Personal Budget - Direct Payment,A61016
